Trans No.,Service Area Categorisation,Service Division Categorisation,Responsible Unit,Unit Code,Expense Type,Expense Sub Type,Expense Code,Narrative,Amount,Invoice Date,Cap/Rev,Supplier Name,,
1,Central Services,SupS Chief Execs,Local Involvement Network,A01039,Third Party Payments          ,Private Contractors           ,EH10,Contract Payments                       ,1328,30/11/2016,R,VOICEABILITY                  ,,
2,Central Services,SupS Chief Execs,Local Involvement Network,A01039,Third Party Payments          ,Private Contractors           ,EH10,Contract Payments                       ,10423.75,04/11/2016,R,MERTON VOLUNTARY SERV COUNCIL ,,
3,Cultural Env Reg&Plan Services,Comm Safety (Crime Reduction),Crime and Strategy Team,A01100,Third Party Payments          ,Private Contractors           ,EH02,Miscellaneous Hired Services            ,28000,23/11/2016,R,VICTIM SUPPORT                ,,
4,Cultural Env Reg&Plan Services,Comm Safety (Crime Reduction),Crime and Strategy Team,A01100,Third Party Payments          ,Private Contractors           ,EH02,Miscellaneous Hired Services            ,36426,24/11/2016,R,VICTIM SUPPORT                ,,
5,Cultural Env Reg&Plan Services,Comm Safety (Crime Reduction),CCTV,A01200,Supplies & Services           ,Equip Furniture/Materials     ,DA01,Equipment - R & M                       ,3554.12,09/12/2016,R,TYCO FIRE & INTEGR'TD SOL (UK ,,
6,Cultural Env Reg&Plan Services,Comm Safety (Crime Reduction),CCTV,A01200,Supplies & Services           ,Services                      ,DF57,Consulting Engineers Fees               ,650.71,02/12/2016,R,GLOBAL MSC SECURITY LTD       ,,
7,Cultural Env Reg&Plan Services,Comm Safety (Crime Reduction),CCTV,A01200,Supplies & Services           ,Services                      ,DF57,Consulting Engineers Fees               ,2174.94,02/12/2016,R,GLOBAL MSC SECURITY LTD       ,,
8,Cultural Env Reg&Plan Services,Comm Safety (Crime Reduction),Anti-Social Behaviour,A01202,Supplies & Services           ,Prntng Stnry Gen Off Exp      ,DE11,Print Room Costs                        ,670.5,03/12/2016,R,PRINT SECTION (INTERNAL)      ,,
9,Central Services,SupS Chief Execs,NON-STATUTORY MARKETING & COMM,A02019,Premises Related Expenditure  ,Rents                         ,BC03,Room/venue rental hire                  ,4667.32,17/11/2016,R,CHAK89                        ,,
10,Central Services,SupS Chief Execs,NON-STATUTORY MARKETING & COMM,A02019,Supplies & Services           ,Services                      ,DF02,Misc Advertising/Publicity              ,537.5,24/11/2016,R,JCDECAUX UNITED KINGDOM       ,,
11,Central Services,SupS Chief Execs,NON-STATUTORY MARKETING & COMM,A02019,Supplies & Services           ,Services                      ,DF02,Misc Advertising/Publicity              ,537.5,24/11/2016,R,JCDECAUX UNITED KINGDOM       ,,
12,Central Services,SupS Chief Execs,NON-STATUTORY MARKETING & COMM,A02019,Supplies & Services           ,Services                      ,DF35,Graphic Design                          ,563.75,18/11/2016,R,DOMINO 4 LIMITED              ,,
13,Central Services,SupS Chief Execs,NON-STATUTORY MARKETING & COMM,A02019,Supplies & Services           ,Services                      ,DF35,Graphic Design                          ,1270.5,07/12/2016,R,TA2                           ,,
14,Central Services,SupS Chief Execs,NON-STATUTORY MARKETING & COMM,A02019,Supplies & Services           ,Grants and Subscriptions      ,DJ04,Subscriptions                           ,1386,27/07/2016,R,PANACEA SOFTWARE LTD          ,,
15,Central Services,SupS Chief Execs,Press and Public Relations.,A02026,Supplies & Services           ,Services                      ,DF35,Graphic Design                          ,3905,08/11/2016,R,DOMINO 4 LIMITED              ,,
16,Central Services,SupS Chief Execs,Press and Public Relations.,A02026,Supplies & Services           ,Expenses                      ,DH21,Christma Lights                         ,724,06/12/2016,R,MILLWARD FORESTRY             ,,
17,Central Services,SupS Chief Execs,Press and Public Relations.,A02026,Supplies & Services           ,Expenses                      ,DH21,Christma Lights                         ,1865,02/12/2016,R,KIER INTEGRATED SERVICES LTD  ,,
18,CS -Oth Operating Inc & Expend,T/A Corporate Services,Prtng Jobs - Ext Agncy,A03041,Supplies & Services           ,Prntng Stnry Gen Off Exp      ,DE01,External Printing                       ,597,17/11/2016,R,IMPRESS PRINT SERVICES LTD    ,,
19,CS -Oth Operating Inc & Expend,T/A Corporate Services,Prtng Jobs - Ext Agncy,A03041,Supplies & Services           ,Prntng Stnry Gen Off Exp      ,DE01,External Printing                       ,673.62,23/11/2016,R,H CHARLESWORTH & CO LTD       ,,
20,CS -Oth Operating Inc & Expend,T/A Corporate Services,Prtng Jobs - Ext Agncy,A03041,Supplies & Services           ,Prntng Stnry Gen Off Exp      ,DE01,External Printing                       ,745.2,24/11/2016,R,TAURUS PRINT & DESIGN LTD     ,,
21,CS -Oth Operating Inc & Expend,T/A Corporate Services,Prtng Jobs - Ext Agncy,A03041,Supplies & Services           ,Prntng Stnry Gen Off Exp      ,DE01,External Printing                       ,825,30/11/2016,R,IMPRESS PRINT SERVICES LTD    ,,
22,CS -Oth Operating Inc & Expend,T/A Corporate Services,Prtng Jobs - Ext Agncy,A03041,Supplies & Services           ,Prntng Stnry Gen Off Exp      ,DE01,External Printing                       ,845,17/11/2016,R,IMPRESS PRINT SERVICES LTD    ,,
23,CS -Oth Operating Inc & Expend,T/A Corporate Services,Prtng Jobs - Ext Agncy,A03041,Supplies & Services           ,Prntng Stnry Gen Off Exp      ,DE01,External Printing                       ,975,17/11/2016,R,IMPRESS PRINT SERVICES LTD    ,,
24,CS -Oth Operating Inc & Expend,T/A Corporate Services,Prtng Jobs - Ext Agncy,A03041,Supplies & Services           ,Prntng Stnry Gen Off Exp      ,DE01,External Printing                       ,1180,14/12/2016,R,CUSTOMISED GRAPHICS PRINT LTD ,,
25,Highways & Transport Services,On-street parking,Blue Badge Service,A04088,Supplies & Services           ,Services                      ,DF14,Doctors and Other Fees                  ,900,28/11/2016,R,LLOYDS TSB COMMERCIAL FINANCE ,,
26,Highways & Transport Services,On-street parking,Blue Badge Service,A04088,Supplies & Services           ,Comms and Computing           ,DG15,Network Maintenance                     ,970.71,01/11/2016,R,NORTHGATE PUBLIC SERVICES (UK),,
27,Highways & Transport Services,On-street parking,Blue Badge Service,A04088,Supplies & Services           ,Comms and Computing           ,DG15,Network Maintenance                     ,1049.37,02/12/2016,R,NORTHGATE PUBLIC SERVICES (UK),,
28,Central Services,Registn Birth/Death/Marriage,Reg of B. Deaths & Ms,B06143,Supplies & Services           ,Prntng Stnry Gen Off Exp      ,DE30,General Office Expense                  ,1206.9,10/11/2016,R,STRICTLY TABLE AND CHAIRS     ,,
29,Central Services,Registn Birth/Death/Marriage,Reg of B. Deaths & Ms,B06143,Supplies & Services           ,Grants and Subscriptions      ,DJ04,Subscriptions                           ,575,29/11/2016,R,OFFICE OF THE IMMIGRATION     ,,
30,Central Services,SupS Health & Safety,Learning and Development,B06146,Employees                     ,Indirect Employee Expenses    ,AB56,Internal Training Costs                 ,830,09/11/2016,R,MAYBO LTD                     ,,
31,Central Services,SupS Health & Safety,Learning and Development,B06146,Employees                     ,Indirect Employee Expenses    ,AB56,Internal Training Costs                 ,3803.11,23/11/2016,R,APSE                          ,,
32,Central Services,SupS Health & Safety,Learning and Development,B06146,Employees                     ,Indirect Employee Expenses    ,AB57,EXTERNAL TRAINING COSTS                 ,500,17/10/2016,R,SALVEO SAFETY                 ,,
33,Central Services,SupS Health & Safety,Learning and Development,B06146,Employees                     ,Indirect Employee Expenses    ,AB57,EXTERNAL TRAINING COSTS                 ,506,13/12/2016,R,SHL (UK) LTD                  ,,
34,Central Services,SupS Health & Safety,Learning and Development,B06146,Employees                     ,Indirect Employee Expenses    ,AB57,EXTERNAL TRAINING COSTS                 ,517.5,22/09/2016,R,ASSIST KNOWLEDGE DEVELOPMENT  ,,
35,Central Services,SupS Health & Safety,Learning and Development,B06146,Employees                     ,Indirect Employee Expenses    ,AB57,EXTERNAL TRAINING COSTS                 ,541.67,12/12/2016,R,BUILDER TRAINING CENTRES LTD. ,,
36,Central Services,SupS Health & Safety,Learning and Development,B06146,Employees                     ,Indirect Employee Expenses    ,AB57,EXTERNAL TRAINING COSTS                 ,560,06/12/2016,R,TOUCHDOWN DANCE               ,,
37,Central Services,SupS Health & Safety,Learning and Development,B06146,Employees                     ,Indirect Employee Expenses    ,AB57,EXTERNAL TRAINING COSTS                 ,636,23/11/2016,R,PUBLIC POLICY EXCHANGE LIMITED,,
38,Central Services,SupS Health & Safety,Learning and Development,B06146,Employees                     ,Indirect Employee Expenses    ,AB57,EXTERNAL TRAINING COSTS                 ,675,09/12/2016,R,PEARLCATCHERS LIMITED         ,,
39,Central Services,SupS Health & Safety,Learning and Development,B06146,Employees                     ,Indirect Employee Expenses    ,AB57,EXTERNAL TRAINING COSTS                 ,675,05/12/2016,R,PEARLCATCHERS LIMITED         ,,
40,Central Services,SupS Health & Safety,Learning and Development,B06146,Employees                     ,Indirect Employee Expenses    ,AB57,EXTERNAL TRAINING COSTS                 ,675,09/12/2016,R,PEARLCATCHERS LIMITED         ,,
41,Central Services,SupS Health & Safety,Learning and Development,B06146,Employees                     ,Indirect Employee Expenses    ,AB57,EXTERNAL TRAINING COSTS                 ,675,09/12/2016,R,PEARLCATCHERS LIMITED         ,,
42,Central Services,SupS Health & Safety,Learning and Development,B06146,Employees                     ,Indirect Employee Expenses    ,AB57,EXTERNAL TRAINING COSTS                 ,675,09/12/2016,R,PEARLCATCHERS LIMITED         ,,
43,Central Services,SupS Health & Safety,Learning and Development,B06146,Employees                     ,Indirect Employee Expenses    ,AB57,EXTERNAL TRAINING COSTS                 ,680,03/10/2016,R,MEDI AID(UK) LTD              ,,
44,Central Services,SupS Health & Safety,Learning and Development,B06146,Employees                     ,Indirect Employee Expenses    ,AB57,EXTERNAL TRAINING COSTS                 ,830,27/09/2016,R,MAYBO LTD                     ,,
45,Central Services,SupS Health & Safety,Learning and Development,B06146,Employees                     ,Indirect Employee Expenses    ,AB57,EXTERNAL TRAINING COSTS                 ,830,26/05/2016,R,MAYBO LTD                     ,,
46,Central Services,SupS Health & Safety,Learning and Development,B06146,Employees                     ,Indirect Employee Expenses    ,AB57,EXTERNAL TRAINING COSTS                 ,841.5,01/12/2016,R,ANDERSON FOOD HYGIENE         ,,
47,Central Services,SupS Health & Safety,Learning and Development,B06146,Employees                     ,Indirect Employee Expenses    ,AB57,EXTERNAL TRAINING COSTS                 ,850,24/11/2016,R,SKILLS FOR CARE LTD           ,,
48,Central Services,SupS Health & Safety,Learning and Development,B06146,Employees                     ,Indirect Employee Expenses    ,AB57,EXTERNAL TRAINING COSTS                 ,885,28/11/2016,R,ERNST & YOUNG LLP             ,,
49,Central Services,SupS Health & Safety,Learning and Development,B06146,Employees                     ,Indirect Employee Expenses    ,AB57,EXTERNAL TRAINING COSTS                 ,900,27/09/2016,R,DUE NORTH LTD                 ,,
50,Central Services,SupS Health & Safety,Learning and Development,B06146,Employees                     ,Indirect Employee Expenses    ,AB57,EXTERNAL TRAINING COSTS                 ,1200,17/10/2016,R,SALVEO SAFETY                 ,,
51,Central Services,SupS Health & Safety,Learning and Development,B06146,Employees                     ,Indirect Employee Expenses    ,AB57,EXTERNAL TRAINING COSTS                 ,1500,23/11/2016,R,THE LEARNING ARCHITECT        ,,
52,Central Services,SupS Health & Safety,Learning and Development,B06146,Employees                     ,Indirect Employee Expenses    ,AB57,EXTERNAL TRAINING COSTS                 ,1575,30/11/2016,R,SALVEO SAFETY                 ,,
53,Central Services,SupS Health & Safety,Learning and Development,B06146,Supplies & Services           ,Grants and Subscriptions      ,DJ04,Subscriptions                           ,3400,25/11/2016,R,LONDON COUNCILS               ,,
54,,,Library Self Service                    ,CC011AB,Vehicles Plant Equipment and Machinery,,D3,Equipment                               ,1577.75,22/11/2016,C,THEDESIGNCONCEPT LTD          ,,
55,,,Parks Bin Finance Lease                 ,CE003EA,Vehicles Plant Equipment and Machinery,,D3,Equipment                               ,5618.4,07/12/2016,C,EGBERT H TAYLOR & CO LTD      ,,
56,,,Disabled Facilities Grant DCLG          ,CE004RA,Other Capital Expenditure,,E1,Grants                                  ,963.32,19/12/2016,C,CBS ADAPTATION                ,,
57,,,Disabled Facilities Grant DCLG          ,CE004RA,Other Capital Expenditure,,E1,Grants                                  ,1127.4,19/12/2016,C,REDACTED,,
58,,,Disabled Facilities Grant DCLG          ,CE004RA,Other Capital Expenditure,,E1,Grants                                  ,1323.96,08/12/2016,C,CBS ADAPTATION                ,,
59,,,Disabled Facilities Grant DCLG          ,CE004RA,Other Capital Expenditure,,E1,Grants                                  ,5135,19/12/2016,C,ASCENDIT LIFTS LTD            ,,
60,,,Disabled Facilities Grant DCLG          ,CE004RA,Other Capital Expenditure,,E1,Grants                                  ,9395,19/12/2016,C,JCP BUILDING CONTRACTORS      ,,
61,,,Parks Investment                        ,CE013SA,New Construction Conversion and Renovation,,B4,Contractor - Site works                 ,4860,07/12/2016,C,TAYLOR BUILDING COMPANY LTD   ,,
62,,,Pay & Display Machine                   ,CE029AA,New Construction Conversion and Renovation,,B4,Contractor - Site works                 ,1016,05/12/2016,C,AAA SCAFFOLDING LONDON LTD    ,,
63,,,Morden Leisure Centre                   ,CE045AA,New Construction Conversion and Renovation,,B1,Consultants Fees D&S Structure          ,575,15/06/2016,C,GENSIS INTERNATIONAL          ,,
64,,,Morden Leisure Centre                   ,CE045AA,New Construction Conversion and Renovation,,B1,Consultants Fees D&S Structure          ,3500,30/11/2016,C,SWEETT (UK) LIMITED           ,,
65,,,Morden Leisure Centre                   ,CE045AA,New Construction Conversion and Renovation,,B1,Consultants Fees D&S Structure          ,3500,30/12/2016,C,SWEETT (UK) LIMITED           ,,
66,,,Morden Leisure Centre                   ,CE045AA,New Construction Conversion and Renovation,,B1,Consultants Fees D&S Structure          ,3882,29/11/2016,C,GARDINER & THEOBALD LLP       ,,
67,,,Morden Leisure Centre                   ,CE045AA,New Construction Conversion and Renovation,,B2,Site Surveys D&S Structure              ,535,30/11/2016,C,GPM ECOLOGY                   ,,
68,,,Morden Leisure Centre                   ,CE045AA,New Construction Conversion and Renovation,,B2,Site Surveys D&S Structure              ,2498.8,23/11/2016,C,MUSEUM OF LONDON              ,,
69,,,Morden Leisure Centre                   ,CE045AA,New Construction Conversion and Renovation,,B2,Site Surveys D&S Structure              ,2950,05/12/2016,C,CURTINS CONSULTING LTD        ,,
70,,,Street Lighting Replacement Pr          ,CE068FA,New Construction Conversion and Renovation,,B4,Contractor - Site works                 ,1889.21,02/12/2016,C,KIER INTEGRATED SERVICES LTD  ,,
71,,,Street Lighting Replacement Pr          ,CE068FA,New Construction Conversion and Renovation,,B4,Contractor - Site works                 ,2810.62,02/12/2016,C,KIER INTEGRATED SERVICES LTD  ,,
72,,,Street Lighting Replacement Pr          ,CE068FA,New Construction Conversion and Renovation,,B4,Contractor - Site works                 ,6400,02/12/2016,C,KIER INTEGRATED SERVICES LTD  ,,
73,,,Street Lighting Replacement Pr          ,CE068FA,New Construction Conversion and Renovation,,B4,Contractor - Site works                 ,9463.96,02/12/2016,C,KIER INTEGRATED SERVICES LTD  ,,
74,,,Street Lighting Replacement Pr          ,CE068FA,New Construction Conversion and Renovation,,B5,Suppliers - Site works                  ,554.64,29/11/2016,C,MARWOOD ELECTRICAL COMPANY LTD,,
75,,,Street Lighting Replacement Pr          ,CE068FA,New Construction Conversion and Renovation,,B5,Suppliers - Site works                  ,7576.02,08/11/2016,C,MARWOOD ELECTRICAL COMPANY LTD,,
76,,,Street Lighting Replacement Pr          ,CE068FA,New Construction Conversion and Renovation,,B5,Suppliers - Site works                  ,7689.44,29/11/2016,C,MARWOOD ELECTRICAL COMPANY LTD,,
77,,,Street Lighting Replacement Pr          ,CE068FA,New Construction Conversion and Renovation,,B6,Other Costs - Site works                ,693,28/11/2016,C,UK POWER NETWORKS (OPERATIONS),,
78,,,Alley Gating Scheme - Fly Tip           ,CE087FA,Other Capital Expenditure,,E1,Grants                                  ,1863,07/12/2016,C,W C EVANS & SONS LTD          ,,
79,,,Accesibility Programme                  ,CE104FD,New Construction Conversion and Renovation,,B5,Suppliers - Site works                  ,703.84,29/11/2016,C,MARWOOD ELECTRICAL COMPANY LTD,,
80,,,Mitcham Town Centre                     ,CE104FP,New Construction Conversion and Renovation,,B5,Suppliers - Site works                  ,1350,25/11/2016,C,BARKLANDS TREE SPECIALISTS    ,,
81,,,Mitcham Town Centre                     ,CE104FP,New Construction Conversion and Renovation,,B5,Suppliers - Site works                  ,3560,13/12/2016,C,PARKEON LTD                   ,,
82,,,Traffic Schemes                         ,CE142FA,New Construction Conversion and Renovation,,B4,Contractor - Site works                 ,12786.68,16/12/2016,C,FM CONWAY LTD                 ,,
83,,,Canons Parks for People                 ,CE157AA,New Construction Conversion and Renovation,,B1,Consultants Fees D&S Structure          ,825,30/11/2016,C,SOUTHERN GREEN LIMITED        ,,
84,,,Canons Parks for People                 ,CE157AA,New Construction Conversion and Renovation,,B1,Consultants Fees D&S Structure          ,1300.14,30/11/2016,C,SOUTHERN GREEN LIMITED        ,,
85,,,Canons Parks for People                 ,CE157AA,New Construction Conversion and Renovation,,B1,Consultants Fees D&S Structure          ,1449.86,30/11/2016,C,SOUTHERN GREEN LIMITED        ,,
86,,,Canons Parks for People                 ,CE157AA,New Construction Conversion and Renovation,,B1,Consultants Fees D&S Structure          ,2350,05/09/2016,C,SOUTHERN GREEN LIMITED        ,,
87,,,Canons Parks for People                 ,CE157AA,New Construction Conversion and Renovation,,B1,Consultants Fees D&S Structure          ,3268.65,20/10/2016,C,SOUTHERN GREEN LIMITED        ,,
88,,,Canons Parks for People                 ,CE157AA,New Construction Conversion and Renovation,,B1,Consultants Fees D&S Structure          ,4376.35,30/09/2016,C,SOUTHERN GREEN LIMITED        ,,
89,,,Canons Parks for People                 ,CE157AA,New Construction Conversion and Renovation,,B1,Consultants Fees D&S Structure          ,5500,19/10/2016,C,SOUTHERN GREEN LIMITED        ,,
90,,,Canons Parks for People                 ,CE157AA,New Construction Conversion and Renovation,,B1,Consultants Fees D&S Structure          ,8337.5,30/11/2016,C,SOUTHERN GREEN LIMITED        ,,
91,,,Canons Parks for People                 ,CE157AA,New Construction Conversion and Renovation,,B1,Consultants Fees D&S Structure          ,18223.34,30/09/2016,C,SOUTHERN GREEN LIMITED        ,,
92,,,Canons Parks for People                 ,CE157AA,New Construction Conversion and Renovation,,B1,Consultants Fees D&S Structure          ,18223.34,28/10/2016,C,SOUTHERN GREEN LIMITED        ,,
93,,,Energy Utility Invest to Save           ,CF002SA,New Construction Conversion and Renovation,,B4,Contractor - Site works                 ,6567.71,15/12/2016,C,JOJU SOLA                     ,,
94,,,Energy Utility Invest to Save           ,CF002SA,New Construction Conversion and Renovation,,B4,Contractor - Site works                 ,10783.98,15/12/2016,C,JOJU SOLA                     ,,
95,,,Energy Utility Invest to Save           ,CF002SA,New Construction Conversion and Renovation,,B4,Contractor - Site works                 ,26829.38,30/11/2016,C,THORLUX LIGHTING              ,,
96,,,Repair and Maintenance                  ,CF004SA,New Construction Conversion and Renovation,,B4,Contractor - Site works                 ,3535.1,30/11/2016,C,EDE'S (U.K.) LTD              ,,
97,,,Repair and Maintenance                  ,CF004SA,New Construction Conversion and Renovation,,B4,Contractor - Site works                 ,4294,30/11/2016,C,EDE'S (U.K.) LTD              ,,
98,,,Repair and Maintenance                  ,CF004SA,New Construction Conversion and Renovation,,B4,Contractor - Site works                 ,4335,16/12/2016,C,KH FLOORING LTD               ,,
99,,,Repair and Maintenance                  ,CF004SA,New Construction Conversion and Renovation,,B4,Contractor - Site works                 ,4686.03,13/12/2016,C,NETWORK BLINDS LIMITED        ,,
100,,,Repair and Maintenance                  ,CF004SA,New Construction Conversion and Renovation,,B4,Contractor - Site works                 ,7720,08/12/2016,C,SUNA COMMUNICATION            ,,
101,,,Merton Abbey Temp Accomodation          ,CS022AC,New Construction Conversion and Renovation,,B1,Consultants Fees D&S Structure          ,500,23/11/2016,C,EIGHT ASSOCIATES LTD          ,,
102,,,Merton Abbey Temp Accomodation          ,CS022AC,New Construction Conversion and Renovation,,B1,Consultants Fees D&S Structure          ,3358.76,14/12/2016,C,PELLINGS LLP                  ,,
103,,,Cricket Green Site                      ,CS027AE,New Construction Conversion and Renovation,,B4,Contractor - Site works                 ,1200.2,05/12/2016,C,BLAKEDOWN LANDSCAPES (SE) LTD ,,
104,,,Dundonald expansion                     ,CS031AC,New Construction Conversion and Renovation,,B1,Consultants Fees D&S Structure          ,506.75,30/11/2016,C,SYNERGY CPC LLP               ,,
105,,,Schs Cap Maint & Accessibility          ,CS080SD,New Construction Conversion and Renovation,,B4,Contractor - Site works                 ,965.25,04/12/2016,C,BREYER GROUP PLC              ,,
106,,,Schs Cap Maint & Accessibility          ,CS080SD,New Construction Conversion and Renovation,,B4,Contractor - Site works                 ,1096.88,04/12/2016,C,BREYER GROUP PLC              ,,
107,,,Schs Cap Maint & Accessibility          ,CS080SD,New Construction Conversion and Renovation,,B4,Contractor - Site works                 ,5485,14/12/2016,C,BILFINGER EUROPA FACILITY     ,,
108,,,Schs Cap Maint & Accessibility          ,CS080SD,New Construction Conversion and Renovation,,B4,Contractor - Site works                 ,16616.39,05/12/2016,C,BREYER GROUP PLC              ,,
109,,,Schs Cap Maint & Accessibility          ,CS080SD,New Construction Conversion and Renovation,,B4,Contractor - Site works                 ,24769.67,04/12/2016,C,BREYER GROUP PLC              ,,
110,,,Schs Cap Maint & Accessibility          ,CS080SD,New Construction Conversion and Renovation,,B4,Contractor - Site works                 ,60900,14/12/2016,C,BILFINGER EUROPA FACILITY     ,,
111,,,Hatfield                                ,CS081SA,New Construction Conversion and Renovation,,B4,Contractor - Site works                 ,36665.7,18/11/2016,C,BOLT & HEEKS LTD              ,,
112,,,New School 6fe,CS085SF,New Construction Conversion and Renovation,,B1,Consultants Fees D&S Structure          ,23352.34,30/11/2016,C,DHP (UK) LLP                  ,,
113,,,New School 6fe,CS085SF,New Construction Conversion and Renovation,,B2,Site Surveys D&S Structure              ,2530,25/11/2016,C,WATERMAN INFRASTRUCT'R & ENV  ,,
114,,,Harris Merton 2fe                       ,CS085SG,New Construction Conversion and Renovation,,B1,Consultants Fees D&S Structure          ,1033,30/11/2016,C,SUMMERS INMAN                 ,,
115,,,Harris Merton 2fe                       ,CS085SG,New Construction Conversion and Renovation,,B1,Consultants Fees D&S Structure          ,1708.44,30/11/2016,C,HAZLE MCCORMACK YOUNG LLP     ,,
116,,,Primary Expansion Contingency,CS094AA,New Construction Conversion and Renovation,,B1,Consultants Fees D&S Structure          ,550,26/11/2016,C,EIGHT ASSOCIATES LTD          ,,
117,,,IT Equipment                            ,CT006EA,Vehicles Plant Equipment and Machinery,,D3,Equipment                               ,849.3,09/12/2016,C,SPECIALIST COMPUTER CENT. PLC ,,
118,,,IT Equipment                            ,CT006EA,Vehicles Plant Equipment and Machinery,,D3,Equipment                               ,1350,28/11/2016,C,NET-CTRL                      ,,
119,,,IT Equipment                            ,CT006EA,Other Capital Expenditure,,E3,Miscellaneous Capital Expendit          ,1395,30/11/2016,C,NETWORK SOLUTIONS INC         ,,
120,,,IT Equipment                            ,CT006EA,Other Capital Expenditure,,E3,Miscellaneous Capital Expendit          ,1495,30/11/2016,C,NETWORK SOLUTIONS INC         ,,
121,,,IT Equipment                            ,CT006EA,Other Capital Expenditure,,E3,Miscellaneous Capital Expendit          ,1500,28/11/2016,C,ASSURED NETWORK SERVICES LTD  ,,
122,,,Improving Information Systems           ,CT020NB,Vehicles Plant Equipment and Machinery,,D5,Software                                ,1492.5,30/11/2016,C,ADVANCED BUSINESS SOLUTIONS   ,,
123,,,Improving Information Systems           ,CT020NB,Vehicles Plant Equipment and Machinery,,D5,Software                                ,19400,31/10/2016,C,ADVANCED BUSINESS SOLUTIONS   ,,
124,Central Services,Council tax collection,Local Taxation Services,E02100,Supplies & Services           ,Services                      ,DF09,Miscellaneous Fees                      ,590.07,30/11/2016,R,EXPERIAN LTD                  ,,
125,Central Services,Council tax collection,Local Taxation Services,E02100,Supplies & Services           ,Services                      ,DF11,Counsel's Fees                          ,3910.85,19/12/2016,R,HMCTS                         ,,
126,Central Services,Council tax collection,Local Taxation Services,E02100,Supplies & Services           ,Comms and Computing           ,DG09,Computer Purchases - Misc               ,800,16/12/2016,R,CIVICA UK LIMITED             ,,
127,Central Services,Council tax collection,Local Taxation Services,E02100,Supplies & Services           ,Comms and Computing           ,DG09,Computer Purchases - Misc               ,955.58,22/11/2016,R,CIVICA UK LIMITED             ,,
128,Central Services,Council tax collection,Local Taxation Services,E02100,Supplies & Services           ,Comms and Computing           ,DG09,Computer Purchases - Misc               ,2590,07/12/2016,R,CIVICA UK LIMITED             ,,
129,Central Services,Council tax collection,Local Taxation Services,E02100,Supplies & Services           ,Comms and Computing           ,DG09,Computer Purchases - Misc               ,3100,16/12/2016,R,CIVICA UK LIMITED             ,,
130,Central Services,Council tax collection,Local Taxation Services,E02100,Supplies & Services           ,Comms and Computing           ,DG09,Computer Purchases - Misc               ,3644.38,23/11/2016,R,CIVICA UK LIMITED             ,,
131,Central Services,Council tax collection,Local Taxation Services,E02100,Supplies & Services           ,Comms and Computing           ,DG09,Computer Purchases - Misc               ,13242,07/12/2016,R,CIVICA UK LIMITED             ,,
132,Central Services,Council tax collection,Local Taxation Bailiffs,E02101,Supplies & Services           ,Services                      ,DF18,Bailiffs' fees                          ,686.82,30/11/2016,R,HPI LIMITED                   ,,
133,Central Services,Council tax collection,Local Taxation Bailiffs,E02101,Supplies & Services           ,Services                      ,DF18,Bailiffs' fees                          ,877.5,03/12/2016,R,QUARTIX                       ,,
134,Central Services,SupS Payroll,Payroll,E02140,Supplies & Services           ,Expenses                      ,DH14,Prizes and Awards                       ,700,01/12/2016,R,THE GIFT VOUCHER SHOP LTD     ,,
135,Central Services,SupS Facilities,Post Room,E02220,Supplies & Services           ,Comms and Computing           ,DG04,Postage - General                       ,502,02/12/2016,R,CHESSINGTON CARS AND COURIERS ,,
136,Central Services,SupS Facilities,Post Room,E02220,Supplies & Services           ,Comms and Computing           ,DG04,Postage - General                       ,572.27,05/12/2016,R,STREETWISE COURIERS           ,,
137,Central Services,SupS Facilities,Post Room,E02220,Supplies & Services           ,Comms and Computing           ,DG04,Postage - General                       ,698.02,28/11/2016,R,STREETWISE COURIERS           ,,
138,Central Services,SupS Facilities,Post Room,E02220,Supplies & Services           ,Comms and Computing           ,DG04,Postage - General                       ,736.02,21/11/2016,R,STREETWISE COURIERS           ,,
139,Central Services,SupS Facilities,Security Services,E02221,Third Party Payments          ,Private Contractors           ,EH10,Contract Payments                       ,9399.25,01/12/2016,R,SIGHT & SOUND                 ,,
140,Central Services,SupS Facilities,Facilities,E02231,Premises Related Expenditure  ,RepairsAlterations&MtceOfBldgs,BA02,ENERGY CONSERVATION                     ,1443.2,02/12/2016,R,JOJU SOLA                     ,,
141,Central Services,SupS Facilities,Facilities,E02231,Premises Related Expenditure  ,RepairsAlterations&MtceOfBldgs,BA02,ENERGY CONSERVATION                     ,7750,08/12/2016,R,KINECT ENERGY UK LTD          ,,
142,Central Services,SupS Facilities,Corporate Services Buildings,E02240,Premises Related Expenditure  ,RepairsAlterations&MtceOfBldgs,BA01,DDM - General Building                  ,1750,23/05/2016,R,TASK FORCE (UK) LTD           ,,
143,Central Services,SupS Facilities,Corporate Services Buildings,E02240,Premises Related Expenditure  ,RepairsAlterations&MtceOfBldgs,BA01,DDM - General Building                  ,3750,16/10/2016,R,S.P.P.C.                      ,,
144,Central Services,SupS Facilities,Corporate Services Buildings,E02240,Premises Related Expenditure  ,Energy Costs                  ,BB03,Gas (incl. Butane)                      ,7289.32,07/12/2016,R,GAZPROM MARKETING&TRADING LTD ,,
145,Central Services,SupS Facilities,Corporate Services Buildings,E02240,Premises Related Expenditure  ,Energy Costs                  ,BB03,Gas (incl. Butane)                      ,8475.05,09/11/2016,R,GAZPROM MARKETING&TRADING LTD ,,
146,Central Services,SupS Facilities,Corporate Services Buildings,E02240,Premises Related Expenditure  ,Energy Costs                  ,BB03,Gas (incl. Butane)                      ,12843.15,10/10/2016,R,GAZPROM MARKETING&TRADING LTD ,,
147,Central Services,SupS Facilities,Corporate Services Buildings,E02240,Premises Related Expenditure  ,Water Services                ,BE01,Use of Water (Metered)                  ,710.22,25/11/2016,R,SUTTON AND EAST SURREY WATER  ,,
148,Childrens & Education Services,Strategic Management,PDC,E02254,Premises Related Expenditure  ,Cleaning and Domestic Supplies,BH03,Cleaning Services                       ,2397.5,30/11/2016,R,JULIUS RUTHERFOORD & CO LTD   ,,
149,Childrens & Education Services,Strategic Management,PDC,E02254,Premises Related Expenditure  ,Cleaning and Domestic Supplies,BH03,Cleaning Services                       ,2397.5,30/09/2016,R,JULIUS RUTHERFOORD & CO LTD   ,,
150,Childrens & Education Services,Strategic Management,PDC,E02254,Premises Related Expenditure  ,Cleaning and Domestic Supplies,BH03,Cleaning Services                       ,2618.8,30/10/2016,R,JULIUS RUTHERFOORD & CO LTD   ,,
151,Adult Social Care,OP 65 & Over Day Care,Pollards Hill Day Centre,E02270,Premises Related Expenditure  ,Cleaning and Domestic Supplies,BH01,Cleaning Materials                      ,504,07/12/2016,R,GREENHAM                      ,,
152,Adult Social Care,OP 65 & Over Day Care,Pollards Hill Day Centre,E02270,Premises Related Expenditure  ,Cleaning and Domestic Supplies,BH01,Cleaning Materials                      ,703.68,30/11/2016,R,NERCON LTD                    ,,
153,Adult Social Care,OP 65 & Over Day Care,Pollards Hill Day Centre,E02270,Premises Related Expenditure  ,Cleaning and Domestic Supplies,BH03,Cleaning Services                       ,865.12,01/12/2016,R,BIRKIN CLEANING SERVICES LTD  ,,
154,Adult Social Care,OP 65 & Over Day Care,Pollards Hill Day Centre,E02270,Premises Related Expenditure  ,Cleaning and Domestic Supplies,BH03,Cleaning Services                       ,885.31,01/12/2016,R,BIRKIN CLEANING SERVICES LTD  ,,
155,Adult Social Care,OP 65 & Over Day Care,Pollards Hill Day Centre,E02270,Premises Related Expenditure  ,Cleaning and Domestic Supplies,BH03,Cleaning Services                       ,892.7,01/12/2016,R,BIRKIN CLEANING SERVICES LTD  ,,
156,Adult Social Care,OP 65 & Over Day Care,Pollards Hill Day Centre,E02270,Premises Related Expenditure  ,Cleaning and Domestic Supplies,BH03,Cleaning Services                       ,1304.95,01/12/2016,R,BIRKIN CLEANING SERVICES LTD  ,,
157,Adult Social Care,OP 65 & Over Day Care,Pollards Hill Day Centre,E02270,Premises Related Expenditure  ,Cleaning and Domestic Supplies,BH03,Cleaning Services                       ,1497.38,01/12/2016,R,BIRKIN CLEANING SERVICES LTD  ,,
158,Adult Social Care,OP 65 & Over Day Care,Pollards Hill Day Centre,E02270,Premises Related Expenditure  ,Cleaning and Domestic Supplies,BH03,Cleaning Services                       ,1591.8,01/12/2016,R,BIRKIN CLEANING SERVICES LTD  ,,
159,Adult Social Care,OP 65 & Over Day Care,Pollards Hill Day Centre,E02270,Premises Related Expenditure  ,Cleaning and Domestic Supplies,BH03,Cleaning Services                       ,1623.45,01/12/2016,R,BIRKIN CLEANING SERVICES LTD  ,,
160,Adult Social Care,OP 65 & Over Day Care,Pollards Hill Day Centre,E02270,Premises Related Expenditure  ,Cleaning and Domestic Supplies,BH03,Cleaning Services                       ,1764.19,01/12/2016,R,BIRKIN CLEANING SERVICES LTD  ,,
161,Adult Social Care,OP 65 & Over Day Care,Pollards Hill Day Centre,E02270,Premises Related Expenditure  ,Cleaning and Domestic Supplies,BH03,Cleaning Services                       ,5216.05,01/12/2016,R,BIRKIN CLEANING SERVICES LTD  ,,
162,Adult Social Care,OP 65 & Over Day Care,Pollards Hill Day Centre,E02270,Premises Related Expenditure  ,Cleaning and Domestic Supplies,BH03,Cleaning Services                       ,7302.68,01/12/2016,R,BIRKIN CLEANING SERVICES LTD  ,,
163,Central Services,SupS Facilities,CORPORATE ELECTRICITY RECHARGE,E02275,Premises Related Expenditure  ,Energy Costs                  ,BB02,Electricity                             ,1658.48,19/12/2016,R,SCOTTISH POWER                ,,
164,Central Services,SupS Facilities,CORPORATE ELECTRICITY RECHARGE,E02275,Premises Related Expenditure  ,Energy Costs                  ,BB02,Electricity                             ,30759.42,19/12/2016,R,SCOTTISH POWER                ,,
165,Adult Social Care,PS u65 Day Care,C & H Buildings,E02345,Premises Related Expenditure  ,RepairsAlterations&MtceOfBldgs,BA03,DDM - Mechanical                        ,1400,16/11/2016,R,BILFINGER EUROPA FACILITY     ,,
166,Adult Social Care,PS u65 Day Care,C & H Buildings,E02345,Premises Related Expenditure  ,RepairsAlterations&MtceOfBldgs,BA03,DDM - Mechanical                        ,3500,16/11/2016,R,BILFINGER EUROPA FACILITY     ,,
167,Central Services,SupS DOF,AD RESOURCES,E04061,Supplies & Services           ,Services                      ,DF03,CONSULTANTS                             ,7360,01/12/2016,R,PUBLIC SECTOR CONSULTANTS     ,,
168,Central Services,Officer support time,Corporately Funded Items,E04065,Supplies & Services           ,Expenses                      ,DH16,Compensation Payments                   ,45000,05/12/2016,R,WRIGHT HASSALL LLP            ,,
169,Central Services,Officer support time,Corporately Funded Items,E04065,Supplies & Services           ,Expenses                      ,DH16,Compensation Payments                   ,45000,01/12/2016,R,WRIGHT HASSALL LLP            ,,
170,Central Services,SupS Strategic Finance,Treasury & Insurance,E06222,Employees                     ,Direct Employee Expenses      ,AA17,Agency Staff & Casual Paymts            ,2260,14/12/2016,R,HAYS SPECIALIST RECRUITM'T LTD,,
171,Central Services,SupS Strategic Finance,Treasury & Insurance,E06222,Employees                     ,Direct Employee Expenses      ,AA17,Agency Staff & Casual Paymts            ,2260,07/12/2016,R,HAYS SPECIALIST RECRUITM'T LTD,,
172,Central Services,SupS Strategic Finance,Treasury & Insurance,E06222,Employees                     ,Direct Employee Expenses      ,AA17,Agency Staff & Casual Paymts            ,2260,07/12/2016,R,HAYS SPECIALIST RECRUITM'T LTD,,
173,Central Services,SupS Strategic Finance,Treasury & Insurance,E06222,Employees                     ,Direct Employee Expenses      ,AA17,Agency Staff & Casual Paymts            ,2260,23/11/2016,R,HAYS SPECIALIST RECRUITM'T LTD,,
174,Central Services,Registration of electors,Electoral Registration,E10285,Supplies & Services           ,Comms and Computing           ,DG02,Software Licences                       ,3590.1,30/11/2016,R,HALAROSE LIMITED              ,,
175,Central Services,Registration of electors,Electoral Registration,E10285,Supplies & Services           ,Comms and Computing           ,DG04,Postage - General                       ,612.81,24/11/2016,R,FINANCIAL DATA MANAGEMENT PLC ,,
176,Central Services,SupS Legal,Shared Legal Service,E10288,Employees                     ,Indirect Employee Expenses    ,AB02,Recruitment Adverts                     ,3450,24/11/2016,R,THE LAW SOC.(LAW GAZETTE)     ,,
177,Central Services,SupS Legal,Shared Legal Service,E10288,Employees                     ,Indirect Employee Expenses    ,AB57,External Training Costs                 ,1913.16,06/12/2016,R,CGJ ROBERTS - HRC GROUP       ,,
178,Central Services,SupS Legal,Shared Legal Service,E10288,Supplies & Services           ,Equip Furniture/Materials     ,DA80,Books                                   ,45539,18/11/2016,R,LEXIS NEXIS                   ,,
179,Central Services,SupS Legal,Shared Legal Service,E10288,Supplies & Services           ,Prntng Stnry Gen Off Exp      ,DE30,General Office Expense                  ,914.34,30/11/2016,R,RESTORE PLC                   ,,
180,Central Services,SupS Legal,Shared Legal Service,E10288,Supplies & Services           ,Comms and Computing           ,DG02,Software Licences                       ,2575,18/11/2016,R,LEXIS NEXIS                   ,,
181,Central Services,SupS Legal,Shared Legal Service,E10288,Supplies & Services           ,Comms and Computing           ,DG04,Postage - General                       ,750,28/11/2016,R,NEOPOST FINANCE LIMITED       ,,
182,Central Services,SupS Legal,Shared Legal Service,E10288,Supplies & Services           ,Grants and Subscriptions      ,DJ04,Subscriptions                           ,2010,01/01/2016,R,CILEX                         ,,
183,Central Services,SupS Legal,Richmond Legal,E10289,Supplies & Services           ,Services                      ,DF11,Counsel's Fees                          ,750,24/11/2016,R,REDACTED,,
184,Central Services,SupS Legal,Richmond Legal,E10289,Supplies & Services           ,Services                      ,DF95,Services from Provider                  ,1109.5,28/10/2016,R,REDACTED,,
185,Central Services,SupS Legal,Richmond Legal,E10289,Supplies & Services           ,Services                      ,DF95,Services from Provider                  ,1365,28/10/2016,R,REDACTED,,
186,Central Services,SupS Legal,Richmond Legal,E10289,Supplies & Services           ,Services                      ,DF95,Services from Provider                  ,3634,30/09/2016,R,SHARPE PRITCHARD SOLICITORS   ,,
187,Central Services,SupS Legal,Richmond Legal,E10289,Supplies & Services           ,Services                      ,DF95,Services from Provider                  ,6371,30/06/2016,R,SHARPE PRITCHARD SOLICITORS   ,,
188,Central Services,SupS Legal,LBR INCOME,E10290,Third Party Payments          ,Other Local Authorities       ,EB01,Payments to OLAs                        ,4740,12/12/2016,R,L.B OF RICHMOND UPON THAMES   ,,
189,Central Services,SupS Legal,K&S Shared Legal,E10291,Third Party Payments          ,Other Local Authorities       ,EB01,Payments to OLAs                        ,1480,12/12/2016,R,SUTTON HOUSING PARTNERSHIP LTD,,
190,Central Services,SupS Legal,K&S Shared Legal,E10291,Third Party Payments          ,Other Local Authorities       ,EB01,Payments to OLAs                        ,4320,12/12/2016,R,LONDON BOROUGH OF SUTTON      ,,
191,Central Services,SupS Legal,K&S Shared Legal,E10291,Third Party Payments          ,Other Local Authorities       ,EB01,Payments to OLAs                        ,5430,12/12/2016,R,KINGSTON CORPORATION          ,,
192,Central Services,SupS Legal,Kingston Legal                          ,E10292,Supplies & Services           ,Services                      ,DF11,Counsel's Fees                          ,1575,26/10/2016,R,REDACTED,,
193,Central Services,SupS Legal,Kingston Legal                          ,E10292,Supplies & Services           ,Services                      ,DF11,Counsel's Fees                          ,6215,31/05/2016,R,REDACTED,,
194,Central Services,SupS Legal,Kingston Legal                          ,E10292,Supplies & Services           ,Services                      ,DF11,Counsel's Fees                          ,9950,22/11/2016,R,REDACTED,,
195,Central Services,SupS Legal,Sutton Legal                            ,E10293,Supplies & Services           ,Services                      ,DF11,Counsel's Fees                          ,625,23/11/2016,R,REDACTED,,
196,Central Services,SupS Legal,Sutton Legal                            ,E10293,Supplies & Services           ,Services                      ,DF11,Counsel's Fees                          ,625,11/11/2016,R,JONATHAN MOFFETT              ,,
197,Central Services,SupS Legal,Sutton Legal                            ,E10293,Supplies & Services           ,Services                      ,DF11,Counsel's Fees                          ,650,17/11/2016,R,REDACTED,,
198,Central Services,SupS Legal,Sutton Legal                            ,E10293,Supplies & Services           ,Services                      ,DF11,Counsel's Fees                          ,850,18/11/2016,R,REDACTED,,
199,Central Services,SupS Legal,Sutton Legal                            ,E10293,Supplies & Services           ,Services                      ,DF11,Counsel's Fees                          ,890,21/11/2016,R,REDACTED,,
200,Central Services,SupS Legal,Sutton Legal                            ,E10293,Supplies & Services           ,Services                      ,DF11,Counsel's Fees                          ,1000,04/11/2016,R,REDACTED,,
201,Central Services,SupS Legal,Sutton Legal                            ,E10293,Supplies & Services           ,Services                      ,DF11,Counsel's Fees                          ,1000,04/11/2016,R,REDACTED,,
202,Central Services,SupS Legal,Sutton Legal                            ,E10293,Supplies & Services           ,Services                      ,DF11,Counsel's Fees                          ,1350,02/12/2016,R,REDACTED,,
203,Central Services,SupS Legal,Sutton Legal                            ,E10293,Supplies & Services           ,Services                      ,DF11,Counsel's Fees                          ,1850,02/11/2016,R,REDACTED,,
204,Central Services,SupS Legal,Sutton Legal                            ,E10293,Supplies & Services           ,Services                      ,DF14,Doctors and Other Fees                  ,742.5,01/11/2016,R,REDACTED,,
205,Central Services,SupS Legal,Sutton Legal                            ,E10293,Supplies & Services           ,Services                      ,DF14,Doctors and Other Fees                  ,1192.9,25/07/2016,R,EXPERT IN MIND                ,,
206,Central Services,SupS Legal,Sutton Legal                            ,E10293,Supplies & Services           ,Services                      ,DF14,Doctors and Other Fees                  ,2755.2,17/10/2016,R,JULIA HUGHES LTD              ,,
207,Central Services,SupS Legal,Achieving for Children (AFC),E10295,Supplies & Services           ,Services                      ,DF11,Counsel's Fees                          ,520,21/10/2016,R,REDACTED,,
208,Central Services,SupS Legal,Achieving for Children (AFC),E10295,Supplies & Services           ,Services                      ,DF11,Counsel's Fees                          ,735,01/12/2016,R,REDACTED,,
209,Central Services,SupS Legal,Achieving for Children (AFC),E10295,Supplies & Services           ,Services                      ,DF11,Counsel's Fees                          ,865,21/11/2016,R,REDACTED,,
210,Central Services,SupS Legal,Achieving for Children (AFC),E10295,Supplies & Services           ,Services                      ,DF11,Counsel's Fees                          ,1000,22/11/2016,R,REDACTED,,
211,Central Services,SupS Legal,Achieving for Children (AFC),E10295,Supplies & Services           ,Services                      ,DF11,Counsel's Fees                          ,1300,18/11/2016,R,REDACTED,,
212,Central Services,SupS Legal,Achieving for Children (AFC),E10295,Supplies & Services           ,Services                      ,DF11,Counsel's Fees                          ,2070,21/11/2016,R,REDACTED,,
213,Central Services,SupS Legal,Achieving for Children (AFC),E10295,Supplies & Services           ,Services                      ,DF14,Doctors and Other Fees                  ,607.15,06/12/2016,R,REDACTED,,
214,Central Services,SupS Legal,Achieving for Children (AFC),E10295,Supplies & Services           ,Services                      ,DF14,Doctors and Other Fees                  ,810,23/09/2016,R,REDACTED,,
215,Central Services,SupS Legal,Achieving for Children (AFC),E10295,Supplies & Services           ,Services                      ,DF14,Doctors and Other Fees                  ,1812,30/07/2016,R,REDACTED,,
216,Central Services,SupS Legal,Achieving for Children (AFC),E10295,Supplies & Services           ,Services                      ,DF14,Doctors and Other Fees                  ,1850,21/11/2016,R,REDACTED,,
217,Central Services,SupS Legal,Wandsworth Project(SLLP),E10296,Supplies & Services           ,Comms and Computing           ,DG08,Computer Hardware                       ,7455,06/12/2016,R,THINTECH LIMITED              ,,
218,Central Services,SupS IT,Social Care Info System (SCI)           ,E14357,Employees                     ,Direct Employee Expenses      ,AA17,Agency Staff & Casual Paymts            ,500,06/12/2016,R,NUMBER 10 INTERIM LTD         ,,
219,Central Services,SupS IT,Social Care Info System (SCI)           ,E14357,Employees                     ,Direct Employee Expenses      ,AA17,Agency Staff & Casual Paymts            ,1575,27/11/2016,R,HAMPTON'S RESOURCING          ,,
220,Central Services,SupS IT,Social Care Info System (SCI)           ,E14357,Employees                     ,Direct Employee Expenses      ,AA17,Agency Staff & Casual Paymts            ,1575,20/11/2016,R,HAMPTON'S RESOURCING          ,,
221,Central Services,SupS IT,Social Care Info System (SCI)           ,E14357,Employees                     ,Direct Employee Expenses      ,AA17,Agency Staff & Casual Paymts            ,1750,08/12/2016,R,NUMBER 10 INTERIM LTD         ,,
222,Central Services,SupS IT,Social Care Info System (SCI)           ,E14357,Employees                     ,Direct Employee Expenses      ,AA17,Agency Staff & Casual Paymts            ,2000,06/12/2016,R,NUMBER 10 INTERIM LTD         ,,
223,Central Services,SupS IT,Social Care Info System (SCI)           ,E14357,Employees                     ,Direct Employee Expenses      ,AA17,Agency Staff & Casual Paymts            ,2835,13/11/2016,R,HAMPTON'S RESOURCING          ,,
224,Central Services,SupS IT,Social Care Info System (SCI)           ,E14357,Employees                     ,Direct Employee Expenses      ,AA17,Agency Staff & Casual Paymts            ,6900,28/11/2016,R,NUMBER 10 INTERIM LTD         ,,
225,Central Services,SupS IT,Social Care Info System (SCI)           ,E14357,Employees                     ,Direct Employee Expenses      ,AA17,Agency Staff & Casual Paymts            ,7500,26/11/2016,R,NUMBER 10 INTERIM LTD         ,,
226,Central Services,SupS IT,Social Care Info System (SCI)           ,E14357,Employees                     ,Direct Employee Expenses      ,AA17,Agency Staff & Casual Paymts            ,8250,05/12/2016,R,NUMBER 10 INTERIM LTD         ,,
227,Central Services,SupS IT,Social Care Info System (SCI)           ,E14357,Supplies & Services           ,Services                      ,DF03,Consultants                             ,2013.96,14/12/2016,R,INTERQUEST GROUP UK LIMITED   ,,
228,Central Services,SupS IT,Social Care Info System (SCI)           ,E14357,Supplies & Services           ,Services                      ,DF03,Consultants                             ,6449.65,14/12/2016,R,INTERQUEST GROUP UK LIMITED   ,,
229,Central Services,SupS IT,Social Care Info System (SCI)           ,E14357,Supplies & Services           ,Services                      ,DF03,Consultants                             ,7847.3,14/12/2016,R,INTERQUEST GROUP UK LIMITED   ,,
230,Central Services,SupS IT,Social Care Info System (SCI)           ,E14357,Supplies & Services           ,Services                      ,DF03,Consultants                             ,8622.93,14/12/2016,R,INTERQUEST GROUP UK LIMITED   ,,
231,Central Services,SupS IT,Social Care Info System (SCI)           ,E14357,Supplies & Services           ,Services                      ,DF03,Consultants                             ,11970.48,14/12/2016,R,INTERQUEST GROUP UK LIMITED   ,,
232,Central Services,SupS IT,Social Care Info System (SCI)           ,E14357,Supplies & Services           ,Services                      ,DF03,Consultants                             ,13094.37,14/12/2016,R,INTERQUEST GROUP UK LIMITED   ,,
233,Central Services,SupS IT,BI IT Projects,E14360,Employees                     ,Direct Employee Expenses      ,AA17,Agency Staff & Casual Paymts            ,2240,23/11/2016,R,REDACTED,,
234,Central Services,SupS IT,BI IT Projects,E14360,Employees                     ,Direct Employee Expenses      ,AA17,Agency Staff & Casual Paymts            ,5600,07/12/2016,R,REDACTED,,
235,CS -Oth Operating Inc & Expend,SupS Codes No Longer Used,Emergency Planning,E14362,Supplies & Services           ,Services                      ,DF04,Miscellaneous Expenses                  ,12000,30/06/2016,R,LLOYDS BANK PLC               ,,
236,Central Services,SupS IT,Systems & Projects,E14366,Supplies & Services           ,Comms and Computing           ,DG02,Software Licences                       ,2600,28/11/2016,R,FIBONACCI LTD                 ,,
237,Central Services,SupS IT,Systems & Projects,E14366,Supplies & Services           ,Comms and Computing           ,DG61,Computer Servs Special                  ,5376,30/11/2016,R,PITNEY BOWES SOFTWARE EUROPE  ,,
238,Central Services,SupS IT,Systems & Projects,E14366,Supplies & Services           ,Comms and Computing           ,DG63,Software Licences - Data                ,1380.7,08/11/2016,R,CIVICA UK LIMITED             ,,
239,Central Services,SupS IT,Systems & Projects,E14366,Supplies & Services           ,Comms and Computing           ,DG65,Application Licences                    ,11319.63,07/12/2016,R,OPEN TEXT UK LTD              ,,
240,Central Services,SupS IT,Operations & Telecomms,E14367,Supplies & Services           ,Comms and Computing           ,DG15,Network Maintenance                     ,10920,28/11/2016,R,NET-CTRL                      ,,
241,Central Services,SupS IT,Operations & Telecomms,E14367,Supplies & Services           ,Comms and Computing           ,DG54,Corporate Telephones                    ,751.33,24/11/2016,R,VIRGIN MEDIA PAYMENTS LTD     ,,
242,Central Services,SupS IT,Operations & Telecomms,E14367,Supplies & Services           ,Comms and Computing           ,DG54,Corporate Telephones                    ,752.11,25/10/2016,R,VIRGIN MEDIA PAYMENTS LTD     ,,
243,Central Services,SupS IT,Operations & Telecomms,E14367,Supplies & Services           ,Comms and Computing           ,DG54,Corporate Telephones                    ,6177.27,02/11/2016,R,COLT TECHNOLOGY SERVICES      ,,
244,Central Services,SupS IT,Operations & Telecomms,E14367,Supplies & Services           ,Comms and Computing           ,DG54,Corporate Telephones                    ,6705.57,02/12/2016,R,COLT TECHNOLOGY SERVICES      ,,
245,Central Services,SupS IT,Operations & Telecomms,E14367,Supplies & Services           ,Comms and Computing           ,DG54,Corporate Telephones                    ,11700,17/11/2016,R,ORANGE P'MENT PRO'SING AIRTIME,,
246,Central Services,SupS IT,Operations & Telecomms,E14367,Supplies & Services           ,Comms and Computing           ,DG54,Corporate Telephones                    ,47469.65,27/11/2016,R,BRITISH TELECOMMUNICATIONS PLC,,
247,Central Services,SupS IT,Distributed Services,E14368,Supplies & Services           ,Comms and Computing           ,DG63,Software Licences - Data                ,950,30/11/2016,R,NCC GROUP SECURITY SERV'S LTD ,,
248,Central Services,SupS IT,Distributed Services,E14368,Supplies & Services           ,Comms and Computing           ,DG63,Software Licences - Data                ,1260.48,06/12/2016,R,PROCESSFLOWS UK LTD           ,,
249,Central Services,SupS IT,Distributed Services,E14368,Supplies & Services           ,Comms and Computing           ,DG63,Software Licences - Data                ,2710,09/12/2016,R,NETFORT TECHNOLOGIES LTD      ,,
250,Central Services,SupS IT,Distributed Services,E14368,Supplies & Services           ,Comms and Computing           ,DG63,Software Licences - Data                ,4174.75,05/12/2016,R,NU NETWORK PRODUCTS LTD       ,,
251,Central Services,SupS IT,Distributed Services,E14368,Supplies & Services           ,Comms and Computing           ,DG63,Software Licences - Data                ,4437,05/12/2016,R,NU NETWORK PRODUCTS LTD       ,,
252,Central Services,SupS IT,Distributed Services,E14368,Supplies & Services           ,Comms and Computing           ,DG63,Software Licences - Data                ,6026,09/12/2016,R,NETFORT TECHNOLOGIES LTD      ,,
253,Central Services,SupS IT,Distributed Services,E14368,Supplies & Services           ,Comms and Computing           ,DG65,Application Licences                    ,2622.64,06/12/2016,R,CAPITA IT SERVICES LTD        ,,
254,Central Services,SupS IT,Distributed Services,E14368,Supplies & Services           ,Comms and Computing           ,DG65,Application Licences                    ,10572.62,06/12/2016,R,CAPITA IT SERVICES LTD        ,,
255,Central Services,SupS IT,Corp Saving-IT Consolidation,E14370,Premises Related Expenditure  ,RepairsAlterations&MtceOfBldgs,BA06,Repairs & Maintenance General           ,1689.95,30/11/2016,R,SUNA COMMUNICATION            ,,
256,Central Services,SupS IT,CS Procurement,E14372,Employees                     ,Direct Employee Expenses      ,AA17,Agency Staff & Casual Paymts            ,2475,17/11/2016,R,HAYS SPECIALIST RECRUITM'T LTD,,
257,Central Services,SupS IT,CS Procurement,E14372,Employees                     ,Direct Employee Expenses      ,AA17,Agency Staff & Casual Paymts            ,2475,07/12/2016,R,HAYS SPECIALIST RECRUITM'T LTD,,
258,Central Services,SupS IT,CS Procurement,E14372,Employees                     ,Direct Employee Expenses      ,AA17,Agency Staff & Casual Paymts            ,2636.25,07/12/2016,R,HAYS SPECIALIST RECRUITM'T LTD,,
259,Central Services,SupS IT,CS Procurement,E14372,Employees                     ,Direct Employee Expenses      ,AA17,Agency Staff & Casual Paymts            ,2636.25,30/11/2016,R,HAYS SPECIALIST RECRUITM'T LTD,,
260,Central Services,SupS IT,CHAS Projects,E14378,Employees                     ,Direct Employee Expenses      ,AA17,Agency Staff & Casual Paymts            ,7600,05/12/2016,R,REDACTED,,
261,Central Services,SupS IT,CHAS Projects,E14378,Employees                     ,Direct Employee Expenses      ,AA17,Agency Staff & Casual Paymts            ,8450,07/11/2016,R,REDACTED,,
262,Cultural Env Reg&Plan Services,Mgt & Support (Env),Shared Regulatory Service Proj,G00091,Employees                     ,Direct Employee Expenses      ,AA17,Agency Staff & Casual Paymts            ,3361.75,07/12/2016,R,HAYS SPECIALIST RECRUITM'T LTD,,
263,Cultural Env Reg&Plan Services,Mgt & Support (Env),Shared Regulatory Service Proj,G00091,Employees                     ,Direct Employee Expenses      ,AA17,Agency Staff & Casual Paymts            ,3361.75,30/11/2016,R,HAYS SPECIALIST RECRUITM'T LTD,,
264,Cultural Env Reg&Plan Services,Mgt & Support (Env),Senior Mgt. - E.S.C.,G00100,Employees                     ,Indirect Employee Expenses    ,AB02,Recruitment Adverts                     ,2541.6,30/11/2016,R,GATENBY SANDERSON LIMITED     ,,
265,Highways & Transport Services,Winter Maintenance.,Winter Maintenance,G00150,Third Party Payments          ,Private Contractors           ,EH10,Contract Payments                       ,1250,13/12/2016,R,MARTIN SACHS ASSOCIATES LTD   ,,
266,Highways & Transport Services,Saf mtc prin/oth rds not split,Traffic Signs.,G00160,Third Party Payments          ,Private Contractors           ,EH02,Miscellaneous Hired Services            ,541.43,16/12/2016,R,FM CONWAY LTD                 ,,
267,Highways & Transport Services,Transport Plg/Policy/Strategy,CPZ implementation & Consultat,G00211,Supplies & Services           ,Services                      ,DF02,Misc Advertising/Publicity              ,552,11/11/2016,R,NEWSQUEST MEDIA GROUP LTD     ,,
268,Highways & Transport Services,Transport Plg/Policy/Strategy,CPZ implementation & Consultat,G00211,Third Party Payments          ,Private Contractors           ,EH56,Carriageway/Fway Maint                  ,693,30/11/2016,R,UK POWER NETWORKS (OPERATIONS),,
269,Highways & Transport Services,Traffic Management,Tr Man & Accid Sch,G00220,Supplies & Services           ,Services                      ,DF02,Misc Advertising/Publicity              ,540,18/11/2016,R,NEWSQUEST MEDIA GROUP LTD     ,,
270,Highways & Transport Services,Traffic Management,Tr Man & Accid Sch,G00220,Supplies & Services           ,Comms and Computing           ,DG07,Computer Software                       ,580.99,07/12/2016,R,SOFTCAT LTD                   ,,
271,Highways & Transport Services,Off-street parking,Car Parks (Unloc),G00291,Third Party Payments          ,Private Contractors           ,EH02,Miscellaneous Hired Services            ,3666,30/11/2016,R,COBALT TELEPHONE TECHNOLOGIES ,,
272,Highways & Transport Services,Off-street parking,Coombe Lane,G00292,Premises Related Expenditure  ,Rents                         ,BC01,Miscellaneous Rents                     ,11475,01/12/2016,R,CAPITA PROP'TY & INFRASTRUCT'R,,
273,Highways & Transport Services,Off-street parking,York Close CP,G00298,Premises Related Expenditure  ,Rents                         ,BC01,Miscellaneous Rents                     ,30460.5,23/11/2016,R,TRANSPORT TRADING LTD PROP A/C,,
274,Highways & Transport Services,Off-street parking,St. Georges Car Park EAST,G00300,Premises Related Expenditure  ,Rents                         ,BC01,Miscellaneous Rents                     ,1003.34,14/11/2016,R,LLOYDS BANK SF NOMINEES LTD   ,,
275,Highways & Transport Services,Off-street parking,St. Georges Car Park WEST M/S,G00302,Premises Related Expenditure  ,Rents                         ,BC01,Miscellaneous Rents                     ,3899.25,01/12/2016,R,REDACTED,,
276,Highways & Transport Services,Off-street parking,Peel Hse C P - Upper,G00303,Premises Related Expenditure  ,Rents                         ,BC01,Miscellaneous Rents                     ,3000,23/11/2016,R,TRANSPORT TRADING LTD PROP A/C,,
277,Highways & Transport Services,Off-street parking,"St. Mks Rd, Multi Sty",G00308,Premises Related Expenditure  ,Rents                         ,BC01,Miscellaneous Rents                     ,3626.11,22/11/2016,R,KEMSLEY LLP                   ,,
278,Highways & Transport Services,Road Safety Education,TFL CAPT SPEND (REV),G00326,Third Party Payments          ,Private Contractors           ,EH10,Contract Payments                       ,11146.73,01/12/2016,R,CYCLE CONFIDENT               ,,
279,Highways & Transport Services,Parking Enforcement not split,Operational Running Costs,G00331,Supplies & Services           ,Equip Furniture/Materials     ,DA09,Equip-Purchases                         ,3108.36,27/11/2016,R,R.J.H.WELDING                 ,,
280,Highways & Transport Services,Parking Enforcement not split,Operational Running Costs,G00331,Supplies & Services           ,Services                      ,DF95,Services from Provider                  ,1734.85,27/10/2016,R,REDACTED,,
281,Highways & Transport Services,Parking Enforcement not split,Operational Running Costs,G00331,Supplies & Services           ,Comms and Computing           ,DG61,Computer Servs Special                  ,716.4,30/11/2016,R,IMPERIAL CIVIL ENFORC.SOLUT.  ,,
282,Highways & Transport Services,Hwys/Rds (struct) not split,Footpath Crossings.,G00390,Third Party Payments          ,Private Contractors           ,EH56,Carriageway/Fway Maint                  ,954.91,16/12/2016,R,FM CONWAY LTD                 ,,
283,Cultural Env Reg&Plan Services,Street Clean - Not highways,Street Cleansing (Inc. Gully),G00492,Premises Related Expenditure  ,Rents                         ,BC01,Miscellaneous Rents                     ,791.18,21/09/2016,R,CIRCLE HSE/MERTON PRIORY HOMES,,
284,Adult Social Care,Supported/Sheltered Employment,Shltd Placement Sch.,G00520,Supplies & Services           ,Equip Furniture/Materials     ,DA09,Equip-Purchases                         ,502.89,15/12/2016,R,GREENHAM                      ,,
285,Adult Social Care,Supported/Sheltered Employment,Shltd Placement Sch.,G00520,Supplies & Services           ,Clothing Unfrms Laundry       ,DC02,Clothing & Uniforms                     ,1125.17,06/12/2016,R,SMI GROUP                     ,,
286,Cultural Env Reg&Plan Services,Waste Disposal (not separated),Waste Disposal .,G00550,Third Party Payments          ,Private Contractors           ,EH04,C1 Viridor SLWP Landfill Contract       ,1256,29/11/2016,R,KINGSTON CORPORATION          ,,
287,Cultural Env Reg&Plan Services,Waste Disposal (not separated),Waste Disposal .,G00550,Third Party Payments          ,Private Contractors           ,EH04,C1 Viridor SLWP Landfill Contract       ,23632,29/11/2016,R,KINGSTON CORPORATION          ,,
288,Cultural Env Reg&Plan Services,Waste Disposal (not separated),Waste Disposal .,G00550,Third Party Payments          ,Private Contractors           ,EH04,C1 Viridor SLWP Landfill Contract       ,350724.07,29/11/2016,R,KINGSTON CORPORATION          ,,
289,Cultural Env Reg&Plan Services,Waste Disposal (not separated),Waste Disposal .,G00550,Third Party Payments          ,Private Contractors           ,EH08,SLWP C1 Haulage Dry Recyclable          ,550,29/11/2016,R,KINGSTON CORPORATION          ,,
290,Cultural Env Reg&Plan Services,Waste Disposal (not separated),Waste Disposal .,G00550,Third Party Payments          ,Private Contractors           ,EH66,Clinical Waste Disposal                 ,623.59,30/11/2016,R,S.GRUNDON (WASTE) LTD.        ,,
291,Cultural Env Reg&Plan Services,Civic Amenity Sites,Garth Road Site,G00580,Premises Related Expenditure  ,Water Services                ,BE01,Use of Water (Metered)                  ,650,25/11/2016,R,SUTTON AND EAST SURREY WATER  ,,
292,Cultural Env Reg&Plan Services,Civic Amenity Sites,Garth Road Site,G00580,Premises Related Expenditure  ,Water Services                ,BE01,Use of Water (Metered)                  ,817.93,25/11/2016,R,SUTTON AND EAST SURREY WATER  ,,
293,Cultural Env Reg&Plan Services,Civic Amenity Sites,Garth Road Site,G00580,Third Party Payments          ,Private Contractors           ,EH18,SLWP C3 Food Waste Gate Fees            ,7420.52,29/11/2016,R,KINGSTON CORPORATION          ,,
294,Cultural Env Reg&Plan Services,Civic Amenity Sites,Garth Road Site,G00580,Third Party Payments          ,Private Contractors           ,EH61,Green Waste Disposal                    ,12809.85,29/11/2016,R,KINGSTON CORPORATION          ,,
295,Cultural Env Reg&Plan Services,Public Health,Dog Control.,G00620,Third Party Payments          ,Private Contractors           ,EH02,Miscellaneous Hired Services            ,1499.5,01/11/2016,R,NOAH'S ARK ENVIRONMENTAL SERV.,,
296,Cultural Env Reg&Plan Services,Public Health,Dog Control.,G00620,Third Party Payments          ,Private Contractors           ,EH02,Miscellaneous Hired Services            ,1922.5,01/12/2016,R,NOAH'S ARK ENVIRONMENTAL SERV.,,
297,Cultural Env Reg&Plan Services,Recycling (Collection),Recycling Activities,G00640,Supplies & Services           ,Equip Furniture/Materials     ,DA01,Equipment - R & M                       ,1100,04/11/2016,R,R.J.H.WELDING                 ,,
298,Cultural Env Reg&Plan Services,Recycling (Collection),Recycling Activities,G00640,Third Party Payments          ,Private Contractors           ,EH08,SLWP C1 Haulage Dry Recyclable          ,877.04,29/11/2016,R,KINGSTON CORPORATION          ,,
299,Cultural Env Reg&Plan Services,Recycling (Collection),Recycling Activities,G00640,Third Party Payments          ,Private Contractors           ,EH08,SLWP C1 Haulage Dry Recyclable          ,5434,29/11/2016,R,KINGSTON CORPORATION          ,,
300,Cultural Env Reg&Plan Services,Recycling (Collection),Recycling Activities,G00640,Third Party Payments          ,Private Contractors           ,EH08,SLWP C1 Haulage Dry Recyclable          ,22883.39,29/11/2016,R,KINGSTON CORPORATION          ,,
301,Cultural Env Reg&Plan Services,Recycling (Collection),Recycling Activities,G00640,Third Party Payments          ,Private Contractors           ,EH94,C1 DRY RECYCLING ACCEPTANCE & BULK      ,4989.36,29/11/2016,R,KINGSTON CORPORATION          ,,
302,Cultural Env Reg&Plan Services,Recycling (Collection),Garden Waste Service,G00647,Supplies & Services           ,Equip Furniture/Materials     ,DA09,Equip-Purchases                         ,510,05/12/2016,R,SMI GROUP                     ,,
303,Cultural Env Reg&Plan Services,Recycling (Collection),Garden Waste Service,G00647,Supplies & Services           ,Equip Furniture/Materials     ,DA09,Equip-Purchases                         ,1481.36,30/11/2016,R,SMI GROUP                     ,,
304,Cultural Env Reg&Plan Services,Recycling (Collection),Garden Waste Service,G00647,Third Party Payments          ,Private Contractors           ,EH61,Green Waste Disposal                    ,5588.84,29/11/2016,R,KINGSTON CORPORATION          ,,
305,Cultural Env Reg&Plan Services,Recycling (Collection),Food Waste Service,G00648,Third Party Payments          ,Private Contractors           ,EH19,SLWP C3 FOOD WASTE HAULAGE              ,2694.18,29/11/2016,R,KINGSTON CORPORATION          ,,
306,Cultural Env Reg&Plan Services,Recycling (Collection),Food Waste Service,G00648,Third Party Payments          ,Private Contractors           ,EH19,SLWP C3 FOOD WASTE HAULAGE              ,2878.4,29/11/2016,R,KINGSTON CORPORATION          ,,
307,Cultural Env Reg&Plan Services,Household Waste Collection,Refuse Collection (Operations),G00661,Transport Related Expenditure ,Direct Transport Costs        ,CA52,Reps Vehicles Ins Claims                ,730,22/11/2016,R,FREIGHT TRANSPORT ASSOCIATION ,,
308,Cultural Env Reg&Plan Services,Household Waste Collection,Refuse Collection (Operations),G00661,Supplies & Services           ,Equip Furniture/Materials     ,DA03,Hire of Equipment                       ,2170,01/12/2016,R,COMCIR RADIO COMMUNICATIONS LT,,
309,Cultural Env Reg&Plan Services,Trade Waste Collection,Commercial Waste,G00663,Third Party Payments          ,Private Contractors           ,EH04,C1 VIRIDOR SLWP LANDFILL CONTRACT       ,36064,29/11/2016,R,KINGSTON CORPORATION          ,,
310,Cultural Env Reg&Plan Services,Trade Waste Collection,Commercial Waste,G00663,Third Party Payments          ,Private Contractors           ,EH08,SLWP C1 Haulage Dry Recyclable          ,2031.79,29/11/2016,R,KINGSTON CORPORATION          ,,
311,Cultural Env Reg&Plan Services,Street Clean - Not highways,Waste Enforcement,G00680,Supplies & Services           ,Clothing Unfrms Laundry       ,DC02,Clothing & Uniforms                     ,550,13/10/2016,R,VESTGUARD UK                  ,,
312,Cultural Env Reg&Plan Services,Street Clean - Not highways,Waste Enforcement,G00680,Third Party Payments          ,Private Contractors           ,EH02,Miscellaneous Hired Services            ,25007.4,30/11/2016,R,KINGDOM SECURITY LTD          ,,
313,Cultural Env Reg&Plan Services,Inspect/Enforce (Consumer P),Trading Standards,G00690,Supplies & Services           ,Equip Furniture/Materials     ,DA09,Equip-Purchases                         ,630,13/12/2016,R,REDACTED,,
314,Cultural Env Reg&Plan Services,Food Safety,Health & Safety,G00697,Supplies & Services           ,Grants and Subscriptions      ,DJ04,Subscriptions                           ,875,30/11/2016,R,CHARTERED INST.OF ENVIR.HEALTH,,
315,Cultural Env Reg&Plan Services,Mortuaries,Mortuary,G00700,Third Party Payments          ,Private Contractors           ,EH01,Miscellaneous Contrct Services          ,8693,30/11/2016,R,ST GEORGES UNI HOSP NHS F'DN T,,
316,Cultural Env Reg&Plan Services,Mortuaries,Mortuary,G00700,Third Party Payments          ,Private Contractors           ,EH01,Miscellaneous Contrct Services          ,28141,30/11/2016,R,ST GEORGES UNI HOSP NHS F'DN T,,
317,Cultural Env Reg&Plan Services,Housing Standards,Housing/Env,G00730,Supplies & Services           ,Services                      ,DF03,Consultants                             ,2400,30/03/2016,R,STM ENVIRONMENTAL CONSULTANTS ,,
318,Cultural Env Reg&Plan Services,Mgt & Support (Env),SLWP (rechargeable)                     ,G00905,Supplies & Services           ,Services                      ,DF03,Consultants                             ,4522.5,30/11/2016,R,BRAND NARRATIVE LIMITED       ,,
319,Central Services,SupS Env and Regen,LBR - Pollution                         ,G01004,Supplies & Services           ,Services                      ,DF03,Consultants                             ,1571.35,29/05/2016,R,STM ENVIRONMENTAL CONSULTANTS ,,
320,Central Services,Grants - Voluntary Groups,Vestry Hall,G19290,Premises Related Expenditure  ,RepairsAlterations&MtceOfBldgs,BA79,Security of Premises                    ,1001.79,31/10/2016,R,KINGDOM SECURITY LTD          ,,
321,Central Services,Grants - Voluntary Groups,Vestry Hall,G19290,Premises Related Expenditure  ,Energy Costs                  ,BB03,Gas (incl. Butane)                      ,652.42,07/12/2016,R,GAZPROM MARKETING&TRADING LTD ,,
322,Central Services,Grants - Voluntary Groups,Vestry Hall,G19290,Premises Related Expenditure  ,Water Services                ,BE01,Use of Water (Metered)                  ,549.06,01/12/2016,R,THAMES WATER UTILITIES LTD    ,,
323,Central Services,Grants - Voluntary Groups,Vestry Hall,G19290,Premises Related Expenditure  ,Cleaning and Domestic Supplies,BH03,Cleaning Services                       ,1934.45,01/12/2016,R,BIRKIN CLEANING SERVICES LTD  ,,
324,Highways & Transport Services,Safe routes inc schl x patrol,School & Road Safety TFL                ,H01083,Supplies & Services           ,Equip Furniture/Materials     ,DA04,Materials                               ,770.95,10/10/2016,R,REDACTED,,
325,Highways & Transport Services,Safe routes inc schl x patrol,School & Road Safety TFL                ,H01083,Supplies & Services           ,Prntng Stnry Gen Off Exp      ,DE11,Print Room Costs                        ,886,15/12/2016,R,PRINT SECTION (INTERNAL)      ,,
326,Cultural Env Reg&Plan Services,DC Advice Apps & Reg not split,Development Control,H01130,Supplies & Services           ,Services                      ,DF02,Misc Advertising/Publicity              ,624,18/11/2016,R,NEWSQUEST MEDIA GROUP LTD     ,,
327,Cultural Env Reg&Plan Services,DC Advice Apps & Reg not split,Development Control,H01130,Supplies & Services           ,Comms and Computing           ,DG07,Computer Software                       ,750,25/11/2016,R,NORTHGATE PUBLIC SERV (UK) LTD,,
328,Cultural Env Reg&Plan Services,Planning Policy not split,Spatial Policy,H01173,Supplies & Services           ,Services                      ,DF03,Consultants                             ,2400,12/12/2016,R,SARAH TANBURN ASSOCIATES LTD  ,,
329,Cultural Env Reg&Plan Services,Planning Policy not split,Spatial Policy,H01173,Supplies & Services           ,Services                      ,DF03,Consultants                             ,3360,16/12/2016,R,JAM CONSULT LTD               ,,
330,Cultural Env Reg&Plan Services,Planning Policy not split,Spatial Policy,H01173,Third Party Payments          ,Private Contractors           ,EH10,Contract Payments                       ,5000,26/09/2016,R,NATHANIEL LICHFIELD &PARTNERS ,,
331,Cultural Env Reg&Plan Services,Economic Dev (Not separated),NHB-Brighter Business                   ,H01191,Third Party Payments          ,Private Contractors           ,EH10,Contract Payments                       ,540,25/11/2016,R,BRIAR ASSOCIATES              ,,
332,Cultural Env Reg&Plan Services,Economic Dev (Not separated),NHB-Brighter Business                   ,H01191,Third Party Payments          ,Private Contractors           ,EH10,Contract Payments                       ,720,25/11/2016,R,BRIAR ASSOCIATES              ,,
333,Cultural Env Reg&Plan Services,Economic Dev (Not separated),Capt Ambition-Suburban Opprt Z,H01231,Supplies & Services           ,Services                      ,DF03,Consultants                             ,975,01/12/2016,R,URBAN ENTERPRISE NETWORK      ,,
334,Cultural Env Reg&Plan Services,Economic Dev (Not separated),Capt Ambition-Suburban Opprt Z,H01231,Supplies & Services           ,Services                      ,DF03,Consultants                             ,975,01/12/2016,R,URBAN ENTERPRISE NETWORK      ,,
335,CS -Oth Operating Inc & Expend,T/A Vehicle Maintenance etc,Transport-Contract Hire,J01374,Employees                     ,Direct Employee Expenses      ,AA17,Agency Staff & Casual Paymts            ,11484,05/12/2016,R,PENNA PLC                     ,,
336,CS -Oth Operating Inc & Expend,T/A Vehicle Maintenance etc,Transport-Contract Hire,J01374,Transport Related Expenditure ,Direct Transport Costs        ,CA01,Petrol Derv & Oil                       ,31956.67,29/11/2016,R,EMO OILS LTD                  ,,
337,CS -Oth Operating Inc & Expend,T/A Vehicle Maintenance etc,Transport-Contract Hire,J01374,Transport Related Expenditure ,Contract Hire and Op Leasing  ,CC53,Plant Hire for MRCS                     ,726,30/11/2016,R,REDACTED,,
338,CS -Oth Operating Inc & Expend,T/A Vehicle Maintenance etc,Transport-Contract Hire,J01374,Transport Related Expenditure ,Contract Hire and Op Leasing  ,CC53,Plant Hire for MRCS                     ,3168,30/11/2016,R,RIVERSIDE TRUCK RENTAL LTD    ,,
339,CS -Oth Operating Inc & Expend,T/A Vehicle Maintenance etc,Transport-Contract Hire,J01374,Transport Related Expenditure ,Contract Hire and Op Leasing  ,CC53,Plant Hire for MRCS                     ,3344,30/11/2016,R,RIVERSIDE TRUCK RENTAL LTD    ,,
340,CS -Oth Operating Inc & Expend,T/A Vehicle Maintenance etc,Transport-Contract Hire,J01374,Transport Related Expenditure ,Contract Hire and Op Leasing  ,CC57,Pland Hire for Housing                  ,669.38,08/12/2016,R,DAYS FLEET                    ,,
341,CS -Oth Operating Inc & Expend,T/A Vehicle Maintenance etc,Transport-Contract Hire,J01374,Transport Related Expenditure ,Contract Hire and Op Leasing  ,CC59,HIRING TRANSPORT OPERATIONS             ,559.58,30/11/2016,R,REDACTED,,
342,CS -Oth Operating Inc & Expend,T/A Vehicle Maintenance etc,Transport-Contract Hire,J01374,Transport Related Expenditure ,Contract Hire and Op Leasing  ,CC59,HIRING TRANSPORT OPERATIONS             ,559.58,30/11/2016,R,REDACTED,,
343,CS -Oth Operating Inc & Expend,T/A Vehicle Maintenance etc,Transport-Contract Hire,J01374,Transport Related Expenditure ,Contract Hire and Op Leasing  ,CC59,HIRING TRANSPORT OPERATIONS             ,559.58,30/11/2016,R,REDACTED,,
344,CS -Oth Operating Inc & Expend,T/A Vehicle Maintenance etc,Transport-Contract Hire,J01374,Transport Related Expenditure ,Contract Hire and Op Leasing  ,CC59,HIRING TRANSPORT OPERATIONS             ,559.58,30/11/2016,R,REDACTED,,
345,CS -Oth Operating Inc & Expend,T/A Vehicle Maintenance etc,Transport-Contract Hire,J01374,Transport Related Expenditure ,Contract Hire and Op Leasing  ,CC59,HIRING TRANSPORT OPERATIONS             ,1452,30/11/2016,R,ENTERPRISE RENT-A-CAR UK LTD  ,,
346,CS -Oth Operating Inc & Expend,T/A Vehicle Maintenance etc,Transport-Contract Hire,J01374,Transport Related Expenditure ,Contract Hire and Op Leasing  ,CC59,HIRING TRANSPORT OPERATIONS             ,1452,30/11/2016,R,ENTERPRISE RENT-A-CAR UK LTD  ,,
347,CS -Oth Operating Inc & Expend,T/A Vehicle Maintenance etc,Transport-Contract Hire,J01374,Transport Related Expenditure ,Contract Hire and Op Leasing  ,CC59,HIRING TRANSPORT OPERATIONS             ,1452,30/11/2016,R,ENTERPRISE RENT-A-CAR UK LTD  ,,
348,CS -Oth Operating Inc & Expend,T/A Vehicle Maintenance etc,Transport-Contract Hire,J01374,Transport Related Expenditure ,Contract Hire and Op Leasing  ,CC64,CSF - SEN CABS (RK02)                   ,524,30/09/2016,R,SILVERBURN FINANCE (UK) LTD   ,,
349,CS -Oth Operating Inc & Expend,T/A Vehicle Maintenance etc,Transport-Contract Hire,J01374,Transport Related Expenditure ,Contract Hire and Op Leasing  ,CC64,CSF - SEN CABS (RK02)                   ,715,30/09/2016,R,SILVERBURN FINANCE (UK) LTD   ,,
350,CS -Oth Operating Inc & Expend,T/A Vehicle Maintenance etc,Transport-Contract Hire,J01374,Transport Related Expenditure ,Contract Hire and Op Leasing  ,CC64,CSF - SEN CABS (RK02)                   ,842,30/11/2016,R,BARCLAYS ASSET & SALES FINANCE,,
351,CS -Oth Operating Inc & Expend,T/A Vehicle Maintenance etc,Transport-Contract Hire,J01374,Transport Related Expenditure ,Contract Hire and Op Leasing  ,CC64,CSF - SEN CABS (RK02)                   ,1378,30/11/2016,R,KAT TRANSPORT LTD             ,,
352,CS -Oth Operating Inc & Expend,T/A Vehicle Maintenance etc,Transport-Contract Hire,J01374,Transport Related Expenditure ,Contract Hire and Op Leasing  ,CC64,CSF - SEN CABS (RK02)                   ,1425.6,30/11/2016,R,KAT TRANSPORT LTD             ,,
353,CS -Oth Operating Inc & Expend,T/A Vehicle Maintenance etc,Transport-Contract Hire,J01374,Transport Related Expenditure ,Contract Hire and Op Leasing  ,CC64,CSF - SEN CABS (RK02)                   ,1561.28,30/11/2016,R,KAT TRANSPORT LTD             ,,
354,CS -Oth Operating Inc & Expend,T/A Vehicle Maintenance etc,Transport-Contract Hire,J01374,Transport Related Expenditure ,Contract Hire and Op Leasing  ,CC64,CSF - SEN CABS (RK02)                   ,1699.32,30/11/2016,R,KAT TRANSPORT LTD             ,,
355,CS -Oth Operating Inc & Expend,T/A Vehicle Maintenance etc,Transport-Contract Hire,J01374,Transport Related Expenditure ,Contract Hire and Op Leasing  ,CC64,CSF - SEN CABS (RK02)                   ,1814.12,30/11/2016,R,KAT TRANSPORT LTD             ,,
356,CS -Oth Operating Inc & Expend,T/A Vehicle Maintenance etc,Transport-Contract Hire,J01374,Transport Related Expenditure ,Contract Hire and Op Leasing  ,CC64,CSF - SEN CABS (RK02)                   ,2014.76,30/11/2016,R,KAT TRANSPORT LTD             ,,
357,CS -Oth Operating Inc & Expend,T/A Vehicle Maintenance etc,Transport-Contract Hire,J01374,Transport Related Expenditure ,Contract Hire and Op Leasing  ,CC64,CSF - SEN CABS (RK02)                   ,2100,30/11/2016,R,KAT TRANSPORT LTD             ,,
358,CS -Oth Operating Inc & Expend,T/A Vehicle Maintenance etc,Transport-Contract Hire,J01374,Transport Related Expenditure ,Contract Hire and Op Leasing  ,CC64,CSF - SEN CABS (RK02)                   ,2156.04,30/11/2016,R,KAT TRANSPORT LTD             ,,
359,CS -Oth Operating Inc & Expend,T/A Vehicle Maintenance etc,Transport-Contract Hire,J01374,Transport Related Expenditure ,Contract Hire and Op Leasing  ,CC64,CSF - SEN CABS (RK02)                   ,2197.8,30/11/2016,R,KAT TRANSPORT LTD             ,,
360,CS -Oth Operating Inc & Expend,T/A Vehicle Maintenance etc,Transport-Contract Hire,J01374,Transport Related Expenditure ,Contract Hire and Op Leasing  ,CC64,CSF - SEN CABS (RK02)                   ,2214,30/11/2016,R,BARCLAYS ASSET & SALES FINANCE,,
361,CS -Oth Operating Inc & Expend,T/A Vehicle Maintenance etc,Transport-Contract Hire,J01374,Transport Related Expenditure ,Contract Hire and Op Leasing  ,CC64,CSF - SEN CABS (RK02)                   ,2221.38,30/11/2016,R,KAT TRANSPORT LTD             ,,
362,CS -Oth Operating Inc & Expend,T/A Vehicle Maintenance etc,Transport-Contract Hire,J01374,Transport Related Expenditure ,Contract Hire and Op Leasing  ,CC64,CSF - SEN CABS (RK02)                   ,2313.96,30/11/2016,R,KAT TRANSPORT LTD             ,,
363,CS -Oth Operating Inc & Expend,T/A Vehicle Maintenance etc,Transport-Contract Hire,J01374,Transport Related Expenditure ,Contract Hire and Op Leasing  ,CC64,CSF - SEN CABS (RK02)                   ,2410.76,30/11/2016,R,KAT TRANSPORT LTD             ,,
364,CS -Oth Operating Inc & Expend,T/A Vehicle Maintenance etc,Transport-Contract Hire,J01374,Transport Related Expenditure ,Contract Hire and Op Leasing  ,CC64,CSF - SEN CABS (RK02)                   ,2419.12,30/11/2016,R,KAT TRANSPORT LTD             ,,
365,CS -Oth Operating Inc & Expend,T/A Vehicle Maintenance etc,Transport-Contract Hire,J01374,Transport Related Expenditure ,Contract Hire and Op Leasing  ,CC64,CSF - SEN CABS (RK02)                   ,2419.12,30/11/2016,R,KAT TRANSPORT LTD             ,,
366,CS -Oth Operating Inc & Expend,T/A Vehicle Maintenance etc,Transport-Contract Hire,J01374,Transport Related Expenditure ,Contract Hire and Op Leasing  ,CC64,CSF - SEN CABS (RK02)                   ,2461.36,30/11/2016,R,KAT TRANSPORT LTD             ,,
367,CS -Oth Operating Inc & Expend,T/A Vehicle Maintenance etc,Transport-Contract Hire,J01374,Transport Related Expenditure ,Contract Hire and Op Leasing  ,CC64,CSF - SEN CABS (RK02)                   ,2681.8,30/11/2016,R,KAT TRANSPORT LTD             ,,
368,CS -Oth Operating Inc & Expend,T/A Vehicle Maintenance etc,Transport-Contract Hire,J01374,Transport Related Expenditure ,Contract Hire and Op Leasing  ,CC64,CSF - SEN CABS (RK02)                   ,2816,30/11/2016,R,KAT TRANSPORT LTD             ,,
369,CS -Oth Operating Inc & Expend,T/A Vehicle Maintenance etc,Transport-Contract Hire,J01374,Transport Related Expenditure ,Contract Hire and Op Leasing  ,CC64,CSF - SEN CABS (RK02)                   ,2894.76,30/11/2016,R,KAT TRANSPORT LTD             ,,
370,CS -Oth Operating Inc & Expend,T/A Vehicle Maintenance etc,Transport-Contract Hire,J01374,Transport Related Expenditure ,Contract Hire and Op Leasing  ,CC64,CSF - SEN CABS (RK02)                   ,2939.16,30/11/2016,R,KAT TRANSPORT LTD             ,,
371,CS -Oth Operating Inc & Expend,T/A Vehicle Maintenance etc,Transport-Contract Hire,J01374,Transport Related Expenditure ,Contract Hire and Op Leasing  ,CC64,CSF - SEN CABS (RK02)                   ,2987.16,30/11/2016,R,KAT TRANSPORT LTD             ,,
372,CS -Oth Operating Inc & Expend,T/A Vehicle Maintenance etc,Transport-Contract Hire,J01374,Transport Related Expenditure ,Contract Hire and Op Leasing  ,CC64,CSF - SEN CABS (RK02)                   ,3238.44,30/11/2016,R,KAT TRANSPORT LTD             ,,
373,CS -Oth Operating Inc & Expend,T/A Vehicle Maintenance etc,Transport-Contract Hire,J01374,Transport Related Expenditure ,Contract Hire and Op Leasing  ,CC64,CSF - SEN CABS (RK02)                   ,3253.8,30/11/2016,R,KAT TRANSPORT LTD             ,,
374,CS -Oth Operating Inc & Expend,T/A Vehicle Maintenance etc,Transport-Contract Hire,J01374,Transport Related Expenditure ,Contract Hire and Op Leasing  ,CC64,CSF - SEN CABS (RK02)                   ,3300,30/11/2016,R,BARCLAYS ASSET & SALES FINANCE,,
375,CS -Oth Operating Inc & Expend,T/A Vehicle Maintenance etc,Transport-Contract Hire,J01374,Transport Related Expenditure ,Contract Hire and Op Leasing  ,CC64,CSF - SEN CABS (RK02)                   ,3344,30/11/2016,R,BARCLAYS ASSET & SALES FINANCE,,
376,CS -Oth Operating Inc & Expend,T/A Vehicle Maintenance etc,Transport-Contract Hire,J01374,Transport Related Expenditure ,Contract Hire and Op Leasing  ,CC64,CSF - SEN CABS (RK02)                   ,3385.8,30/11/2016,R,KAT TRANSPORT LTD             ,,
377,CS -Oth Operating Inc & Expend,T/A Vehicle Maintenance etc,Transport-Contract Hire,J01374,Transport Related Expenditure ,Contract Hire and Op Leasing  ,CC64,CSF - SEN CABS (RK02)                   ,3393.18,30/11/2016,R,KAT TRANSPORT LTD             ,,
378,CS -Oth Operating Inc & Expend,T/A Vehicle Maintenance etc,Transport-Contract Hire,J01374,Transport Related Expenditure ,Contract Hire and Op Leasing  ,CC64,CSF - SEN CABS (RK02)                   ,3466.76,30/11/2016,R,KAT TRANSPORT LTD             ,,
379,CS -Oth Operating Inc & Expend,T/A Vehicle Maintenance etc,Transport-Contract Hire,J01374,Transport Related Expenditure ,Contract Hire and Op Leasing  ,CC64,CSF - SEN CABS (RK02)                   ,3475.12,30/11/2016,R,KAT TRANSPORT LTD             ,,
380,CS -Oth Operating Inc & Expend,T/A Vehicle Maintenance etc,Transport-Contract Hire,J01374,Transport Related Expenditure ,Contract Hire and Op Leasing  ,CC64,CSF - SEN CABS (RK02)                   ,3522,30/11/2016,R,BARCLAYS ASSET & SALES FINANCE,,
381,CS -Oth Operating Inc & Expend,T/A Vehicle Maintenance etc,Transport-Contract Hire,J01374,Transport Related Expenditure ,Contract Hire and Op Leasing  ,CC64,CSF - SEN CABS (RK02)                   ,3569.58,30/11/2016,R,KAT TRANSPORT LTD             ,,
382,CS -Oth Operating Inc & Expend,T/A Vehicle Maintenance etc,Transport-Contract Hire,J01374,Transport Related Expenditure ,Contract Hire and Op Leasing  ,CC64,CSF - SEN CABS (RK02)                   ,3916,30/11/2016,R,BARCLAYS ASSET & SALES FINANCE,,
383,CS -Oth Operating Inc & Expend,T/A Vehicle Maintenance etc,Transport-Contract Hire,J01374,Transport Related Expenditure ,Contract Hire and Op Leasing  ,CC67,C&H - ADULTS CABS (RK08)                ,1594.6,30/11/2016,R,KAT TRANSPORT LTD             ,,
384,CS -Oth Operating Inc & Expend,T/A Vehicle Maintenance etc,Transport-Contract Hire,J01374,Transport Related Expenditure ,Contract Hire and Op Leasing  ,CC67,C&H - ADULTS CABS (RK08)                ,3079.12,30/11/2016,R,KAT TRANSPORT LTD             ,,
385,CS -Oth Operating Inc & Expend,T/A Vehicle Maintenance etc,Transport-Contract Hire,J01374,Transport Related Expenditure ,Contract Hire and Op Leasing  ,CC69,LB Sutt Minibuses Trm Contract          ,585,30/11/2016,R,REDACTED,,
386,CS -Oth Operating Inc & Expend,T/A Vehicle Maintenance etc,Transport-Contract Hire,J01374,Transport Related Expenditure ,Contract Hire and Op Leasing  ,CC69,LB Sutt Minibuses Trm Contract          ,585,30/11/2016,R,REDACTED,,
387,CS -Oth Operating Inc & Expend,T/A Vehicle Maintenance etc,Transport-Contract Hire,J01374,Transport Related Expenditure ,Contract Hire and Op Leasing  ,CC69,LB Sutt Minibuses Trm Contract          ,585,30/11/2016,R,REDACTED,,
388,CS -Oth Operating Inc & Expend,T/A Vehicle Maintenance etc,Transport-Contract Hire,J01374,Transport Related Expenditure ,Contract Hire and Op Leasing  ,CC69,LB Sutt Minibuses Trm Contract          ,585,30/11/2016,R,REDACTED,,
389,CS -Oth Operating Inc & Expend,T/A Vehicle Maintenance etc,Transport-Contract Hire,J01374,Transport Related Expenditure ,Contract Hire and Op Leasing  ,CC69,LB Sutt Minibuses Trm Contract          ,594,30/11/2016,R,REDACTED,,
390,CS -Oth Operating Inc & Expend,T/A Vehicle Maintenance etc,Transport-Contract Hire,J01374,Transport Related Expenditure ,Contract Hire and Op Leasing  ,CC69,LB Sutt Minibuses Trm Contract          ,617.5,13/12/2016,R,C P DAVIDSON & SONS LTD       ,,
391,CS -Oth Operating Inc & Expend,T/A Vehicle Maintenance etc,Transport-Contract Hire,J01374,Transport Related Expenditure ,Contract Hire and Op Leasing  ,CC69,LB Sutt Minibuses Trm Contract          ,722.74,18/11/2016,R,ENTERPRISE RENT-A-CAR UK LTD  ,,
392,CS -Oth Operating Inc & Expend,T/A Vehicle Maintenance etc,Transport-Contract Hire,J01374,Transport Related Expenditure ,Contract Hire and Op Leasing  ,CC69,LB Sutt Minibuses Trm Contract          ,726,30/11/2016,R,REDACTED,,
393,CS -Oth Operating Inc & Expend,T/A Vehicle Maintenance etc,Transport-Contract Hire,J01374,Transport Related Expenditure ,Contract Hire and Op Leasing  ,CC69,LB Sutt Minibuses Trm Contract          ,745,29/11/2016,R,GULLIVER'S TRUCK HIRE LTD.    ,,
394,CS -Oth Operating Inc & Expend,T/A Vehicle Maintenance etc,Transport-Contract Hire,J01374,Transport Related Expenditure ,Contract Hire and Op Leasing  ,CC69,LB Sutt Minibuses Trm Contract          ,745,21/11/2016,R,GULLIVER'S TRUCK HIRE LTD.    ,,
395,CS -Oth Operating Inc & Expend,T/A Vehicle Maintenance etc,Transport-Contract Hire,J01374,Transport Related Expenditure ,Contract Hire and Op Leasing  ,CC69,LB Sutt Minibuses Trm Contract          ,745,05/12/2016,R,GULLIVER'S TRUCK HIRE LTD.    ,,
396,CS -Oth Operating Inc & Expend,T/A Vehicle Maintenance etc,Transport-Contract Hire,J01374,Transport Related Expenditure ,Contract Hire and Op Leasing  ,CC69,LB Sutt Minibuses Trm Contract          ,787.4,01/12/2016,R,C P DAVIDSON & SONS LTD       ,,
397,CS -Oth Operating Inc & Expend,T/A Vehicle Maintenance etc,Transport-Contract Hire,J01374,Transport Related Expenditure ,Contract Hire and Op Leasing  ,CC69,LB Sutt Minibuses Trm Contract          ,1056,30/11/2016,R,B&T PLANT HIRE LTD            ,,
398,CS -Oth Operating Inc & Expend,T/A Vehicle Maintenance etc,Transport-Contract Hire,J01374,Transport Related Expenditure ,Contract Hire and Op Leasing  ,CC69,LB Sutt Minibuses Trm Contract          ,1170,30/11/2016,R,REDACTED,,
399,CS -Oth Operating Inc & Expend,T/A Vehicle Maintenance etc,Transport-Contract Hire,J01374,Transport Related Expenditure ,Contract Hire and Op Leasing  ,CC69,LB Sutt Minibuses Trm Contract          ,1430,30/11/2016,R,REDACTED,,
400,CS -Oth Operating Inc & Expend,T/A Vehicle Maintenance etc,Transport-Contract Hire,J01374,Transport Related Expenditure ,Contract Hire and Op Leasing  ,CC69,LB Sutt Minibuses Trm Contract          ,1642,23/11/2016,R,M6 VEHICLE HIRE               ,,
401,CS -Oth Operating Inc & Expend,T/A Vehicle Maintenance etc,Transport-Contract Hire,J01374,Transport Related Expenditure ,Contract Hire and Op Leasing  ,CC69,LB Sutt Minibuses Trm Contract          ,2500,02/12/2016,R,TERBERG MATEC UK LTD          ,,
402,CS -Oth Operating Inc & Expend,T/A Vehicle Maintenance etc,Transport-Contract Hire,J01374,Transport Related Expenditure ,Contract Hire and Op Leasing  ,CC69,LB Sutt Minibuses Trm Contract          ,2618,30/11/2016,R,M6 VEHICLE HIRE               ,,
403,CS -Oth Operating Inc & Expend,T/A Vehicle Maintenance etc,Transport-Contract Hire,J01374,Transport Related Expenditure ,Contract Hire and Op Leasing  ,CC69,LB Sutt Minibuses Trm Contract          ,3230,30/11/2016,R,C P DAVIDSON & SONS LTD       ,,
404,CS -Oth Operating Inc & Expend,T/A Vehicle Maintenance etc,Transport-Contract Hire,J01374,Transport Related Expenditure ,Contract Hire and Op Leasing  ,CC69,LB Sutt Minibuses Trm Contract          ,3740,30/11/2016,R,C P DAVIDSON & SONS LTD       ,,
405,CS -Oth Operating Inc & Expend,T/A Vehicle Maintenance etc,Transport-Contract Hire,J01374,Transport Related Expenditure ,Contract Hire and Op Leasing  ,CC69,LB Sutt Minibuses Trm Contract          ,3980,30/11/2016,R,C P DAVIDSON & SONS LTD       ,,
406,CS -Oth Operating Inc & Expend,T/A Vehicle Maintenance etc,Transport-Contract Hire,J01374,Transport Related Expenditure ,Contract Hire and Op Leasing  ,CC69,LB Sutt Minibuses Trm Contract          ,5214,12/12/2016,R,STENNETTS LTD                 ,,
407,CS -Oth Operating Inc & Expend,T/A Vehicle Maintenance etc,Transport-Workshop,J01376,Transport Related Expenditure ,Contract Hire and Op Leasing  ,CC65,Vehicle Hire for Education              ,980,30/11/2016,R,KAT TRANSPORT LTD             ,,
408,CS -Oth Operating Inc & Expend,T/A Vehicle Maintenance etc,Transport-Workshop,J01376,Transport Related Expenditure ,Contract Hire and Op Leasing  ,CC65,Vehicle Hire for Education              ,2662,30/11/2016,R,BARCLAYS ASSET & SALES FINANCE,,
409,CS -Oth Operating Inc & Expend,T/A Vehicle Maintenance etc,Transport-Workshop,J01376,Supplies & Services           ,Equip Furniture/Materials     ,DA09,Equip-Purchases                         ,540,23/11/2016,R,COMMERCIAL & PLANT LTD        ,,
410,CS -Oth Operating Inc & Expend,T/A Vehicle Maintenance etc,Vehicle Workshops,J01378,Transport Related Expenditure ,Direct Transport Costs        ,CA01,Petrol Derv & Oil                       ,1060,29/11/2016,R,CBOC LUBRICANTS               ,,
411,CS -Oth Operating Inc & Expend,T/A Vehicle Maintenance etc,Vehicle Workshops,J01378,Transport Related Expenditure ,Direct Transport Costs        ,CA02,Tyres                                   ,6512.24,30/11/2016,R,DIRECT TYRE MANAGEMENT LTD    ,,
412,CS -Oth Operating Inc & Expend,T/A Vehicle Maintenance etc,Vehicle Workshops,J01378,Transport Related Expenditure ,Direct Transport Costs        ,CA55,Specialist Maint. (Off Site)            ,579.72,30/11/2016,R,KINGSLEY COMM COMPONENTS LTD  ,,
413,CS -Oth Operating Inc & Expend,T/A Vehicle Maintenance etc,Vehicle Workshops,J01378,Transport Related Expenditure ,Direct Transport Costs        ,CA55,Specialist Maint. (Off Site)            ,677.5,25/11/2016,R,FLEETSPEED COACHWORKS LTD.    ,,
414,CS -Oth Operating Inc & Expend,T/A Vehicle Maintenance etc,Vehicle Workshops,J01378,Transport Related Expenditure ,Direct Transport Costs        ,CA55,Specialist Maint. (Off Site)            ,2180.09,23/11/2016,R,HTC CROYDON                   ,,
415,CS -Oth Operating Inc & Expend,T/A Vehicle Maintenance etc,Vehicle Workshops,J01378,Transport Related Expenditure ,Direct Transport Costs        ,CA55,Specialist Maint. (Off Site)            ,3689.82,09/12/2016,R,REDACTED,,
416,CS -Oth Operating Inc & Expend,T/A Vehicle Maintenance etc,Vehicle Workshops,J01378,Transport Related Expenditure ,Direct Transport Costs        ,CA55,Specialist Maint. (Off Site)            ,6917.79,30/11/2016,R,GEESINK NORBA                 ,,
417,CS -Oth Operating Inc & Expend,T/A Vehicle Maintenance etc,Vehicle Workshops,J01378,Transport Related Expenditure ,Direct Transport Costs        ,CA55,Specialist Maint. (Off Site)            ,10395.83,24/11/2016,R,GEESINK NORBA                 ,,
418,CS -Oth Operating Inc & Expend,T/A Vehicle Maintenance etc,Vehicle Workshops,J01378,Transport Related Expenditure ,Direct Transport Costs        ,CA55,Specialist Maint. (Off Site)            ,14536.71,24/11/2016,R,GEESINK NORBA                 ,,
419,CS -Oth Operating Inc & Expend,T/A Vehicle Maintenance etc,Vehicle Workshops,J01378,Transport Related Expenditure ,Direct Transport Costs        ,CA56,Specialist Maint. (On Site)             ,503.8,03/12/2016,R,R.J.H.WELDING                 ,,
420,CS -Oth Operating Inc & Expend,T/A Vehicle Maintenance etc,Vehicle Workshops,J01378,Transport Related Expenditure ,Direct Transport Costs        ,CA56,Specialist Maint. (On Site)             ,510,02/12/2016,R,R.J.H.WELDING                 ,,
421,CS -Oth Operating Inc & Expend,T/A Vehicle Maintenance etc,Vehicle Workshops,J01378,Transport Related Expenditure ,Direct Transport Costs        ,CA56,Specialist Maint. (On Site)             ,510,03/12/2016,R,R.J.H.WELDING                 ,,
422,CS -Oth Operating Inc & Expend,T/A Vehicle Maintenance etc,Vehicle Workshops,J01378,Transport Related Expenditure ,Direct Transport Costs        ,CA56,Specialist Maint. (On Site)             ,511.55,03/12/2016,R,R.J.H.WELDING                 ,,
423,CS -Oth Operating Inc & Expend,T/A Vehicle Maintenance etc,Vehicle Workshops,J01378,Transport Related Expenditure ,Direct Transport Costs        ,CA56,Specialist Maint. (On Site)             ,512.49,15/10/2016,R,JMN SOLUTIONS LTD             ,,
424,CS -Oth Operating Inc & Expend,T/A Vehicle Maintenance etc,Vehicle Workshops,J01378,Transport Related Expenditure ,Direct Transport Costs        ,CA56,Specialist Maint. (On Site)             ,540.55,03/12/2016,R,R.J.H.WELDING                 ,,
425,CS -Oth Operating Inc & Expend,T/A Vehicle Maintenance etc,Vehicle Workshops,J01378,Transport Related Expenditure ,Direct Transport Costs        ,CA56,Specialist Maint. (On Site)             ,545.35,03/12/2016,R,R.J.H.WELDING                 ,,
426,CS -Oth Operating Inc & Expend,T/A Vehicle Maintenance etc,Vehicle Workshops,J01378,Transport Related Expenditure ,Direct Transport Costs        ,CA56,Specialist Maint. (On Site)             ,590.65,03/12/2016,R,R.J.H.WELDING                 ,,
427,CS -Oth Operating Inc & Expend,T/A Vehicle Maintenance etc,Vehicle Workshops,J01378,Transport Related Expenditure ,Direct Transport Costs        ,CA56,Specialist Maint. (On Site)             ,598.05,03/12/2016,R,R.J.H.WELDING                 ,,
428,CS -Oth Operating Inc & Expend,T/A Vehicle Maintenance etc,Vehicle Workshops,J01378,Transport Related Expenditure ,Direct Transport Costs        ,CA56,Specialist Maint. (On Site)             ,601.61,28/11/2016,R,ADVANTAGE RENTALS & RPRS LTD  ,,
429,CS -Oth Operating Inc & Expend,T/A Vehicle Maintenance etc,Vehicle Workshops,J01378,Transport Related Expenditure ,Direct Transport Costs        ,CA56,Specialist Maint. (On Site)             ,743.22,05/12/2016,R,GALLOWAY VEHICLE SERVICES     ,,
430,CS -Oth Operating Inc & Expend,T/A Vehicle Maintenance etc,Vehicle Workshops,J01378,Transport Related Expenditure ,Direct Transport Costs        ,CA56,Specialist Maint. (On Site)             ,744.84,03/12/2016,R,R.J.H.WELDING                 ,,
431,CS -Oth Operating Inc & Expend,T/A Vehicle Maintenance etc,Vehicle Workshops,J01378,Transport Related Expenditure ,Direct Transport Costs        ,CA56,Specialist Maint. (On Site)             ,770,05/12/2016,R,GALLOWAY VEHICLE SERVICES     ,,
432,CS -Oth Operating Inc & Expend,T/A Vehicle Maintenance etc,Vehicle Workshops,J01378,Transport Related Expenditure ,Direct Transport Costs        ,CA56,Specialist Maint. (On Site)             ,797.5,03/12/2016,R,R.J.H.WELDING                 ,,
433,CS -Oth Operating Inc & Expend,T/A Vehicle Maintenance etc,Vehicle Workshops,J01378,Transport Related Expenditure ,Direct Transport Costs        ,CA56,Specialist Maint. (On Site)             ,892,02/12/2016,R,REDACTED,,
434,CS -Oth Operating Inc & Expend,T/A Vehicle Maintenance etc,Vehicle Workshops,J01378,Transport Related Expenditure ,Direct Transport Costs        ,CA56,Specialist Maint. (On Site)             ,1194.45,02/12/2016,R,REDACTED,,
435,CS -Oth Operating Inc & Expend,T/A Vehicle Maintenance etc,Vehicle Workshops,J01378,Transport Related Expenditure ,Direct Transport Costs        ,CA56,Specialist Maint. (On Site)             ,1564.9,25/11/2016,R,REDACTED,,
436,CS -Oth Operating Inc & Expend,T/A Vehicle Maintenance etc,Vehicle Workshops,J01378,Transport Related Expenditure ,Direct Transport Costs        ,CA56,Specialist Maint. (On Site)             ,1670.25,09/12/2016,R,REDACTED,,
437,CS -Oth Operating Inc & Expend,T/A Vehicle Maintenance etc,Vehicle Workshops,J01378,Transport Related Expenditure ,Direct Transport Costs        ,CA72,Vehicle Parts                           ,558.27,07/12/2016,R,GULLIVER'S TRUCK HIRE LTD.    ,,
438,CS -Oth Operating Inc & Expend,T/A Vehicle Maintenance etc,Vehicle Workshops,J01378,Transport Related Expenditure ,Direct Transport Costs        ,CA72,Vehicle Parts                           ,561.66,24/11/2016,R,DENNIS EAGLE LIMITED          ,,
439,CS -Oth Operating Inc & Expend,T/A Vehicle Maintenance etc,Vehicle Workshops,J01378,Transport Related Expenditure ,Direct Transport Costs        ,CA72,Vehicle Parts                           ,573.95,09/12/2016,R,HTC CROYDON                   ,,
440,CS -Oth Operating Inc & Expend,T/A Vehicle Maintenance etc,Vehicle Workshops,J01378,Transport Related Expenditure ,Direct Transport Costs        ,CA72,Vehicle Parts                           ,658.91,02/11/2016,R,GEESINK NORBA                 ,,
441,CS -Oth Operating Inc & Expend,T/A Vehicle Maintenance etc,Vehicle Workshops,J01378,Supplies & Services           ,Clothing Unfrms Laundry       ,DC01,Laundry                                 ,761.08,26/11/2016,R,BERENDSEN UK LTD              ,,
442,CS -Oth Operating Inc & Expend,T/A Vehicle Maintenance etc,Vehicle Workshops,J01378,Supplies & Services           ,Clothing Unfrms Laundry       ,DC01,Laundry                                 ,951.35,29/10/2016,R,BERENDSEN UK LTD              ,,
443,Cultural Env Reg&Plan Services,Mgt & Support (Env),Estates Mgt,J01420,Supplies & Services           ,Services                      ,DF50,Estate Management                       ,1000,03/06/2016,R,AMSY LIMITED                  ,,
444,CS -Oth Operating Inc & Expend,Extraordinary Items & PY Adj.,Other Misc Props Budget,J01526,Premises Related Expenditure  ,RepairsAlterations&MtceOfBldgs,BA01,DDM - GENERAL BUILDING                  ,3266.25,11/11/2016,R,KIARA DECORATING CONTRACTORS  ,,
445,CS -Oth Operating Inc & Expend,Extraordinary Items & PY Adj.,Housing Shops,J01533,Premises Related Expenditure  ,RepairsAlterations&MtceOfBldgs,BA01,DDM - GENERAL BUILDING                  ,750,25/11/2016,R,SAFEGUARD PEST CONTROL LTD    ,,
446,CS -Oth Operating Inc & Expend,Extraordinary Items & PY Adj.,Durnsford Rd Budget,J01580,Premises Related Expenditure  ,RepairsAlterations&MtceOfBldgs,BA01,DDM - GENERAL BUILDING                  ,940,17/11/2016,R,LA BELLE ROOFING CO LTD       ,,
447,CS -Oth Operating Inc & Expend,Extraordinary Items & PY Adj.,Durnsford Rd Budget,J01580,Premises Related Expenditure  ,RepairsAlterations&MtceOfBldgs,BA06,REPAIRS & MAINTENANCE GENERAL           ,1450,17/11/2016,R,LA BELLE ROOFING CO LTD       ,,
448,CS -Oth Operating Inc & Expend,Extraordinary Items & PY Adj.,Batsworth Rd Budget,J01689,Premises Related Expenditure  ,RepairsAlterations&MtceOfBldgs,BA01,DDM - GENERAL BUILDING                  ,900,17/11/2016,R,LA BELLE ROOFING CO LTD       ,,
449,Childrens & Education Services,Statutory & Regulatory Duties,Schools IT Support,K02008,Supplies & Services           ,Comms and Computing           ,DG50,Other IT Expenditure                    ,500,05/12/2016,R,ATOMWIDE LTD                  ,,
450,Childrens & Education Services,Statutory & Regulatory Duties,Schools IT Support,K02008,Supplies & Services           ,Comms and Computing           ,DG50,Other IT Expenditure                    ,1249,05/12/2016,R,ATOMWIDE LTD                  ,,
451,Childrens & Education Services,Statutory & Regulatory Duties,Schools IT Support,K02008,Supplies & Services           ,Comms and Computing           ,DG50,Other IT Expenditure                    ,1249,05/12/2016,R,ATOMWIDE LTD                  ,,
452,Childrens & Education Services,Statutory & Regulatory Duties,Commissioning Manager,K03001,Employees                     ,Indirect Employee Expenses    ,AB57,External Training Costs                 ,2045,22/11/2016,R,KINGS COLLEGE LONDON          ,,
453,Childrens & Education Services,Statutory & Regulatory Duties,Research and Statistics,K03016,Supplies & Services           ,Services                      ,DF03,Consultants                             ,3150,05/12/2016,R,NUMBER 10 INTERIM LTD         ,,
454,Childrens & Education Services,Asset Management,PFI Unitary Charges,K03023,Third Party Payments          ,Private Contractors           ,EH02,Miscellaneous Hired Services            ,1222.67,05/12/2016,R,NEWSCHOOLS (MERTON) LIMITED   ,,
455,Childrens & Education Services,Education Psychology Service,Education Psychology.,K04018,Employees                     ,Direct Employee Expenses      ,AA17,Agency Staff & Casual Paymts            ,2000,13/12/2016,R,REDACTED,,
456,Childrens & Education Services,Education Psychology Service,Education Psychology.,K04018,Employees                     ,Direct Employee Expenses      ,AA17,Agency Staff & Casual Paymts            ,2000,13/12/2016,R,REDACTED,,
457,Childrens & Education Services,Education Psychology Service,Education Psychology.,K04018,Employees                     ,Direct Employee Expenses      ,AA17,Agency Staff & Casual Paymts            ,8000,01/12/2016,R,REDACTED,,
458,Childrens & Education Services,Support for SEN Pupils,Statementing-Transport,K04023,Transport Related Expenditure ,Public Transport              ,CD50,Home Sch/Coll Trans(Trav Exps)          ,990,30/11/2016,R,REDACTED,,
459,Childrens & Education Services,Oth U5s Provn Not Prim or Spec,Provider Support,K05078,Supplies & Services           ,Prntng Stnry Gen Off Exp      ,DE11,Print Room Costs                        ,875.8,02/12/2016,R,PRINT SECTION (INTERNAL)      ,,
460,Childrens & Education Services,Oth U5s Provn Not Prim or Spec,Provider Support,K05078,Supplies & Services           ,Comms and Computing           ,DG08,Computer Hardware                       ,595,30/11/2016,R,NETWORK SOLUTIONS INC         ,,
461,Childrens & Education Services,Pupil Referral Units,Expanded Pupil Referral Unit,K05099,Third Party Payments          ,Private Contractors           ,EH01,Miscellaneous Agency Services           ,2450,05/12/2016,R,REDACTED,,
462,Childrens & Education Services,Oth U5s Provn Not Prim or Spec,GSSG Workforce Development,K05111,Employees                     ,Indirect Employee Expenses    ,AB56,Internal Training Costs                 ,750,14/11/2016,R,REDACTED,,
463,Childrens & Education Services,Oth U5s Provn Not Prim or Spec,GSSG Workforce Development,K05111,Supplies & Services           ,Equip Furniture/Materials     ,DA09,EQUIP-PURCHASES                         ,545.43,21/11/2016,R,EDUZONE LTD                   ,,
464,Childrens & Education Services,GENERATED ACCOUNT,Children's centres,K05137,Premises Related Expenditure  ,RepairsAlterations&MtceOfBldgs,BA01,DDM - General Building                  ,695,30/11/2016,R,NETWORK SOLUTIONS INC         ,,
465,Childrens & Education Services,GENERATED ACCOUNT,Children's centres,K05137,Premises Related Expenditure  ,RepairsAlterations&MtceOfBldgs,BA01,DDM - General Building                  ,975,25/11/2016,R,SYMES FENCING                 ,,
466,Childrens & Education Services,GENERATED ACCOUNT,Children's centres,K05137,Premises Related Expenditure  ,RepairsAlterations&MtceOfBldgs,BA79,Security of Premises                    ,2310.8,01/12/2016,R,SIGHT & SOUND                 ,,
467,Childrens & Education Services,Nursery schools,GSSG Central Administration,K05400,Supplies & Services           ,Expenses                      ,DH02,Conferences                             ,1358.33,12/12/2016,R,TRIPLE P UK LIMITED           ,,
468,Childrens & Education Services,GENERATED ACCOUNT,Lavender Children's Centre,K05410,Supplies & Services           ,Clothing Unfrms Laundry       ,DC01,Laundry                                 ,520.2,11/11/2016,R,GOMPELS HEALTHCARE LTD        ,,
469,Childrens & Education Services,GENERATED ACCOUNT,Mitcham MAT (Premises),K05412,Premises Related Expenditure  ,Cleaning and Domestic Supplies,BH03,Cleaning Services                       ,1564.45,01/12/2016,R,BIRKIN CLEANING SERVICES LTD  ,,
470,Childrens & Education Services,GENERATED ACCOUNT,Morden MAT,K05413,Premises Related Expenditure  ,RepairsAlterations&MtceOfBldgs,BA06,Repairs & Maintenance General           ,2680,14/12/2016,R,BA SUPPLIES & SERVICES LTD    ,,
471,Childrens & Education Services,GENERATED ACCOUNT,Morden MAT,K05413,Premises Related Expenditure  ,Cleaning and Domestic Supplies,BH03,Cleaning Services                       ,1312.19,01/12/2016,R,BIRKIN CLEANING SERVICES LTD  ,,
472,Childrens & Education Services,Nursery schools,Lavender CC Non Childcare,K05415,Supplies & Services           ,Equip Furniture/Materials     ,DA04,Materials                               ,3285,07/12/2016,R,CREATIVE PLAY UK LTD          ,,
473,Childrens & Education Services,Nursery schools,E.Years-Intergenerational Cntr,K05416,Premises Related Expenditure  ,Cleaning and Domestic Supplies,BH03,Cleaning Services                       ,911.55,01/12/2016,R,BIRKIN CLEANING SERVICES LTD  ,,
474,Childrens & Education Services,Nursery schools,EY-Support Separating Parents,K05417,Supplies & Services           ,Equip Furniture/Materials     ,DA09,Equip-Purchases                         ,1099,09/12/2016,R,OFFICE FURNITURE ONLINE       ,,
475,Childrens & Education Services,Nursery schools,EY-Support Separating Parents,K05417,Supplies & Services           ,Equip Furniture/Materials     ,DA09,Equip-Purchases                         ,1570,09/12/2016,R,OFFICE FURNITURE ONLINE       ,,
476,Childrens & Education Services,Vocational - Adult Education,AE-Adult Education Main,K06049,Premises Related Expenditure  ,Cleaning and Domestic Supplies,BH03,Cleaning Services                       ,658.27,01/12/2016,R,BIRKIN CLEANING SERVICES LTD  ,,
477,Childrens & Education Services,Youth Centres (Residential),Youth Service,K06053,Employees                     ,Indirect Employee Expenses    ,AB57,External Training Costs                 ,1300,29/11/2016,R,MEYNELL WALTER                ,,
478,Childrens & Education Services,Youth Centres (Residential),Youth Service,K06053,Supplies & Services           ,Services                      ,DF30,Activities Programme                    ,1582,31/10/2016,R,MELCOURT INDUSTRIES LTD       ,,
479,Childrens & Education Services,Youth Centres (Residential),Leyton Rd Premises Costs.,K06054,Premises Related Expenditure  ,Cleaning and Domestic Supplies,BH03,Cleaning Services                       ,573.87,01/12/2016,R,BIRKIN CLEANING SERVICES LTD  ,,
480,Childrens & Education Services,Youth Centres (Residential),Duke of Edinburgh Awrds,K06055,Supplies & Services           ,Expenses                      ,DH12,Young Peoples Expenses                  ,760,29/11/2016,R,THE AWARD SCHEME LTD          ,,
481,Childrens & Education Services,Youth Centres (Residential),Pollards Hll Yth Ctre,K06065,Supplies & Services           ,Expenses                      ,DH12,Young Peoples Expenses                  ,638,08/12/2016,R,CARIBBEAN CATERING            ,,
482,Childrens & Education Services,Pupil Referral Units,Safer Schls Police Officers             ,K06116,Third Party Payments          ,Private Contractors           ,EH02,Miscellaneous Hired Services            ,24750,16/11/2016,R,METROPOLITAN POLICE           ,,
483,Childrens & Education Services,Facilitating School Improvemnt,Virtual Schools (Balance),K07109,Supplies & Services           ,Grants and Subscriptions      ,DJ01,Grants                                  ,600,05/12/2016,R,ST JOSEPHS SCHOOL             ,,
484,Childrens & Education Services,Facilitating School Improvemnt,Virtual Schools (Balance),K07109,Supplies & Services           ,Grants and Subscriptions      ,DJ01,Grants                                  ,600,05/12/2016,R,GREENSHAW HIGH SCHOOL         ,,
485,Childrens & Education Services,Facilitating School Improvemnt,Virtual Schools (Balance),K07109,Supplies & Services           ,Grants and Subscriptions      ,DJ01,Grants                                  ,600,19/12/2016,R,THE ARCHBISHOPS SCHOOL        ,,
486,Childrens & Education Services,Facilitating School Improvemnt,Virtual Schools (Balance),K07109,Supplies & Services           ,Grants and Subscriptions      ,DJ01,Grants                                  ,600,05/12/2016,R,ST JOSEPHS SCHOOL             ,,
487,Childrens & Education Services,Facilitating School Improvemnt,Virtual Schools (Balance),K07109,Supplies & Services           ,Grants and Subscriptions      ,DJ01,Grants                                  ,600,02/12/2016,R,GRAVENEY SCHOOL               ,,
488,Childrens & Education Services,Facilitating School Improvemnt,Virtual Schools (Balance),K07109,Supplies & Services           ,Grants and Subscriptions      ,DJ01,Grants                                  ,600,05/12/2016,R,MAYPOLE PRIMARY SCHOOL        ,,
489,Childrens & Education Services,Facilitating School Improvemnt,Virtual Schools (Balance),K07109,Supplies & Services           ,Grants and Subscriptions      ,DJ01,Grants                                  ,600,05/12/2016,R,THOMSON HOUSE SCHOOL          ,,
490,Childrens & Education Services,Asset Management,Premises and Contracts,K08069,Supplies & Services           ,Services                      ,DF95,Services from Provider                  ,862.31,21/09/2016,R,SEARCHFLOW LTD                ,,
491,Childrens & Education Services,Asset Management,S106 Bid,K08077,Premises Related Expenditure  ,RepairsAlterations&MtceOfBldgs,BA06,Repairs & Maintenance General           ,4955.1,14/12/2016,R,BILFINGER EUROPA FACILITY     ,,
492,Childrens & Education Services,Asset Management,S106 Bid,K08077,Premises Related Expenditure  ,RepairsAlterations&MtceOfBldgs,BA79,Security of Premises                    ,1425,01/12/2016,R,SIGHT & SOUND                 ,,
493,Childrens & Education Services,Asset Management,S106 Bid,K08077,Premises Related Expenditure  ,Energy Costs                  ,BB01,Fuel Oil                                ,1256.69,14/12/2016,R,BILFINGER EUROPA FACILITY     ,,
494,Childrens & Education Services,Asset Management,S106 Bid,K08077,Premises Related Expenditure  ,Energy Costs                  ,BB01,Fuel Oil                                ,4615.9,14/12/2016,R,BILFINGER EUROPA FACILITY     ,,
495,Childrens & Education Services,Asset Management,S106 Bid,K08077,Premises Related Expenditure  ,Cleaning and Domestic Supplies,BH03,Cleaning Services                       ,600,30/09/2016,R,JULIUS RUTHERFOORD & CO LTD   ,,
496,Childrens & Education Services,Asset Management,Centre Commissioned Servs,K08078,Supplies & Services           ,Grants and Subscriptions      ,DJ01,Grants                                  ,9737.5,01/12/2016,R,BARNARDOS                     ,,
497,Childrens & Education Services,Facilitating School Improvemnt,SSQ,K09077,Supplies & Services           ,Services                      ,DF03,Consultants                             ,1000,11/12/2016,R,REDACTED,,
498,Childrens & Education Services,Asset Management,Stouthall,K09082,Premises Related Expenditure  ,Rents                         ,BC01,Miscellaneous Rents                     ,4125,06/12/2016,R,ROBERT MORGAN & SONS LTD      ,,
499,Childrens & Education Services,Sch Meals & Milk-Not Delegated,Free School Meals,K90002,Supplies & Services           ,Grants and Subscriptions      ,DJ80,Free School Meals                       ,600,10/11/2016,R,PARENTPAY LTD                 ,,
500,Childrens & Education Services,Support for SEN Pupils,Non-Delegated Statements,K90024,Supplies & Services           ,Services                      ,DF09,Miscellaneous Fees                      ,620,02/12/2016,R,SURBITON HIGH SCHOOL          ,,
501,Childrens & Education Services,Support for SEN Pupils,Non-Delegated Statements,K90024,Supplies & Services           ,Services                      ,DF09,Miscellaneous Fees                      ,760,11/11/2016,R,SURBITON HIGH SCHOOL          ,,
502,Childrens & Education Services,Support for SEN Pupils,Non-Delegated Statements,K90024,Supplies & Services           ,Services                      ,DF09,Miscellaneous Fees                      ,2955,27/07/2016,R,ROYAL CENT'L SCH. SPEECH/DRAMA,,
503,Childrens & Education Services,Support for SEN Pupils,Non-Delegated Statements,K90024,Supplies & Services           ,Services                      ,DF09,Miscellaneous Fees                      ,3565,11/11/2016,R,HARRIS PRIMARY ACADEMY MERTON ,,
504,Childrens & Education Services,Support for SEN Pupils,Non-Delegated Statements,K90024,Supplies & Services           ,Services                      ,DF09,Miscellaneous Fees                      ,3710.25,04/11/2016,R,PERSEID SCHOOL                ,,
505,Childrens & Education Services,Support for SEN Pupils,Non-Delegated Statements,K90024,Supplies & Services           ,Services                      ,DF09,Miscellaneous Fees                      ,11363.28,31/10/2016,R,DONHEAD SCHOOL                ,,
506,Childrens & Education Services,Support for SEN Pupils,Non-Delegated Statements,K90024,Supplies & Services           ,Services                      ,DF14,Doctors and Other Fees                  ,1360,05/12/2016,R,JOSEPH HOOD PRIMARY SCHOOL    ,,
507,Childrens & Education Services,Support for SEN Pupils,Non-Delegated Statements,K90024,Third Party Payments          ,Other Local Authorities       ,EB48,OLA PAYMENTS-STATEMENTS                 ,3010,09/12/2016,R,ALL SAINTS BENHILTON C.E.SCH  ,,
508,Childrens & Education Services,Support for SEN Pupils,Non-Delegated Statements,K90024,Third Party Payments          ,Other Local Authorities       ,EB50,OLA-Payments - Day Schools              ,6604.15,01/11/2016,R,WANDLE VALLEY SCHOOL          ,,
509,Childrens & Education Services,Support for SEN Pupils,Non-Delegated Statements,K90024,Third Party Payments          ,Other Establishments          ,EG01,Alternative SEN Provision               ,705,25/11/2016,R,HA TUTORS LTD                 ,,
510,Childrens & Education Services,Support for SEN Pupils,Non-Delegated Statements,K90024,Third Party Payments          ,Other Establishments          ,EG01,Alternative SEN Provision               ,950,25/11/2016,R,HA TUTORS LTD                 ,,
511,Childrens & Education Services,Support for SEN Pupils,Non-Delegated Statements,K90024,Third Party Payments          ,Other Establishments          ,EG01,Alternative SEN Provision               ,1560,02/12/2016,R,JUST AROUND THE CORNER        ,,
512,Childrens & Education Services,Support for SEN Pupils,Non-Delegated Statements,K90024,Third Party Payments          ,Other Establishments          ,EG01,Alternative SEN Provision               ,1590,25/11/2016,R,HA TUTORS LTD                 ,,
513,Childrens & Education Services,Support for SEN Pupils,Non-Delegated Statements,K90024,Third Party Payments          ,Other Establishments          ,EG01,Alternative SEN Provision               ,1700,25/11/2016,R,HA TUTORS LTD                 ,,
514,Childrens & Education Services,Support for SEN Pupils,Non-Delegated Statements,K90024,Third Party Payments          ,Other Establishments          ,EG01,Alternative SEN Provision               ,1760,25/11/2016,R,HA TUTORS LTD                 ,,
515,Childrens & Education Services,Support for SEN Pupils,Non-Delegated Statements,K90024,Third Party Payments          ,Other Establishments          ,EG01,Alternative SEN Provision               ,2380,25/11/2016,R,HA TUTORS LTD                 ,,
516,Childrens & Education Services,Support for SEN Pupils,Non-Delegated Statements,K90024,Third Party Payments          ,Other Establishments          ,EG01,Alternative SEN Provision               ,3020,25/11/2016,R,HA TUTORS LTD                 ,,
517,Childrens & Education Services,Support for SEN Pupils,Non-Delegated Statements,K90024,Third Party Payments          ,Other Establishments          ,EG01,Alternative SEN Provision               ,3497.5,12/12/2016,R,REDACTED,,
518,Childrens & Education Services,Support for SEN Pupils,Non-Delegated Statements,K90024,Third Party Payments          ,Other Establishments          ,EG50,Ind Day Schs Payments                   ,1560,14/12/2016,R,THE LINK PRIMARY DAY SCHOOL   ,,
519,Childrens & Education Services,Support for SEN Pupils,Non-Delegated Statements,K90024,Third Party Payments          ,Other Establishments          ,EG50,Ind Day Schs Payments                   ,1850,01/11/2016,R,UNSTED PARK                   ,,
520,Childrens & Education Services,Support for SEN Pupils,Non-Delegated Statements,K90024,Third Party Payments          ,Other Establishments          ,EG50,Ind Day Schs Payments                   ,2602.8,12/12/2016,R,MORE HOUSE SCHOOL             ,,
521,Childrens & Education Services,Support for SEN Pupils,Non-Delegated Statements,K90024,Third Party Payments          ,Other Establishments          ,EG50,Ind Day Schs Payments                   ,3183.33,15/11/2016,R,UNSTED PARK                   ,,
522,Childrens & Education Services,Support for SEN Pupils,Non-Delegated Statements,K90024,Third Party Payments          ,Other Establishments          ,EG50,Ind Day Schs Payments                   ,4389,01/12/2016,R,BLOSSOM HOUSE SCHOOL          ,,
523,Childrens & Education Services,Support for SEN Pupils,Non-Delegated Statements,K90024,Third Party Payments          ,Other Establishments          ,EG50,Ind Day Schs Payments                   ,5324,10/11/2016,R,BLOSSOM HOUSE SCHOOL          ,,
524,Childrens & Education Services,Support for SEN Pupils,Non-Delegated Statements,K90024,Third Party Payments          ,Other Establishments          ,EG50,Ind Day Schs Payments                   ,5396.07,03/10/2016,R,LVS HASSOCKS                  ,,
525,Childrens & Education Services,Support for SEN Pupils,Non-Delegated Statements,K90024,Third Party Payments          ,Other Establishments          ,EG50,Ind Day Schs Payments                   ,7719.66,03/10/2016,R,LVS HASSOCKS                  ,,
526,Childrens & Education Services,Support for SEN Pupils,Non-Delegated Statements,K90024,Third Party Payments          ,Other Establishments          ,EG50,Ind Day Schs Payments                   ,22377.6,15/11/2016,R,UNSTED PARK                   ,,
527,Childrens & Education Services,Behavioural Support,Language & Learning Service,K90025,Employees                     ,Direct Employee Expenses      ,AA17,Agency Staff & Casual Paymts            ,800,28/11/2016,R,REDACTED,,
528,Childrens & Education Services,Admissions & Planning Sch Prov,Retained Schools Budgets,K90030,Supplies & Services           ,Catering                      ,DB50,Refreshments                            ,1020,22/11/2016,R,GINGHAM HEARTS LTD            ,,
529,Childrens & Education Services,Del. Ind Secondary Sch Budgets,Schools Delegated Budget,K90032,Supplies & Services           ,Expenses                      ,DH17,Advances                                ,90000,14/12/2016,R,WEST WIMBLEDON PRIMARY SCHOOL ,,
530,Childrens & Education Services,Facilitating School Improvemnt,SSQ CORE OFFER - EMAG (DSG),K90041,Supplies & Services           ,Expenses                      ,DH02,Conferences                             ,585,12/12/2016,R,HAPSFORD ASSOCIATES           ,,
531,Childrens & Education Services,Facilitating School Improvemnt,SSQ CORE OFFER - EMAG (DSG),K90041,Supplies & Services           ,Expenses                      ,DH02,Conferences                             ,585,12/12/2016,R,HAPSFORD ASSOCIATES           ,,
532,Childrens & Education Services,Nursery schools,EARLY YEARS NURSERY GRANTS,K90042,Supplies & Services           ,Grants and Subscriptions      ,DJ57,Nursery Grant Payment-4yr olds          ,508.52,16/12/2016,R,CHERUBS@NEW HORIZON           ,,
533,Childrens & Education Services,Nursery schools,EARLY YEARS NURSERY GRANTS,K90042,Supplies & Services           ,Grants and Subscriptions      ,DJ57,Nursery Grant Payment-4yr olds          ,525,16/12/2016,R,HASLEMERE HOUSE DAY NURSERY   ,,
534,Childrens & Education Services,Nursery schools,EARLY YEARS NURSERY GRANTS,K90042,Supplies & Services           ,Grants and Subscriptions      ,DJ57,Nursery Grant Payment-4yr olds          ,617.79,16/12/2016,R,NURSERY ON THE GREEN          ,,
535,Childrens & Education Services,Nursery schools,EARLY YEARS NURSERY GRANTS,K90042,Supplies & Services           ,Grants and Subscriptions      ,DJ57,Nursery Grant Payment-4yr olds          ,651.72,20/12/2016,R,LITTLE LEARNERS               ,,
536,Childrens & Education Services,Nursery schools,EARLY YEARS NURSERY GRANTS,K90042,Supplies & Services           ,Grants and Subscriptions      ,DJ57,Nursery Grant Payment-4yr olds          ,833.7,16/12/2016,R,CAROUSEL LTD                  ,,
537,Childrens & Education Services,Nursery schools,EARLY YEARS NURSERY GRANTS,K90042,Supplies & Services           ,Grants and Subscriptions      ,DJ57,Nursery Grant Payment-4yr olds          ,943.27,20/12/2016,R,NEW COMPTON NURSERY           ,,
538,Childrens & Education Services,Nursery schools,EARLY YEARS NURSERY GRANTS,K90042,Supplies & Services           ,Grants and Subscriptions      ,DJ57,Nursery Grant Payment-4yr olds          ,1111.22,20/12/2016,R,BLOSSOM HOUSE SCHOOL          ,,
539,Childrens & Education Services,Nursery schools,EARLY YEARS NURSERY GRANTS,K90042,Supplies & Services           ,Grants and Subscriptions      ,DJ57,Nursery Grant Payment-4yr olds          ,1956.13,16/12/2016,R,COOPERATIVE CHILDCARE         ,,
540,Childrens & Education Services,Nursery schools,EARLY YEARS NURSERY GRANTS,K90042,Supplies & Services           ,Grants and Subscriptions      ,DJ57,Nursery Grant Payment-4yr olds          ,2037.47,20/12/2016,R,LITTLE HANDS MONTESSORI       ,,
541,Childrens & Education Services,Nursery schools,EARLY YEARS NURSERY GRANTS,K90042,Supplies & Services           ,Grants and Subscriptions      ,DJ57,Nursery Grant Payment-4yr olds          ,2065.86,20/12/2016,R,LOVE LANE DAY NURSERY         ,,
542,Childrens & Education Services,Nursery schools,EARLY YEARS NURSERY GRANTS,K90042,Supplies & Services           ,Grants and Subscriptions      ,DJ57,Nursery Grant Payment-4yr olds          ,2142.83,20/12/2016,R,SACRED HEART FUN CLUB         ,,
543,Childrens & Education Services,Nursery schools,EARLY YEARS NURSERY GRANTS,K90042,Supplies & Services           ,Grants and Subscriptions      ,DJ57,Nursery Grant Payment-4yr olds          ,2161.73,20/12/2016,R,CHERUBS @ NEWMINSTER          ,,
544,Childrens & Education Services,Nursery schools,EARLY YEARS NURSERY GRANTS,K90042,Supplies & Services           ,Grants and Subscriptions      ,DJ57,Nursery Grant Payment-4yr olds          ,2544.03,20/12/2016,R,ACORN NURSERY                 ,,
545,Childrens & Education Services,Nursery schools,EARLY YEARS NURSERY GRANTS,K90042,Supplies & Services           ,Grants and Subscriptions      ,DJ57,Nursery Grant Payment-4yr olds          ,2702.16,20/12/2016,R,HAPPY FACES@CRANMER           ,,
546,Childrens & Education Services,Nursery schools,EARLY YEARS NURSERY GRANTS,K90042,Supplies & Services           ,Grants and Subscriptions      ,DJ57,Nursery Grant Payment-4yr olds          ,3430.08,20/12/2016,R,CROWN KINDERGARTEN            ,,
547,Childrens & Education Services,Nursery schools,EARLY YEARS NURSERY GRANTS,K90042,Supplies & Services           ,Grants and Subscriptions      ,DJ57,Nursery Grant Payment-4yr olds          ,3801.67,20/12/2016,R,CHERUBS CHILDCARE LTD         ,,
548,Childrens & Education Services,Nursery schools,EARLY YEARS NURSERY GRANTS,K90042,Supplies & Services           ,Grants and Subscriptions      ,DJ57,Nursery Grant Payment-4yr olds          ,3887.42,20/12/2016,R,ST OLAVES NURSERY             ,,
549,Childrens & Education Services,Nursery schools,EARLY YEARS NURSERY GRANTS,K90042,Supplies & Services           ,Grants and Subscriptions      ,DJ57,Nursery Grant Payment-4yr olds          ,4001.76,20/12/2016,R,DEE'S DAYS NURSERY            ,,
550,Childrens & Education Services,Nursery schools,EARLY YEARS NURSERY GRANTS,K90042,Supplies & Services           ,Grants and Subscriptions      ,DJ57,Nursery Grant Payment-4yr olds          ,4392.41,20/12/2016,R,ARK AT SHERWOOD LTD           ,,
551,Childrens & Education Services,Nursery schools,EARLY YEARS NURSERY GRANTS,K90042,Supplies & Services           ,Grants and Subscriptions      ,DJ57,Nursery Grant Payment-4yr olds          ,4506.74,20/12/2016,R,BUMPSA-DAISIES NURSERY        ,,
552,Childrens & Education Services,Nursery schools,EARLY YEARS NURSERY GRANTS,K90042,Supplies & Services           ,Grants and Subscriptions      ,DJ57,Nursery Grant Payment-4yr olds          ,4630.61,20/12/2016,R,BUMBLE BEES'S DAY NURSERY-COCC,,
553,Childrens & Education Services,Nursery schools,EARLY YEARS NURSERY GRANTS,K90042,Supplies & Services           ,Grants and Subscriptions      ,DJ57,Nursery Grant Payment-4yr olds          ,4724.94,20/12/2016,R,MINNIE & MAMMA DAY NURSERY LTD,,
554,Childrens & Education Services,Nursery schools,EARLY YEARS NURSERY GRANTS,K90042,Supplies & Services           ,Grants and Subscriptions      ,DJ57,Nursery Grant Payment-4yr olds          ,4863.89,20/12/2016,R,JOLLYTIME PLAYGROUP           ,,
555,Childrens & Education Services,Nursery schools,EARLY YEARS NURSERY GRANTS,K90042,Supplies & Services           ,Grants and Subscriptions      ,DJ57,Nursery Grant Payment-4yr olds          ,4863.89,20/12/2016,R,REDACTED,,
556,Childrens & Education Services,Nursery schools,EARLY YEARS NURSERY GRANTS,K90042,Supplies & Services           ,Grants and Subscriptions      ,DJ57,Nursery Grant Payment-4yr olds          ,5145.12,20/12/2016,R,PLAYDAYS DAY NURSERY          ,,
557,Childrens & Education Services,Nursery schools,EARLY YEARS NURSERY GRANTS,K90042,Supplies & Services           ,Grants and Subscriptions      ,DJ57,Nursery Grant Payment-4yr olds          ,6174.14,20/12/2016,R,LA PETITE FLEUR PRE-SCHOOL    ,,
558,Childrens & Education Services,Nursery schools,EARLY YEARS NURSERY GRANTS,K90042,Supplies & Services           ,Grants and Subscriptions      ,DJ57,Nursery Grant Payment-4yr olds          ,6288.48,20/12/2016,R,DEE'S DAY NURSERY             ,,
559,Childrens & Education Services,Nursery schools,EARLY YEARS NURSERY GRANTS,K90042,Supplies & Services           ,Grants and Subscriptions      ,DJ57,Nursery Grant Payment-4yr olds          ,6336.12,20/12/2016,R,CHERUBS @ ST THOMAS           ,,
560,Childrens & Education Services,Nursery schools,EARLY YEARS NURSERY GRANTS,K90042,Supplies & Services           ,Grants and Subscriptions      ,DJ57,Nursery Grant Payment-4yr olds          ,6341.84,20/12/2016,R,ST MARK'S MONTESSORI          ,,
561,Childrens & Education Services,Nursery schools,EARLY YEARS NURSERY GRANTS,K90042,Supplies & Services           ,Grants and Subscriptions      ,DJ57,Nursery Grant Payment-4yr olds          ,6606.77,20/12/2016,R,WILLINGTON SCH.FOUNDATION LTD ,,
562,Childrens & Education Services,Nursery schools,EARLY YEARS NURSERY GRANTS,K90042,Supplies & Services           ,Grants and Subscriptions      ,DJ57,Nursery Grant Payment-4yr olds          ,6812.52,20/12/2016,R,HASLEMERE HOUSE DAY NURSERY   ,,
563,Childrens & Education Services,Nursery schools,EARLY YEARS NURSERY GRANTS,K90042,Supplies & Services           ,Grants and Subscriptions      ,DJ57,Nursery Grant Payment-4yr olds          ,7123.13,20/12/2016,R,MMI PRE SCHOOL                ,,
564,Childrens & Education Services,Nursery schools,EARLY YEARS NURSERY GRANTS,K90042,Supplies & Services           ,Grants and Subscriptions      ,DJ57,Nursery Grant Payment-4yr olds          ,7241.28,20/12/2016,R,COOPERATIVE CHILDCARE         ,,
565,Childrens & Education Services,Nursery schools,EARLY YEARS NURSERY GRANTS,K90042,Supplies & Services           ,Grants and Subscriptions      ,DJ57,Nursery Grant Payment-4yr olds          ,7431.84,20/12/2016,R,NURTURE DAY NURSERIES         ,,
566,Childrens & Education Services,Nursery schools,EARLY YEARS NURSERY GRANTS,K90042,Supplies & Services           ,Grants and Subscriptions      ,DJ57,Nursery Grant Payment-4yr olds          ,7431.84,20/12/2016,R,DICKY BIRDS PRE-SCH NURSERIES ,,
567,Childrens & Education Services,Nursery schools,EARLY YEARS NURSERY GRANTS,K90042,Supplies & Services           ,Grants and Subscriptions      ,DJ57,Nursery Grant Payment-4yr olds          ,7532.46,20/12/2016,R,COLLIERS WOOD VILLAGE DAY NUR.,,
568,Childrens & Education Services,Nursery schools,EARLY YEARS NURSERY GRANTS,K90042,Supplies & Services           ,Grants and Subscriptions      ,DJ57,Nursery Grant Payment-4yr olds          ,7603.34,20/12/2016,R,FUNKY OWLS NURSERY            ,,
569,Childrens & Education Services,Nursery schools,EARLY YEARS NURSERY GRANTS,K90042,Supplies & Services           ,Grants and Subscriptions      ,DJ57,Nursery Grant Payment-4yr olds          ,7697.1,20/12/2016,R,KIDDIES KOTTAGE NURSERY       ,,
570,Childrens & Education Services,Nursery schools,EARLY YEARS NURSERY GRANTS,K90042,Supplies & Services           ,Grants and Subscriptions      ,DJ57,Nursery Grant Payment-4yr olds          ,7717.68,20/12/2016,R,JIGSAW DAY NURSERY            ,,
571,Childrens & Education Services,Nursery schools,EARLY YEARS NURSERY GRANTS,K90042,Supplies & Services           ,Grants and Subscriptions      ,DJ57,Nursery Grant Payment-4yr olds          ,8093.27,20/12/2016,R,BUSY BEES DAY NURSERY - MORDEN,,
572,Childrens & Education Services,Nursery schools,EARLY YEARS NURSERY GRANTS,K90042,Supplies & Services           ,Grants and Subscriptions      ,DJ57,Nursery Grant Payment-4yr olds          ,8518.03,20/12/2016,R,OAKTREE PRE-SCHOOL NURSERY    ,,
573,Childrens & Education Services,Nursery schools,EARLY YEARS NURSERY GRANTS,K90042,Supplies & Services           ,Grants and Subscriptions      ,DJ57,Nursery Grant Payment-4yr olds          ,9108.27,20/12/2016,R,THE PRE-SCHOOL GROUP LTD      ,,
574,Childrens & Education Services,Nursery schools,EARLY YEARS NURSERY GRANTS,K90042,Supplies & Services           ,Grants and Subscriptions      ,DJ57,Nursery Grant Payment-4yr olds          ,9146.88,20/12/2016,R,EVELINE DAY & NURSERY SCHS LTD,,
575,Childrens & Education Services,Nursery schools,EARLY YEARS NURSERY GRANTS,K90042,Supplies & Services           ,Grants and Subscriptions      ,DJ57,Nursery Grant Payment-4yr olds          ,9146.88,20/12/2016,R,CAROUSEL LTD                  ,,
576,Childrens & Education Services,Nursery schools,EARLY YEARS NURSERY GRANTS,K90042,Supplies & Services           ,Grants and Subscriptions      ,DJ57,Nursery Grant Payment-4yr olds          ,9718.56,20/12/2016,R,NURTURE SW20                  ,,
577,Childrens & Education Services,Nursery schools,EARLY YEARS NURSERY GRANTS,K90042,Supplies & Services           ,Grants and Subscriptions      ,DJ57,Nursery Grant Payment-4yr olds          ,10232.24,20/12/2016,R,WILLOWS PRE-SCHOOL            ,,
578,Childrens & Education Services,Nursery schools,EARLY YEARS NURSERY GRANTS,K90042,Supplies & Services           ,Grants and Subscriptions      ,DJ57,Nursery Grant Payment-4yr olds          ,10290.24,20/12/2016,R,WIMBLEDON DAY NURSERY 2       ,,
579,Childrens & Education Services,Nursery schools,EARLY YEARS NURSERY GRANTS,K90042,Supplies & Services           ,Grants and Subscriptions      ,DJ57,Nursery Grant Payment-4yr olds          ,10290.24,20/12/2016,R,LITTLE HOUSE                  ,,
580,Childrens & Education Services,Nursery schools,EARLY YEARS NURSERY GRANTS,K90042,Supplies & Services           ,Grants and Subscriptions      ,DJ57,Nursery Grant Payment-4yr olds          ,10890.5,20/12/2016,R,MINI TREASURES DAY NURSERY    ,,
581,Childrens & Education Services,Nursery schools,EARLY YEARS NURSERY GRANTS,K90042,Supplies & Services           ,Grants and Subscriptions      ,DJ57,Nursery Grant Payment-4yr olds          ,11547.62,20/12/2016,R,THE GARDEN ROOM               ,,
582,Childrens & Education Services,Nursery schools,EARLY YEARS NURSERY GRANTS,K90042,Supplies & Services           ,Grants and Subscriptions      ,DJ57,Nursery Grant Payment-4yr olds          ,12658.9,20/12/2016,R,CAROUSEL DAY NURSERY          ,,
583,Childrens & Education Services,Nursery schools,EARLY YEARS NURSERY GRANTS,K90042,Supplies & Services           ,Grants and Subscriptions      ,DJ57,Nursery Grant Payment-4yr olds          ,13148.64,20/12/2016,R,EVELINE DAY NURSERY SCHOOLS   ,,
584,Childrens & Education Services,Nursery schools,EARLY YEARS NURSERY GRANTS,K90042,Supplies & Services           ,Grants and Subscriptions      ,DJ57,Nursery Grant Payment-4yr olds          ,13529.76,20/12/2016,R,PLAYDAYS DAY NURSERY          ,,
585,Childrens & Education Services,Nursery schools,EARLY YEARS NURSERY GRANTS,K90042,Supplies & Services           ,Grants and Subscriptions      ,DJ57,Nursery Grant Payment-4yr olds          ,13556.82,20/12/2016,R,WIMBLEDON DAY NURSERY         ,,
586,Childrens & Education Services,Nursery schools,EARLY YEARS NURSERY GRANTS,K90042,Supplies & Services           ,Grants and Subscriptions      ,DJ57,Nursery Grant Payment-4yr olds          ,15348.37,20/12/2016,R,WILLOW PRE SCHOOL             ,,
587,Childrens & Education Services,Nursery schools,EARLY YEARS NURSERY GRANTS,K90042,Supplies & Services           ,Grants and Subscriptions      ,DJ57,Nursery Grant Payment-4yr olds          ,15492.96,20/12/2016,R,DONHEAD SCHOOL                ,,
588,Childrens & Education Services,Nursery schools,EARLY YEARS NURSERY GRANTS,K90042,Supplies & Services           ,Grants and Subscriptions      ,DJ57,Nursery Grant Payment-4yr olds          ,15902.42,20/12/2016,R,BUILDING BLOCKS NURSERY       ,,
589,Childrens & Education Services,Nursery schools,EARLY YEARS NURSERY GRANTS,K90042,Supplies & Services           ,Grants and Subscriptions      ,DJ57,Nursery Grant Payment-4yr olds          ,19246.56,20/12/2016,R,DICKY BIRDS DAY NURSERIES     ,,
590,Childrens & Education Services,Nursery schools,EARLY YEARS NURSERY GRANTS,K90042,Supplies & Services           ,Grants and Subscriptions      ,DJ57,Nursery Grant Payment-4yr olds          ,19246.56,20/12/2016,R,DICKY BIRDS PRE SCHOOL NURSERY,,
591,Childrens & Education Services,Nursery schools,EARLY YEARS NURSERY GRANTS,K90042,Supplies & Services           ,Grants and Subscriptions      ,DJ57,Nursery Grant Payment-4yr olds          ,19665.79,20/12/2016,R,WIMBLEDON HOUSE DAY NURSERY   ,,
592,Childrens & Education Services,Nursery schools,EARLY YEARS NURSERY GRANTS,K90042,Supplies & Services           ,Grants and Subscriptions      ,DJ57,Nursery Grant Payment-4yr olds          ,21152.16,20/12/2016,R,KINGSWOOD DAYCARE NURSERY LTD ,,
593,Childrens & Education Services,Nursery schools,EARLY YEARS NURSERY GRANTS,K90042,Supplies & Services           ,Grants and Subscriptions      ,DJ57,Nursery Grant Payment-4yr olds          ,24273.19,20/12/2016,R,DATE VALLEY SCHOOL            ,,
594,Childrens & Education Services,Nursery schools,EARLY YEARS NURSERY GRANTS,K90042,Supplies & Services           ,Grants and Subscriptions      ,DJ57,Nursery Grant Payment-4yr olds          ,25679.14,20/12/2016,R,URSULINE PREPARATORY SCHOOL   ,,
595,Childrens & Education Services,Nursery schools,EARLY YEARS NURSERY GRANTS,K90042,Supplies & Services           ,Grants and Subscriptions      ,DJ58,Nursery Grant Payment-3yr olds          ,536.54,20/12/2016,R,LITTLE LEARNERS               ,,
596,Childrens & Education Services,Nursery schools,EARLY YEARS NURSERY GRANTS,K90042,Supplies & Services           ,Grants and Subscriptions      ,DJ58,Nursery Grant Payment-3yr olds          ,632.63,20/12/2016,R,WILLOWS PRE-SCHOOL            ,,
597,Childrens & Education Services,Nursery schools,EARLY YEARS NURSERY GRANTS,K90042,Supplies & Services           ,Grants and Subscriptions      ,DJ58,Nursery Grant Payment-3yr olds          ,684.51,16/12/2016,R,FUNKY OWLS NURSERY            ,,
598,Childrens & Education Services,Nursery schools,EARLY YEARS NURSERY GRANTS,K90042,Supplies & Services           ,Grants and Subscriptions      ,DJ58,Nursery Grant Payment-3yr olds          ,699.84,20/12/2016,R,ACORN NURSERY                 ,,
599,Childrens & Education Services,Nursery schools,EARLY YEARS NURSERY GRANTS,K90042,Supplies & Services           ,Grants and Subscriptions      ,DJ58,Nursery Grant Payment-3yr olds          ,768.47,16/12/2016,R,HOLY CROSS PRE SCHOOL         ,,
600,Childrens & Education Services,Nursery schools,EARLY YEARS NURSERY GRANTS,K90042,Supplies & Services           ,Grants and Subscriptions      ,DJ58,Nursery Grant Payment-3yr olds          ,777.6,20/12/2016,R,DICKY BIRDS DAY NURSERIES     ,,
601,Childrens & Education Services,Nursery schools,EARLY YEARS NURSERY GRANTS,K90042,Supplies & Services           ,Grants and Subscriptions      ,DJ58,Nursery Grant Payment-3yr olds          ,777.6,16/12/2016,R,NURSERY ON THE GREEN          ,,
602,Childrens & Education Services,Nursery schools,EARLY YEARS NURSERY GRANTS,K90042,Supplies & Services           ,Grants and Subscriptions      ,DJ58,Nursery Grant Payment-3yr olds          ,791.49,16/12/2016,R,CHERUBS @ ST THOMAS           ,,
603,Childrens & Education Services,Nursery schools,EARLY YEARS NURSERY GRANTS,K90042,Supplies & Services           ,Grants and Subscriptions      ,DJ58,Nursery Grant Payment-3yr olds          ,806.8,16/12/2016,R,MONKEY PUZZLE DAY NURSERY MITC,,
604,Childrens & Education Services,Nursery schools,EARLY YEARS NURSERY GRANTS,K90042,Supplies & Services           ,Grants and Subscriptions      ,DJ58,Nursery Grant Payment-3yr olds          ,846.45,16/12/2016,R,BUMPSA-DAISIES NURSERY        ,,
605,Childrens & Education Services,Nursery schools,EARLY YEARS NURSERY GRANTS,K90042,Supplies & Services           ,Grants and Subscriptions      ,DJ58,Nursery Grant Payment-3yr olds          ,1057.54,20/12/2016,R,ST OLAVES NURSERY             ,,
606,Childrens & Education Services,Nursery schools,EARLY YEARS NURSERY GRANTS,K90042,Supplies & Services           ,Grants and Subscriptions      ,DJ58,Nursery Grant Payment-3yr olds          ,1116.38,16/12/2016,R,KINGSWOOD DAYCARE NURSERY LTD ,,
607,Childrens & Education Services,Nursery schools,EARLY YEARS NURSERY GRANTS,K90042,Supplies & Services           ,Grants and Subscriptions      ,DJ58,Nursery Grant Payment-3yr olds          ,1128.99,16/12/2016,R,BUILDING BLOCKS NURSERY       ,,
608,Childrens & Education Services,Nursery schools,EARLY YEARS NURSERY GRANTS,K90042,Supplies & Services           ,Grants and Subscriptions      ,DJ58,Nursery Grant Payment-3yr olds          ,1166.4,16/12/2016,R,MINI TREASURES DAY NURSERY    ,,
609,Childrens & Education Services,Nursery schools,EARLY YEARS NURSERY GRANTS,K90042,Supplies & Services           ,Grants and Subscriptions      ,DJ58,Nursery Grant Payment-3yr olds          ,1364.69,20/12/2016,R,SACRED HEART FUN CLUB         ,,
610,Childrens & Education Services,Nursery schools,EARLY YEARS NURSERY GRANTS,K90042,Supplies & Services           ,Grants and Subscriptions      ,DJ58,Nursery Grant Payment-3yr olds          ,1399.68,20/12/2016,R,MMI PRE SCHOOL                ,,
611,Childrens & Education Services,Nursery schools,EARLY YEARS NURSERY GRANTS,K90042,Supplies & Services           ,Grants and Subscriptions      ,DJ58,Nursery Grant Payment-3yr olds          ,1595.17,16/12/2016,R,LITTLE FOREST FOLK LTD        ,,
612,Childrens & Education Services,Nursery schools,EARLY YEARS NURSERY GRANTS,K90042,Supplies & Services           ,Grants and Subscriptions      ,DJ58,Nursery Grant Payment-3yr olds          ,1612.29,16/12/2016,R,CHERUBS CHILDCARE LTD         ,,
613,Childrens & Education Services,Nursery schools,EARLY YEARS NURSERY GRANTS,K90042,Supplies & Services           ,Grants and Subscriptions      ,DJ58,Nursery Grant Payment-3yr olds          ,2008.8,20/12/2016,R,DEE'S DAYS NURSERY            ,,
614,Childrens & Education Services,Nursery schools,EARLY YEARS NURSERY GRANTS,K90042,Supplies & Services           ,Grants and Subscriptions      ,DJ58,Nursery Grant Payment-3yr olds          ,2021.76,20/12/2016,R,WIMBLEDON HOUSE DAY NURSERY   ,,
615,Childrens & Education Services,Nursery schools,EARLY YEARS NURSERY GRANTS,K90042,Supplies & Services           ,Grants and Subscriptions      ,DJ58,Nursery Grant Payment-3yr olds          ,2134.6,16/12/2016,R,FIRST LITTLE STEPS            ,,
616,Childrens & Education Services,Nursery schools,EARLY YEARS NURSERY GRANTS,K90042,Supplies & Services           ,Grants and Subscriptions      ,DJ58,Nursery Grant Payment-3yr olds          ,2248.56,20/12/2016,R,DICKY BIRDS PRE SCHOOL NURSERY,,
617,Childrens & Education Services,Nursery schools,EARLY YEARS NURSERY GRANTS,K90042,Supplies & Services           ,Grants and Subscriptions      ,DJ58,Nursery Grant Payment-3yr olds          ,2280.96,20/12/2016,R,COOPERATIVE CHILDCARE         ,,
618,Childrens & Education Services,Nursery schools,EARLY YEARS NURSERY GRANTS,K90042,Supplies & Services           ,Grants and Subscriptions      ,DJ58,Nursery Grant Payment-3yr olds          ,2332.8,20/12/2016,R,DEE'S DAY NURSERY             ,,
619,Childrens & Education Services,Nursery schools,EARLY YEARS NURSERY GRANTS,K90042,Supplies & Services           ,Grants and Subscriptions      ,DJ58,Nursery Grant Payment-3yr olds          ,2737.93,16/12/2016,R,ARK AT SHERWOOD LTD           ,,
620,Childrens & Education Services,Nursery schools,EARLY YEARS NURSERY GRANTS,K90042,Supplies & Services           ,Grants and Subscriptions      ,DJ58,Nursery Grant Payment-3yr olds          ,2877.12,20/12/2016,R,FUNKY OWLS NURSERY            ,,
621,Childrens & Education Services,Nursery schools,EARLY YEARS NURSERY GRANTS,K90042,Supplies & Services           ,Grants and Subscriptions      ,DJ58,Nursery Grant Payment-3yr olds          ,3499.2,20/12/2016,R,JIGSAW DAY NURSERY            ,,
622,Childrens & Education Services,Nursery schools,EARLY YEARS NURSERY GRANTS,K90042,Supplies & Services           ,Grants and Subscriptions      ,DJ58,Nursery Grant Payment-3yr olds          ,3650.29,20/12/2016,R,THE PRE-SCHOOL GROUP LTD      ,,
623,Childrens & Education Services,Nursery schools,EARLY YEARS NURSERY GRANTS,K90042,Supplies & Services           ,Grants and Subscriptions      ,DJ58,Nursery Grant Payment-3yr olds          ,4199.04,20/12/2016,R,MINI TREASURES DAY NURSERY    ,,
624,Childrens & Education Services,Nursery schools,EARLY YEARS NURSERY GRANTS,K90042,Supplies & Services           ,Grants and Subscriptions      ,DJ58,Nursery Grant Payment-3yr olds          ,4199.04,20/12/2016,R,REDACTED,,
625,Childrens & Education Services,Nursery schools,EARLY YEARS NURSERY GRANTS,K90042,Supplies & Services           ,Grants and Subscriptions      ,DJ58,Nursery Grant Payment-3yr olds          ,4199.04,20/12/2016,R,JOLLYTIME PLAYGROUP           ,,
626,Childrens & Education Services,Nursery schools,EARLY YEARS NURSERY GRANTS,K90042,Supplies & Services           ,Grants and Subscriptions      ,DJ58,Nursery Grant Payment-3yr olds          ,4758.91,20/12/2016,R,KIDDIES KOTTAGE NURSERY       ,,
627,Childrens & Education Services,Nursery schools,EARLY YEARS NURSERY GRANTS,K90042,Supplies & Services           ,Grants and Subscriptions      ,DJ58,Nursery Grant Payment-3yr olds          ,5443.2,20/12/2016,R,CAROUSEL LTD                  ,,
628,Childrens & Education Services,Nursery schools,EARLY YEARS NURSERY GRANTS,K90042,Supplies & Services           ,Grants and Subscriptions      ,DJ58,Nursery Grant Payment-3yr olds          ,5912.36,16/12/2016,R,COOPERATIVE CHILDCARE         ,,
629,Childrens & Education Services,Nursery schools,EARLY YEARS NURSERY GRANTS,K90042,Supplies & Services           ,Grants and Subscriptions      ,DJ58,Nursery Grant Payment-3yr olds          ,6998.4,20/12/2016,R,LA PETITE FLEUR PRE-SCHOOL    ,,
630,Childrens & Education Services,Nursery schools,EARLY YEARS NURSERY GRANTS,K90042,Supplies & Services           ,Grants and Subscriptions      ,DJ58,Nursery Grant Payment-3yr olds          ,7698.24,20/12/2016,R,BUMPSA-DAISIES NURSERY        ,,
631,Childrens & Education Services,Nursery schools,EARLY YEARS NURSERY GRANTS,K90042,Supplies & Services           ,Grants and Subscriptions      ,DJ58,Nursery Grant Payment-3yr olds          ,7847.28,20/12/2016,R,CHERUBS CHILDCARE LTD         ,,
632,Childrens & Education Services,Nursery schools,EARLY YEARS NURSERY GRANTS,K90042,Supplies & Services           ,Grants and Subscriptions      ,DJ58,Nursery Grant Payment-3yr olds          ,8398.08,20/12/2016,R,HASLEMERE PRIMARY SCHOOL      ,,
633,Childrens & Education Services,Nursery schools,EARLY YEARS NURSERY GRANTS,K90042,Supplies & Services           ,Grants and Subscriptions      ,DJ58,Nursery Grant Payment-3yr olds          ,8553.6,20/12/2016,R,HASLEMERE HOUSE DAY NURSERY   ,,
634,Childrens & Education Services,Nursery schools,EARLY YEARS NURSERY GRANTS,K90042,Supplies & Services           ,Grants and Subscriptions      ,DJ58,Nursery Grant Payment-3yr olds          ,8569.15,20/12/2016,R,MINNIE & MAMMA DAY NURSERY LTD,,
635,Childrens & Education Services,Nursery schools,EARLY YEARS NURSERY GRANTS,K90042,Supplies & Services           ,Grants and Subscriptions      ,DJ58,Nursery Grant Payment-3yr olds          ,8838.72,20/12/2016,R,CHERUBS @ ST THOMAS           ,,
636,Childrens & Education Services,Nursery schools,EARLY YEARS NURSERY GRANTS,K90042,Supplies & Services           ,Grants and Subscriptions      ,DJ58,Nursery Grant Payment-3yr olds          ,13737.6,20/12/2016,R,KINGSWOOD DAYCARE NURSERY LTD ,,
637,Childrens & Education Services,Nursery schools,EARLY YEARS NURSERY GRANTS,K90042,Supplies & Services           ,Grants and Subscriptions      ,DJ58,Nursery Grant Payment-3yr olds          ,15215.04,20/12/2016,R,ARK AT SHERWOOD LTD           ,,
638,Childrens & Education Services,Nursery schools,EARLY YEARS NURSERY GRANTS,K90042,Supplies & Services           ,Grants and Subscriptions      ,DJ58,Nursery Grant Payment-3yr olds          ,15396.48,20/12/2016,R,CHERUBS @ NEWMINSTER          ,,
639,Childrens & Education Services,Nursery schools,EARLY YEARS NURSERY GRANTS,K90042,Supplies & Services           ,Grants and Subscriptions      ,DJ58,Nursery Grant Payment-3yr olds          ,19595.52,20/12/2016,R,HAPPY FACES@CRANMER           ,,
640,Childrens & Education Services,Support for SEN Pupils,ART SEN Residential (DSG),K90050,Third Party Payments          ,Other Establishments          ,EG51,Ind Resid Schs Payments                 ,17276.67,25/11/2016,R,MOOR HOUSE SCHOOL             ,,
641,Childrens & Education Services,Support for SEN Pupils,ART SEN Residential (DSG),K90050,Third Party Payments          ,Other Establishments          ,EG51,Ind Resid Schs Payments                 ,18615,20/10/2016,R,PHILPOTS MANOR SCHOOL         ,,
642,Childrens & Education Services,Support for SEN Pupils,ART SEN Residential (DSG),K90050,Third Party Payments          ,Other Establishments          ,EG51,Ind Resid Schs Payments                 ,38182.67,28/11/2016,R,PRIORS COURT FOUNDATION       ,,
643,Childrens & Education Services,Support for SEN Pupils,ART SEN Residential (DSG),K90050,Third Party Payments          ,Other Establishments          ,EG51,Ind Resid Schs Payments                 ,82088,15/11/2016,R,THREE OAKS PRIORY             ,,
644,Cultural Env Reg&Plan Services,Library DoS not split,Libraries Service-Civic Centre,L50001,Supplies & Services           ,Equip Furniture/Materials     ,DA09,Equip-Purchases                         ,560,30/11/2016,R,L & M CURTAINS & BLINDS       ,,
645,Cultural Env Reg&Plan Services,Library DoS not split,Libraries Service-Civic Centre,L50001,Supplies & Services           ,Equip Furniture/Materials     ,DA09,Equip-Purchases                         ,1092.6,23/11/2016,R,SICO EUROPE LIMITED           ,,
646,Cultural Env Reg&Plan Services,Library DoS not split,MITCHAM LIBRARY,L83071,Premises Related Expenditure  ,Cleaning and Domestic Supplies,BH03,Cleaning Services                       ,991.75,01/12/2016,R,BIRKIN CLEANING SERVICES LTD  ,,
647,Cultural Env Reg&Plan Services,Library DoS not split,Pollards Hill Library,L83073,Premises Related Expenditure  ,Cleaning and Domestic Supplies,BH03,Cleaning Services                       ,1320.92,01/12/2016,R,BIRKIN CLEANING SERVICES LTD  ,,
648,Cultural Env Reg&Plan Services,Library DoS not split,Media Fund,L83081,Supplies & Services           ,Equip Furniture/Materials     ,DA60,Lending                                 ,1249,30/11/2016,R,SPECTRUM PLASTICS             ,,
649,Cultural Env Reg&Plan Services,Library DoS not split,Media Fund,L83081,Supplies & Services           ,Equip Furniture/Materials     ,DA60,Lending                                 ,3377.78,02/12/2016,R,HEATH BOOKS LTD               ,,
650,Cultural Env Reg&Plan Services,Library DoS not split,Media Fund,L83081,Supplies & Services           ,Prntng Stnry Gen Off Exp      ,DE51,Newspapers and Magazines                ,718.9,24/11/2016,R,CHASE NEWSAGENTS              ,,
651,Cultural Env Reg&Plan Services,Library DoS not split,Media Fund,L83081,Supplies & Services           ,Comms and Computing           ,DG04,Postage - General                       ,970.4,30/09/2016,R,EXCEL GROUP SERVICES          ,,
652,Cultural Env Reg&Plan Services,Library DoS not split,Media Fund,L83081,Supplies & Services           ,Comms and Computing           ,DG04,Postage - General                       ,1227.2,30/11/2016,R,CITYSPRINT (UK) LIMITED       ,,
653,Cultural Env Reg&Plan Services,Library DoS not split,Morden Library,L84081,Premises Related Expenditure  ,Cleaning and Domestic Supplies,BH03,Cleaning Services                       ,1044.61,01/12/2016,R,BIRKIN CLEANING SERVICES LTD  ,,
654,Cultural Env Reg&Plan Services,Library DoS not split,Raynes Park Library,L84083,Premises Related Expenditure  ,Cleaning and Domestic Supplies,BH03,Cleaning Services                       ,772.14,01/12/2016,R,BIRKIN CLEANING SERVICES LTD  ,,
655,Cultural Env Reg&Plan Services,Library DoS not split,Wimbledon Library,L85091,Premises Related Expenditure  ,Energy Costs                  ,BB03,Gas (incl. Butane)                      ,806.86,07/12/2016,R,GAZPROM MARKETING&TRADING LTD ,,
656,Cultural Env Reg&Plan Services,Library DoS not split,Wimbledon Library,L85091,Premises Related Expenditure  ,Cleaning and Domestic Supplies,BH03,Cleaning Services                       ,1791.82,01/12/2016,R,BIRKIN CLEANING SERVICES LTD  ,,
657,Housing Services,Bed / breakfast accommodation,TEMPORARY ACCOMMODATION,N47160,Third Party Payments          ,Private Contractors           ,EH01,Miscellaneous Agency Services           ,750,30/09/2016,R,EURO HOTEL (LEYTON) LTD       ,,
658,Housing Services,Bed / breakfast accommodation,TEMPORARY ACCOMMODATION,N47160,Third Party Payments          ,Private Contractors           ,EH01,Miscellaneous Agency Services           ,1050,30/09/2016,R,EURO HOTELS (HOUNSLOW)        ,,
659,Housing Services,Bed / breakfast accommodation,TEMPORARY ACCOMMODATION,N47160,Third Party Payments          ,Private Contractors           ,EH01,Miscellaneous Agency Services           ,1080,30/11/2016,R,SW LONDON LETTINGS LTD        ,,
660,Housing Services,Bed / breakfast accommodation,TEMPORARY ACCOMMODATION,N47160,Third Party Payments          ,Private Contractors           ,EH01,Miscellaneous Agency Services           ,1080,30/11/2016,R,SW LONDON LETTINGS LTD        ,,
661,Housing Services,Bed / breakfast accommodation,TEMPORARY ACCOMMODATION,N47160,Third Party Payments          ,Private Contractors           ,EH01,Miscellaneous Agency Services           ,1080,30/11/2016,R,SW LONDON LETTINGS LTD        ,,
662,Housing Services,Bed / breakfast accommodation,TEMPORARY ACCOMMODATION,N47160,Third Party Payments          ,Private Contractors           ,EH01,Miscellaneous Agency Services           ,1080,30/11/2016,R,SW LONDON LETTINGS LTD        ,,
663,Housing Services,Bed / breakfast accommodation,TEMPORARY ACCOMMODATION,N47160,Third Party Payments          ,Private Contractors           ,EH01,Miscellaneous Agency Services           ,1085,31/08/2016,R,EURO HOTELS (HOUNSLOW)        ,,
664,Housing Services,Bed / breakfast accommodation,TEMPORARY ACCOMMODATION,N47160,Third Party Payments          ,Private Contractors           ,EH01,Miscellaneous Agency Services           ,1085,31/10/2016,R,EURO HOTELS (HOUNSLOW)        ,,
665,Housing Services,Bed / breakfast accommodation,TEMPORARY ACCOMMODATION,N47160,Third Party Payments          ,Private Contractors           ,EH01,Miscellaneous Agency Services           ,1230,30/11/2016,R,SW LONDON LETTINGS LTD        ,,
666,Housing Services,Bed / breakfast accommodation,TEMPORARY ACCOMMODATION,N47160,Third Party Payments          ,Private Contractors           ,EH01,Miscellaneous Agency Services           ,1230,30/11/2016,R,SW LONDON LETTINGS LTD        ,,
667,Housing Services,Bed / breakfast accommodation,TEMPORARY ACCOMMODATION,N47160,Third Party Payments          ,Private Contractors           ,EH01,Miscellaneous Agency Services           ,1230,30/11/2016,R,SW LONDON LETTINGS LTD        ,,
668,Housing Services,Bed / breakfast accommodation,TEMPORARY ACCOMMODATION,N47160,Third Party Payments          ,Private Contractors           ,EH01,Miscellaneous Agency Services           ,1350,30/11/2016,R,ASSETGROVE LETTINGS LTD       ,,
669,Housing Services,Bed / breakfast accommodation,TEMPORARY ACCOMMODATION,N47160,Third Party Payments          ,Private Contractors           ,EH01,Miscellaneous Agency Services           ,1410,30/11/2016,R,ASSETGROVE LETTINGS LTD       ,,
670,Housing Services,Bed / breakfast accommodation,TEMPORARY ACCOMMODATION,N47160,Third Party Payments          ,Private Contractors           ,EH01,Miscellaneous Agency Services           ,1410,30/11/2016,R,ASSETGROVE LETTINGS LTD       ,,
671,Housing Services,Bed / breakfast accommodation,TEMPORARY ACCOMMODATION,N47160,Third Party Payments          ,Private Contractors           ,EH01,Miscellaneous Agency Services           ,1410,30/11/2016,R,ASSETGROVE LETTINGS LTD       ,,
672,Housing Services,Bed / breakfast accommodation,TEMPORARY ACCOMMODATION,N47160,Third Party Payments          ,Private Contractors           ,EH01,Miscellaneous Agency Services           ,1410,30/11/2016,R,ASSETGROVE LETTINGS LTD       ,,
673,Housing Services,Bed / breakfast accommodation,TEMPORARY ACCOMMODATION,N47160,Third Party Payments          ,Private Contractors           ,EH01,Miscellaneous Agency Services           ,1410,30/11/2016,R,ASSETGROVE LETTINGS LTD       ,,
674,Housing Services,Bed / breakfast accommodation,TEMPORARY ACCOMMODATION,N47160,Third Party Payments          ,Private Contractors           ,EH01,Miscellaneous Agency Services           ,1410,30/11/2016,R,ASSETGROVE LETTINGS LTD       ,,
675,Housing Services,Bed / breakfast accommodation,TEMPORARY ACCOMMODATION,N47160,Third Party Payments          ,Private Contractors           ,EH01,Miscellaneous Agency Services           ,1500,30/11/2016,R,ASSETGROVE LETTINGS LTD       ,,
676,Housing Services,Bed / breakfast accommodation,TEMPORARY ACCOMMODATION,N47160,Third Party Payments          ,Private Contractors           ,EH01,Miscellaneous Agency Services           ,1605,30/11/2016,R,SW LONDON LETTINGS LTD        ,,
677,Housing Services,Bed / breakfast accommodation,TEMPORARY ACCOMMODATION,N47160,Third Party Payments          ,Private Contractors           ,EH01,Miscellaneous Agency Services           ,1605,30/11/2016,R,SW LONDON LETTINGS LTD        ,,
678,Housing Services,Bed / breakfast accommodation,TEMPORARY ACCOMMODATION,N47160,Third Party Payments          ,Private Contractors           ,EH01,Miscellaneous Agency Services           ,1605,30/11/2016,R,SW LONDON LETTINGS LTD        ,,
679,Housing Services,Bed / breakfast accommodation,TEMPORARY ACCOMMODATION,N47160,Third Party Payments          ,Private Contractors           ,EH01,Miscellaneous Agency Services           ,1605,30/11/2016,R,SW LONDON LETTINGS LTD        ,,
680,Housing Services,Bed / breakfast accommodation,TEMPORARY ACCOMMODATION,N47160,Third Party Payments          ,Private Contractors           ,EH01,Miscellaneous Agency Services           ,1605,30/11/2016,R,SW LONDON LETTINGS LTD        ,,
681,Housing Services,Bed / breakfast accommodation,TEMPORARY ACCOMMODATION,N47160,Third Party Payments          ,Private Contractors           ,EH01,Miscellaneous Agency Services           ,1605,30/11/2016,R,SW LONDON LETTINGS LTD        ,,
682,Housing Services,Bed / breakfast accommodation,TEMPORARY ACCOMMODATION,N47160,Third Party Payments          ,Private Contractors           ,EH01,Miscellaneous Agency Services           ,1605,30/11/2016,R,SW LONDON LETTINGS LTD        ,,
683,Housing Services,Bed / breakfast accommodation,TEMPORARY ACCOMMODATION,N47160,Third Party Payments          ,Private Contractors           ,EH01,Miscellaneous Agency Services           ,1605,30/11/2016,R,SW LONDON LETTINGS LTD        ,,
684,Housing Services,Bed / breakfast accommodation,TEMPORARY ACCOMMODATION,N47160,Third Party Payments          ,Private Contractors           ,EH01,Miscellaneous Agency Services           ,1605,30/11/2016,R,SW LONDON LETTINGS LTD        ,,
685,Housing Services,Bed / breakfast accommodation,TEMPORARY ACCOMMODATION,N47160,Third Party Payments          ,Private Contractors           ,EH01,Miscellaneous Agency Services           ,1605,30/11/2016,R,SW LONDON LETTINGS LTD        ,,
686,Housing Services,Bed / breakfast accommodation,TEMPORARY ACCOMMODATION,N47160,Third Party Payments          ,Private Contractors           ,EH01,Miscellaneous Agency Services           ,1605,30/11/2016,R,SW LONDON LETTINGS LTD        ,,
687,Housing Services,Bed / breakfast accommodation,TEMPORARY ACCOMMODATION,N47160,Third Party Payments          ,Private Contractors           ,EH01,Miscellaneous Agency Services           ,1650,01/12/2016,R,CROMWOOD HOUSING              ,,
688,Housing Services,Bed / breakfast accommodation,TEMPORARY ACCOMMODATION,N47160,Third Party Payments          ,Private Contractors           ,EH01,Miscellaneous Agency Services           ,1705,01/11/2016,R,CROMWOOD HOUSING              ,,
689,Housing Services,Bed / breakfast accommodation,TEMPORARY ACCOMMODATION,N47160,Third Party Payments          ,Private Contractors           ,EH01,Miscellaneous Agency Services           ,1770,01/12/2016,R,CROMWOOD HOUSING              ,,
690,Housing Services,Bed / breakfast accommodation,TEMPORARY ACCOMMODATION,N47160,Third Party Payments          ,Private Contractors           ,EH01,Miscellaneous Agency Services           ,1829,01/11/2016,R,CROMWOOD HOUSING              ,,
691,Housing Services,Bed / breakfast accommodation,TEMPORARY ACCOMMODATION,N47160,Third Party Payments          ,Private Contractors           ,EH01,Miscellaneous Agency Services           ,1950,30/11/2016,R,ASSETGROVE LETTINGS LTD       ,,
692,Housing Services,Bed / breakfast accommodation,TEMPORARY ACCOMMODATION,N47160,Third Party Payments          ,Private Contractors           ,EH01,Miscellaneous Agency Services           ,2010,30/11/2016,R,SW LONDON LETTINGS LTD        ,,
693,Housing Services,Bed / breakfast accommodation,TEMPORARY ACCOMMODATION,N47160,Third Party Payments          ,Private Contractors           ,EH01,Miscellaneous Agency Services           ,2250,01/12/2016,R,CROMWOOD HOUSING              ,,
694,Housing Services,Bed / breakfast accommodation,TEMPORARY ACCOMMODATION,N47160,Third Party Payments          ,Private Contractors           ,EH01,Miscellaneous Agency Services           ,2250,30/11/2016,R,SW LONDON LETTINGS LTD        ,,
695,Housing Services,Bed / breakfast accommodation,TEMPORARY ACCOMMODATION,N47160,Third Party Payments          ,Private Contractors           ,EH01,Miscellaneous Agency Services           ,2325,01/11/2016,R,CROMWOOD HOUSING              ,,
696,Housing Services,Bed / breakfast accommodation,TEMPORARY ACCOMMODATION,N47160,Third Party Payments          ,Private Contractors           ,EH01,Miscellaneous Agency Services           ,2370,30/11/2016,R,CAPITAL HOMES ESTATES         ,,
697,Housing Services,Bed / breakfast accommodation,TEMPORARY ACCOMMODATION,N47160,Third Party Payments          ,Private Contractors           ,EH01,Miscellaneous Agency Services           ,19737,01/12/2016,R,CREST MANOR LTD               ,,
698,Housing Services,Bed / breakfast accommodation,TEMPORARY ACCOMMODATION,N47160,Third Party Payments          ,Private Contractors           ,EH01,Miscellaneous Agency Services           ,89727.9,03/11/2016,R,ROOMS & STUDIOS MANAGEMENT    ,,
699,Housing Services,Bed / breakfast accommodation,Homelessness Prevention,N47171,Transfer Payments             ,Housing Benefits              ,FA11,Sanctuary Scheme Rent Rescue            ,3000,07/12/2016,R,REDACTED,,
700,Housing Services,Bed / breakfast accommodation,Homelessness Prevention,N47171,Transfer Payments             ,Housing Benefits              ,FA12,Rent Deposits                           ,521.25,19/12/2016,R,REDACTED,,
701,Housing Services,Bed / breakfast accommodation,Homelessness Prevention,N47171,Transfer Payments             ,Housing Benefits              ,FA12,Rent Deposits                           ,1050,05/12/2016,R,PARSONS SON & BASLEY          ,,
702,Housing Services,Bed / breakfast accommodation,Homelessness Prevention,N47171,Transfer Payments             ,Housing Benefits              ,FA12,Rent Deposits                           ,1310,07/12/2016,R,COUNTY PRIVATE CLIENT LTD     ,,
703,Housing Services,Bed / breakfast accommodation,Homelessness Prevention,N47171,Transfer Payments             ,Housing Benefits              ,FA12,Rent Deposits                           ,2000,07/12/2016,R,REDACTED,,
704,Housing Services,Bed / breakfast accommodation,Homelessness Prevention,N47171,Transfer Payments             ,Housing Benefits              ,FA12,Rent Deposits                           ,5492,07/12/2016,R,PEGASUS SOLICITORS            ,,
705,Housing Services,Hsg Dept Supp Staff & Costs,Housing Needs & Enablg-central,N51000,Supplies & Services           ,Services                      ,DF14,Doctors and other fees                  ,1119.39,09/12/2016,R,REDACTED,,
706,Housing Services,Housing Strategy.,Housing Strategy,N53000,Employees                     ,Indirect Employee Expenses    ,AB57,External Training Costs                 ,600,29/11/2016,R,TFP ONLINE LTD                ,,
707,Housing Services,Housing Strategy.,Housing Strategy,N53000,Supplies & Services           ,Grants and Subscriptions      ,DJ04,Subscriptions                           ,7200,14/11/2016,R,HOMETRACK DATA SYSTEMS LTD    ,,
708,Highways & Transport Services,Saf mtc prin/oth rds not split,Highways GM Contract                    ,P04006,Premises Related Expenditure  ,Ground Maintenance Costs      ,BL50,Nature Conservation                     ,12756.98,25/11/2016,R,BARKLANDS TREE SPECIALISTS    ,,
709,Cultural Env Reg&Plan Services,Parks & Open Spaces,Park Utilities                          ,P04007,Premises Related Expenditure  ,Energy Costs                  ,BB03,Gas (incl. Butane)                      ,520,07/12/2016,R,GAZPROM MARKETING&TRADING LTD ,,
710,Cultural Env Reg&Plan Services,Parks & Open Spaces,Park Utilities                          ,P04007,Premises Related Expenditure  ,Energy Costs                  ,BB03,Gas (incl. Butane)                      ,582.54,07/12/2016,R,GAZPROM MARKETING&TRADING LTD ,,
711,Cultural Env Reg&Plan Services,Parks & Open Spaces,Park Utilities                          ,P04007,Premises Related Expenditure  ,Energy Costs                  ,BB03,Gas (incl. Butane)                      ,5030.53,07/12/2016,R,GAZPROM MARKETING&TRADING LTD ,,
712,Cultural Env Reg&Plan Services,Parks & Open Spaces,Park Utilities                          ,P04007,Premises Related Expenditure  ,Water Services                ,BE01,Use of Water (Metered)                  ,532.95,16/11/2016,R,THAMES WATER UTILITIES LTD    ,,
713,Cultural Env Reg&Plan Services,Parks & Open Spaces,Park Utilities                          ,P04007,Premises Related Expenditure  ,Water Services                ,BE01,Use of Water (Metered)                  ,665.39,17/08/2016,R,THAMES WATER UTILITIES LTD    ,,
714,Cultural Env Reg&Plan Services,Parks & Open Spaces,Park Utilities                          ,P04007,Premises Related Expenditure  ,Water Services                ,BE01,Use of Water (Metered)                  ,1787.45,01/11/2016,R,THAMES WATER UTILITIES LTD    ,,
715,Cultural Env Reg&Plan Services,Sports Dev & Community Rec,OLYMPICS&PARA LOOK&FEEL FUND,P04810,Supplies & Services           ,Equip Furniture/Materials     ,DA09,Equip-Purchases                         ,812,24/11/2016,R,NEWITTS                       ,,
716,Cultural Env Reg&Plan Services,Sports Dev & Community Rec,OLYMPICS&PARA LOOK&FEEL FUND,P04810,Third Party Payments          ,Private Contractors           ,EH01,Miscellaneous Contrct Services          ,2043.42,07/12/2016,R,YMCA LONDON SOUTH WEST        ,,
717,Cultural Env Reg&Plan Services,Sports Dev & Community Rec,OLYMPICS&PARA LOOK&FEEL FUND,P04810,Third Party Payments          ,Private Contractors           ,EH02,Miscellaneous Hired Services            ,910,24/11/2016,R,TOOTING & MITCHAM COMM SPORTS ,,
718,Cultural Env Reg&Plan Services,Parks & Open Spaces,"Pks,Rec Grds (Unloc)",P05005,Premises Related Expenditure  ,Ground Maintenance Costs      ,BL02,Maintenance of paths                    ,2520,16/11/2016,R,REDDINGTON GROUNDWORKS LTD    ,,
719,Cultural Env Reg&Plan Services,Parks & Open Spaces,"Pks,Rec Grds (Unloc)",P05005,Premises Related Expenditure  ,Ground Maintenance Costs      ,BL02,Maintenance of paths                    ,2700,07/11/2016,R,REDDINGTON GROUNDWORKS LTD    ,,
720,Cultural Env Reg&Plan Services,Parks & Open Spaces,"Pks,Rec Grds (Unloc)",P05005,Premises Related Expenditure  ,Ground Maintenance Costs      ,BL50,TREE WORK & CONSERVATION                ,500,21/12/2015,R,FLYNN TREE CARE               ,,
721,Cultural Env Reg&Plan Services,Parks & Open Spaces,"Pks,Rec Grds (Unloc)",P05005,Premises Related Expenditure  ,Ground Maintenance Costs      ,BL50,TREE WORK & CONSERVATION                ,803,30/11/2016,R,CONNICK TREE CARE             ,,
722,Cultural Env Reg&Plan Services,Parks & Open Spaces,"Pks,Rec Grds (Unloc)",P05005,Premises Related Expenditure  ,Ground Maintenance Costs      ,BL50,TREE WORK & CONSERVATION                ,1200,02/11/2016,R,CONNICK TREE CARE             ,,
723,Cultural Env Reg&Plan Services,Parks & Open Spaces,"Pks,Rec Grds (Unloc)",P05005,Supplies & Services           ,Equip Furniture/Materials     ,DA04,Materials                               ,2100,22/11/2016,R,OUTDOOR RESTORE LTD           ,,
724,Cultural Env Reg&Plan Services,Parks & Open Spaces,"Pks,Rec Grds (Unloc)",P05005,Supplies & Services           ,Grants and Subscriptions      ,DJ54,Contributions                           ,2000,06/12/2016,R,LDN PARKS & GREEN SPACES FORUM,,
725,Cultural Env Reg&Plan Services,Parks & Open Spaces,Morden Rec Ground,P05031,Supplies & Services           ,Services                      ,DF03,Consultants                             ,1950,01/12/2016,R,URBAN ENTERPRISE NETWORK      ,,
726,Cultural Env Reg&Plan Services,Parks & Open Spaces,Leis Dev - Fireworks,P05063,Supplies & Services           ,Equip Furniture/Materials     ,DA03,Hire of Equipment                       ,5918.5,18/10/2016,R,JON WALKER TIMBER PRODUCTS LTD,,
727,Cultural Env Reg&Plan Services,Parks & Open Spaces,Leis Dev - Fireworks,P05063,Supplies & Services           ,Services                      ,DF09,Miscellaneous Fees                      ,1198.92,09/11/2016,R,ASHTEAD PLANT HIRE CO LTD     ,,
728,Cultural Env Reg&Plan Services,Parks & Open Spaces,Leis Dev - Fireworks,P05063,Supplies & Services           ,Services                      ,DF09,Miscellaneous Fees                      ,2231.9,09/11/2016,R,ASHTEAD PLANT HIRE CO LTD     ,,
729,Cultural Env Reg&Plan Services,Parks & Open Spaces,Leis Dev - Fireworks,P05063,Supplies & Services           ,Services                      ,DF09,Miscellaneous Fees                      ,5541.4,09/11/2016,R,ASHTEAD PLANT HIRE CO LTD     ,,
730,Cultural Env Reg&Plan Services,Parks & Open Spaces,Church Lane Playing Fields,P05069,Supplies & Services           ,Services                      ,DF03,Consultants                             ,2633.74,30/11/2016,R,LDA DESIGN CONSULTING LTD     ,,
731,Cultural Env Reg&Plan Services,Parks & Open Spaces,Fair Green,P05078,Premises Related Expenditure  ,Ground Maintenance Costs      ,BL50,Nature Conservation                     ,520,09/05/2016,R,REDACTED,,
732,Cultural Env Reg&Plan Services,Parks & Open Spaces,Wimbledon Parks,P05111,Premises Related Expenditure  ,Rents                         ,BC01,Miscellaneous Rents                     ,666.34,23/11/2016,R,TRANSPORT TRADING LTD PROP A/C,,
733,Cultural Env Reg&Plan Services,Open Spaces Tsp Plant W/S HA,"Trans,Plnt WHA(Unl)",P08110,Supplies & Services           ,Equip Furniture/Materials     ,DA09,Equip-Purchases                         ,1017.79,28/11/2016,R,SPALDINGS (UK) LTD            ,,
734,Cultural Env Reg&Plan Services,Outdoor Sports & Rec,Wmbldn Sailing Base,P09120,Supplies & Services           ,Equip Furniture/Materials     ,DA09,Equip-Purchases                         ,3500,19/07/2016,R,TRIDENT-UK                    ,,
735,Cultural Env Reg&Plan Services,Arts Development & Support,Cultural Diversity Fund,P14173,Supplies & Services           ,Grants and Subscriptions      ,DJ01,Grants                                  ,1200,25/11/2016,R,WORLD TAMIL ORGANISATION (UK) ,,
736,Cultural Env Reg&Plan Services,Indoor Sports & Rec,Clnt Offrs-CivicCntr,P17203,Premises Related Expenditure  ,Energy Costs                  ,BB02,Electricity                             ,960.85,05/12/2016,R,SCOTTISH POWER                ,,
737,Cultural Env Reg&Plan Services,Indoor Sports & Rec,Clnt Offrs-CivicCntr,P17203,Premises Related Expenditure  ,Energy Costs                  ,BB02,Electricity                             ,1273.87,08/12/2016,R,SCOTTISH POWER                ,,
738,Cultural Env Reg&Plan Services,Indoor Sports & Rec,Clnt Offrs-CivicCntr,P17203,Premises Related Expenditure  ,Energy Costs                  ,BB02,Electricity                             ,1749.63,06/12/2016,R,LOW CARBON SOLUTIONS          ,,
739,Cultural Env Reg&Plan Services,Indoor Sports & Rec,Clnt Offrs-CivicCntr,P17203,Premises Related Expenditure  ,Energy Costs                  ,BB02,Electricity                             ,2049.34,01/12/2016,R,SCOTTISH POWER                ,,
740,Cultural Env Reg&Plan Services,Indoor Sports & Rec,Clnt Offrs-CivicCntr,P17203,Premises Related Expenditure  ,Energy Costs                  ,BB02,Electricity                             ,4489.57,08/12/2016,R,SCOTTISH POWER                ,,
741,Cultural Env Reg&Plan Services,Indoor Sports & Rec,Clnt Offrs-CivicCntr,P17203,Premises Related Expenditure  ,Energy Costs                  ,BB02,Electricity                             ,8892.05,08/12/2016,R,SCOTTISH POWER                ,,
742,Cultural Env Reg&Plan Services,Indoor Sports & Rec,Clnt Offrs-CivicCntr,P17203,Premises Related Expenditure  ,Energy Costs                  ,BB03,Gas (incl. Butane)                      ,2549.6,07/12/2016,R,GAZPROM MARKETING&TRADING LTD ,,
743,Cultural Env Reg&Plan Services,Indoor Sports & Rec,Clnt Offrs-CivicCntr,P17203,Premises Related Expenditure  ,Energy Costs                  ,BB03,Gas (incl. Butane)                      ,3887.12,07/12/2016,R,GAZPROM MARKETING&TRADING LTD ,,
744,Cultural Env Reg&Plan Services,Mgt & Sup (Cult),Tree Safety (Schools),P18320,Premises Related Expenditure  ,Ground Maintenance Costs      ,BL50,NATURE CONSERVATION                     ,3000,12/09/2016,R,FLYNN TREE CARE               ,,
745,,,Mtchm Cmmon Consvtors,W0000W,Premises Related Expenditure  ,Ground Maintenance Costs      ,BL03,Maintenance of Grounds                  ,2995,09/12/2016,R,LITTLE OAK TREE CARE          ,,
746,Childrens & Education Services,CS - Commiss'ing & Social Work,CH Central Services,W1AA00,Employees                     ,Direct Employee Expenses      ,AA17,Agency Staff & Casual Paymts            ,5534.4,06/12/2016,R,REDACTED,,
747,Childrens & Education Services,CS - Commiss'ing & Social Work,CH Central Services,W1AA00,Employees                     ,Direct Employee Expenses      ,AA17,Agency Staff & Casual Paymts            ,6305.76,02/12/2016,R,REDACTED,,
748,Childrens & Education Services,CS - Commiss'ing & Social Work,CH Central Services,W1AA00,Supplies & Services           ,Services                      ,DF03,Consultants                             ,1265,29/09/2016,R,MAKING A DIFFERENCE           ,,
749,Childrens & Education Services,CS - Commiss'ing & Social Work,CH Central Services,W1AA00,Supplies & Services           ,Services                      ,DF03,Consultants                             ,6050,02/12/2016,R,DECUS LTD                     ,,
750,Childrens & Education Services,CS-Commissioning & Social Work,SD NVQ PROGRAMME,W1BA06,Supplies & Services           ,Grants and Subscriptions      ,DJ01,Grants                                  ,4545.25,06/12/2016,R,REDACTED,,
751,Childrens & Education Services,CS-Commissioning & Social Work,SD NVQ PROGRAMME,W1BA06,Supplies & Services           ,Grants and Subscriptions      ,DJ01,Grants                                  ,4545.25,06/12/2016,R,REDACTED,,
752,Childrens & Education Services,CS-Commissioning & Social Work,SD NVQ PROGRAMME,W1BA06,Supplies & Services           ,Grants and Subscriptions      ,DJ01,Grants                                  ,4545.25,06/12/2016,R,REDACTED,,
753,Childrens & Education Services,CS-Commissioning & Social Work,SD NVQ PROGRAMME,W1BA06,Supplies & Services           ,Grants and Subscriptions      ,DJ01,Grants                                  ,4545.25,06/12/2016,R,REDACTED,,
754,Childrens & Education Services,CS-Commissioning & Social Work,SD Inde Review&Serv Qual,W1BD01,Supplies & Services           ,Equip Furniture/Materials     ,DA01,Equipment - R & M                       ,758,16/11/2016,R,UNIQUE OFFICE SOLUTIONS LTD   ,,
755,Childrens & Education Services,CS-Commissioning & Social Work,SD LSCB Development,W1BD05,Employees                     ,Indirect Employee Expenses    ,AB57,External Training Costs                 ,800,24/11/2016,R,REDACTED,,
756,Childrens & Education Services,CS-Commissioning & Social Work,SD Finance & Admin,W1BE02,Supplies & Services           ,Services                      ,DF56,Bank and Giro Charges                   ,2152.54,14/12/2016,R,ADVANCED PAYMENT SOLUTIONS LTD,,
757,Childrens & Education Services,CS-Commissioning & Social Work,SD Finance & Admin,W1BE02,Supplies & Services           ,Services                      ,DF56,Bank and Giro Charges                   ,2609.72,07/12/2016,R,ADVANCED PAYMENT SOLUTIONS LTD,,
758,Childrens & Education Services,CS-Commissioning & Social Work,SD Finance & Admin,W1BE02,Supplies & Services           ,Services                      ,DF56,Bank and Giro Charges                   ,2617.89,07/12/2016,R,ADVANCED PAYMENT SOLUTIONS LTD,,
759,Childrens & Education Services,CS-Commissioning & Social Work,SD Finance & Admin,W1BE02,Supplies & Services           ,Services                      ,DF56,Bank and Giro Charges                   ,2624.99,14/12/2016,R,ADVANCED PAYMENT SOLUTIONS LTD,,
760,Childrens & Education Services,Other - Other Ch & Fam,AHDC - (Disabled Children),W1CA03,Third Party Payments          ,Private Contractors           ,EH01,Miscellaneous Agency Services           ,1434.53,02/02/2016,R,MERTON VISION                 ,,
761,Childrens & Education Services,Other - Other Ch & Fam,AHDC - (Disabled Children),W1CA03,Third Party Payments          ,Private Contractors           ,EH01,Miscellaneous Agency Services           ,1434.53,26/05/2016,R,MERTON VISION                 ,,
762,Childrens & Education Services,Other - Other Ch & Fam,AHDC - (Disabled Children),W1CA03,Third Party Payments          ,Private Contractors           ,EH01,Miscellaneous Agency Services           ,1492.98,17/10/2016,R,MERTON VISION                 ,,
763,Childrens & Education Services,Other - Other Ch & Fam,CS Short Breaks Day Care                ,W1CA34,Third Party Payments          ,Private Contractors           ,EH01,Miscellaneous Contrct Services          ,500,10/11/2016,R,HOLIDAY CLUB                  ,,
764,Childrens & Education Services,CS - Commiss'ing & Social Work,Children's Central SW Serv              ,W1CB01,Employees                     ,Direct Employee Expenses      ,AA17,Agency Staff & Casual Paymts            ,1050,27/11/2016,R,HAMPTON'S RESOURCING          ,,
765,Childrens & Education Services,CS - Commiss'ing & Social Work,Children's Central SW Serv              ,W1CB01,Employees                     ,Direct Employee Expenses      ,AA17,Agency Staff & Casual Paymts            ,1050,20/11/2016,R,HAMPTON'S RESOURCING          ,,
766,Childrens & Education Services,CS - Commiss'ing & Social Work,Children's Central SW Serv              ,W1CB01,Employees                     ,Direct Employee Expenses      ,AA17,Agency Staff & Casual Paymts            ,1890,13/11/2016,R,HAMPTON'S RESOURCING          ,,
767,Childrens & Education Services,CS - Commiss'ing & Social Work,Children's Central SW Serv              ,W1CB01,Supplies & Services           ,Services                      ,DF11,Counsel's Fees                          ,510,02/11/2016,R,REDACTED,,
768,Childrens & Education Services,CS - Commiss'ing & Social Work,Children's Central SW Serv              ,W1CB01,Supplies & Services           ,Services                      ,DF11,Counsel's Fees                          ,706.5,11/11/2016,R,REDACTED,,
769,Childrens & Education Services,CS - Commiss'ing & Social Work,Children's Central SW Serv              ,W1CB01,Supplies & Services           ,Services                      ,DF14,Doctors and Other Fees                  ,1225.94,28/10/2016,R,BOURNE MEDICOLEGAL LIMITED    ,,
770,Childrens & Education Services,CS - Commiss'ing & Social Work,Children's Central SW Serv              ,W1CB01,Supplies & Services           ,Services                      ,DF14,Doctors and Other Fees                  ,2076.1,17/10/2016,R,REDACTED,,
771,Childrens & Education Services,CS - Commiss'ing & Social Work,Children's Central SW Serv              ,W1CB01,Supplies & Services           ,Services                      ,DF95,Services from Provider                  ,504.96,17/10/2016,R,UBIQUS UK LTD                 ,,
772,Childrens & Education Services,Services for Under 8s,CS Family Support at Bond Road,W1CD00,Premises Related Expenditure  ,Cleaning and Domestic Supplies,BH03,Cleaning Services                       ,725.58,30/11/2016,R,JULIUS RUTHERFOORD & CO LTD   ,,
773,Childrens & Education Services,Family - Other Services,CS Referral & Assessment Sec17,W1CE38,Transfer Payments             ,Schoolchildren/Students       ,FF02,Childr Act 1989 S17                     ,900,07/12/2016,R,EURO HOTEL (LEYTON) LTD       ,,
774,Childrens & Education Services,Leaving Care Services,"MASH, FR and VCT NRTPF                  ",W1CE39,Third Party Payments          ,Private Contractors           ,EH04,Accommodation Based Support             ,1300,07/12/2016,R,REDACTED,,
775,Childrens & Education Services,CS - Commiss'ing & Social Work,CS CWD Team,W1CF03,Employees                     ,Direct Employee Expenses      ,AA17,Agency Staff & Casual Paymts            ,4174.5,03/12/2016,R,REDACTED,,
776,Childrens & Education Services,CS - Commiss'ing & Social Work,CS CWD Team,W1CF03,Employees                     ,Indirect Employee Expenses    ,AB57,External Training Costs                 ,960,30/11/2016,R,SPEECH CENTRE                 ,,
777,Childrens & Education Services,CS - Commiss'ing & Social Work,CS CWD Team,W1CF03,Employees                     ,Indirect Employee Expenses    ,AB57,External Training Costs                 ,960,07/12/2016,R,SPEECH CENTRE                 ,,
778,Childrens & Education Services,CS - Commiss'ing & Social Work,SEN Reform Grant                        ,W1CF11,Supplies & Services           ,Services                      ,DF09,Miscellaneous Fees                      ,3000,26/10/2016,R,GLOBAL MEDIATION LTD          ,,
779,Childrens & Education Services,Family - Direct Payments,CS Direct Payments,W1CF36,Third Party Payments          ,Private Contractors           ,EH73,Direct Payments                         ,1160.65,09/12/2016,R,REDACTED,,
780,Childrens & Education Services,Family - Direct Payments,CS Direct Payments,W1CF36,Third Party Payments          ,Private Contractors           ,EH73,Direct Payments                         ,1160.65,09/12/2016,R,REDACTED,,
781,Childrens & Education Services,Family - Direct Payments,CS Direct Payments,W1CF36,Third Party Payments          ,Private Contractors           ,EH73,Direct Payments                         ,1160.65,09/12/2016,R,REDACTED,,
782,Childrens & Education Services,Family - Direct Payments,CS Direct Payments,W1CF36,Third Party Payments          ,Private Contractors           ,EH73,Direct Payments                         ,1160.65,09/12/2016,R,REDACTED,,
783,Childrens & Education Services,Family - Direct Payments,CS Direct Payments,W1CF36,Third Party Payments          ,Private Contractors           ,EH73,Direct Payments                         ,1565.55,09/12/2016,R,REDACTED,,
784,Childrens & Education Services,Family - Direct Payments,CS Direct Payments,W1CF36,Third Party Payments          ,Private Contractors           ,EH73,Direct Payments                         ,1565.55,09/12/2016,R,REDACTED,,
785,Childrens & Education Services,Family - Direct Payments,CS Direct Payments,W1CF36,Third Party Payments          ,Private Contractors           ,EH73,Direct Payments                         ,1565.55,09/12/2016,R,REDACTED,,
786,Childrens & Education Services,Family - Direct Payments,CS Direct Payments,W1CF36,Third Party Payments          ,Private Contractors           ,EH73,Direct Payments                         ,1565.55,09/12/2016,R,REDACTED,,
787,Childrens & Education Services,Family - Other Services,CS SWD Personal support                 ,W1CF49,Third Party Payments          ,Private Contractors           ,EH01,Miscellaneous Contrct Services          ,607.08,15/11/2016,R,PULSE HEALTHCARE LTD          ,,
788,Childrens & Education Services,Family - Other Services,CS SWD Personal support                 ,W1CF49,Third Party Payments          ,Private Contractors           ,EH01,Miscellaneous Contrct Services          ,607.08,29/11/2016,R,PULSE HEALTHCARE LTD          ,,
789,Childrens & Education Services,Family - Other Services,CS SWD Personal support                 ,W1CF49,Third Party Payments          ,Private Contractors           ,EH01,Miscellaneous Contrct Services          ,607.08,05/12/2016,R,PULSE HEALTHCARE LTD          ,,
790,Childrens & Education Services,Family - Other Services,CS SWD Personal support                 ,W1CF49,Third Party Payments          ,Private Contractors           ,EH01,Miscellaneous Contrct Services          ,607.08,12/12/2016,R,PULSE HEALTHCARE LTD          ,,
791,Childrens & Education Services,Family - Other Services,CS SWD Personal support                 ,W1CF49,Third Party Payments          ,Private Contractors           ,EH01,Miscellaneous Contrct Services          ,607.08,22/11/2016,R,PULSE HEALTHCARE LTD          ,,
792,Childrens & Education Services,Family - Other Services,CS SWD Personal support                 ,W1CF49,Third Party Payments          ,Private Contractors           ,EH01,Miscellaneous Contrct Services          ,1713.56,23/11/2016,R,AMBITION 24 HOURS             ,,
793,Childrens & Education Services,Family - Other Services,CS SWD Personal support                 ,W1CF49,Third Party Payments          ,Private Contractors           ,EH01,Miscellaneous Contrct Services          ,2559.9,30/11/2016,R,AMBITION 24 HOURS             ,,
794,Childrens & Education Services,Family - Other Services,CS SWD Personal support                 ,W1CF49,Third Party Payments          ,Private Contractors           ,EH01,Miscellaneous Contrct Services          ,2566.42,30/11/2016,R,AMBITION 24 HOURS             ,,
795,Childrens & Education Services,Family - Other Services,CS SWD Personal support                 ,W1CF49,Third Party Payments          ,Private Contractors           ,EH01,Miscellaneous Contrct Services          ,4273.13,23/11/2016,R,AMBITION 24 HOURS             ,,
796,Childrens & Education Services,Family - Other Services,CS SWD Personal support                 ,W1CF49,Third Party Payments          ,Private Contractors           ,EH01,Miscellaneous Contrct Services          ,4273.13,07/12/2016,R,AMBITION 24 HOURS             ,,
797,Childrens & Education Services,Family - Other Services,CS SWD Personal support                 ,W1CF49,Third Party Payments          ,Private Contractors           ,EH01,Miscellaneous Contrct Services          ,4273.13,16/11/2016,R,AMBITION 24 HOURS             ,,
798,Childrens & Education Services,Family - Other Services,CS SWD Personal support                 ,W1CF49,Third Party Payments          ,Private Contractors           ,EH01,Miscellaneous Contrct Services          ,4273.13,07/12/2016,R,AMBITION 24 HOURS             ,,
799,Childrens & Education Services,Family - Other Services,CS SWD Personal support                 ,W1CF49,Third Party Payments          ,Private Contractors           ,EH01,Miscellaneous Contrct Services          ,4273.13,09/11/2016,R,AMBITION 24 HOURS             ,,
800,Childrens & Education Services,Chidren's Homes,CS Brightwell,W1CG00,Premises Related Expenditure  ,Cleaning and Domestic Supplies,BH03,Cleaning Services                       ,539.77,01/12/2016,R,BIRKIN CLEANING SERVICES LTD  ,,
801,Childrens & Education Services,Chidren's Homes,CS Brightwell,W1CG00,Supplies & Services           ,Equip Furniture/Materials     ,DA01,Equipment - R & M                       ,558,10/11/2016,R,MSR-SENSORY DEVELOPMENTS      ,,
802,Childrens & Education Services,Support for SEN Pupils,PERSONAL BUDGETS - TRANSPORT,W1CH62,Third Party Payments          ,Private Contractors           ,EH73,Direct Payments                         ,657.7,06/12/2016,R,REDACTED,,
803,Childrens & Education Services,Support for SEN Pupils,PERSONAL BUDGETS - TRANSPORT,W1CH62,Third Party Payments          ,Private Contractors           ,EH73,Direct Payments                         ,657.7,06/12/2016,R,REDACTED,,
804,Childrens & Education Services,Support for SEN Pupils,PERSONAL BUDGETS - TRANSPORT,W1CH62,Third Party Payments          ,Private Contractors           ,EH73,Direct Payments                         ,657.7,06/12/2016,R,REDACTED,,
805,Childrens & Education Services,Support for SEN Pupils,PERSONAL BUDGETS - TRANSPORT,W1CH62,Third Party Payments          ,Private Contractors           ,EH73,Direct Payments                         ,657.7,06/12/2016,R,REDACTED,,
806,Childrens & Education Services,Support for SEN Pupils,PERSONAL BUDGETS - TRANSPORT,W1CH62,Third Party Payments          ,Private Contractors           ,EH73,Direct Payments                         ,850,06/12/2016,R,REDACTED,,
807,Childrens & Education Services,Support for SEN Pupils,PERSONAL BUDGETS - TRANSPORT,W1CH62,Third Party Payments          ,Private Contractors           ,EH73,Direct Payments                         ,850,06/12/2016,R,REDACTED,,
808,Childrens & Education Services,Support for SEN Pupils,PERSONAL BUDGETS - TRANSPORT,W1CH62,Third Party Payments          ,Private Contractors           ,EH73,Direct Payments                         ,850,06/12/2016,R,REDACTED,,
809,Childrens & Education Services,Support for SEN Pupils,PERSONAL BUDGETS - TRANSPORT,W1CH62,Third Party Payments          ,Private Contractors           ,EH73,Direct Payments                         ,850,06/12/2016,R,REDACTED,,
810,Childrens & Education Services,Other - Other Ch & Fam,CL CAMHS Mental Health Grant,W1DA01,Third Party Payments          ,Private Contractors           ,EH01,Miscellaneous Agency Services           ,20288.82,25/11/2016,R,SW LONDON ST GEORGES NHS TRUST,,
811,Childrens & Education Services,I/E Based Interventions (MST),I/E Based Interventions (MST),W1DA05,Third Party Payments          ,Private Contractors           ,EH01,Miscellaneous Agency Services           ,13845,25/11/2016,R,SW LONDON ST GEORGES NHS TRUST,,
812,Childrens & Education Services,Adoption Services,CL Permanency,W1DC00,Supplies & Services           ,Services                      ,DF03,Consultants                             ,5120,01/11/2016,R,GREEN PARK                    ,,
813,Childrens & Education Services,Adoption Services,CL Permanency,W1DC00,Supplies & Services           ,Grants and Subscriptions      ,DJ04,Subscriptions                           ,5898.72,08/11/2016,R,INTERCOUNTRY ADOPTION CENTRE  ,,
814,Childrens & Education Services,Adoption Services,CL Permanency,W1DC00,Third Party Payments          ,Private Contractors           ,EH01,Miscellaneous Agency Services           ,1998.2,21/11/2016,R,PARENT AND CHILDREN TOGETHER  ,,
815,Childrens & Education Services,Adoption Services,CL Permanency,W1DC00,Third Party Payments          ,Private Contractors           ,EH01,Miscellaneous Agency Services           ,12881.6,04/12/2016,R,CHILD TRAUMA INTERVENTION SERV,,
816,Childrens & Education Services,Adoption Services,CL Permanency,W1DC00,Third Party Payments          ,Private Contractors           ,EH01,Miscellaneous Agency Services           ,18000,16/11/2016,R,LONDON BOROUGH OF SOUTHWARK   ,,
817,Childrens & Education Services,Adoption Services,CL Adoption Allowances,W1DC30,Transfer Payments             ,Adult Soc Servs Clients       ,FD01,Adoption Allowances                     ,500,06/12/2016,R,REDACTED,,
818,Childrens & Education Services,Adoption Services,CL Adoption Allowances,W1DC30,Transfer Payments             ,Adult Soc Servs Clients       ,FD01,Adoption Allowances                     ,1981.5,02/12/2016,R,REDACTED,,
819,Childrens & Education Services,Fostering Services,ART Independent Agency Foster,W1DE46,Supplies & Services           ,Services                      ,DF53,Task Based Fostering                    ,530,30/11/2016,R,IAS TACT                      ,,
820,Childrens & Education Services,Fostering Services,ART Independent Agency Foster,W1DE46,Supplies & Services           ,Services                      ,DF53,Task Based Fostering                    ,575.22,06/12/2016,R,RAINBOW FOSTERING SERVICES LTD,,
821,Childrens & Education Services,Fostering Services,ART Independent Agency Foster,W1DE46,Supplies & Services           ,Services                      ,DF53,Task Based Fostering                    ,575.22,06/12/2016,R,RAINBOW FOSTERING SERVICES LTD,,
822,Childrens & Education Services,Fostering Services,ART Independent Agency Foster,W1DE46,Supplies & Services           ,Services                      ,DF53,Task Based Fostering                    ,600.48,25/10/2016,R,CORNERWAYS FOSTERING SERV.LTD ,,
823,Childrens & Education Services,Fostering Services,ART Independent Agency Foster,W1DE46,Supplies & Services           ,Services                      ,DF53,Task Based Fostering                    ,600.48,25/10/2016,R,CORNERWAYS FOSTERING SERV.LTD ,,
824,Childrens & Education Services,Fostering Services,ART Independent Agency Foster,W1DE46,Supplies & Services           ,Services                      ,DF53,Task Based Fostering                    ,600.48,25/10/2016,R,CORNERWAYS FOSTERING SERV.LTD ,,
825,Childrens & Education Services,Fostering Services,ART Independent Agency Foster,W1DE46,Supplies & Services           ,Services                      ,DF53,Task Based Fostering                    ,601.44,06/12/2016,R,RAINBOW FOSTERING SERVICES LTD,,
826,Childrens & Education Services,Fostering Services,ART Independent Agency Foster,W1DE46,Supplies & Services           ,Services                      ,DF53,Task Based Fostering                    ,617.14,28/11/2016,R,GREATER LONDON FOSTERING LTD  ,,
827,Childrens & Education Services,Fostering Services,ART Independent Agency Foster,W1DE46,Supplies & Services           ,Services                      ,DF53,Task Based Fostering                    ,617.14,28/11/2016,R,GREATER LONDON FOSTERING LTD  ,,
828,Childrens & Education Services,Fostering Services,ART Independent Agency Foster,W1DE46,Supplies & Services           ,Services                      ,DF53,Task Based Fostering                    ,617.4,30/11/2016,R,THE FOSTER CARE AGENCY        ,,
829,Childrens & Education Services,Fostering Services,ART Independent Agency Foster,W1DE46,Supplies & Services           ,Services                      ,DF53,Task Based Fostering                    ,621.18,28/11/2016,R,CROHAM SERV.FOR CHILDREN LTD  ,,
830,Childrens & Education Services,Fostering Services,ART Independent Agency Foster,W1DE46,Supplies & Services           ,Services                      ,DF53,Task Based Fostering                    ,630,30/11/2016,R,THE FOSTER CARE AGENCY        ,,
831,Childrens & Education Services,Fostering Services,ART Independent Agency Foster,W1DE46,Supplies & Services           ,Services                      ,DF53,Task Based Fostering                    ,630,28/11/2016,R,KINDERCARE FOSTERING          ,,
832,Childrens & Education Services,Fostering Services,ART Independent Agency Foster,W1DE46,Supplies & Services           ,Services                      ,DF53,Task Based Fostering                    ,630,30/11/2016,R,HORIZON FOSTERING SERVICES    ,,
833,Childrens & Education Services,Fostering Services,ART Independent Agency Foster,W1DE46,Supplies & Services           ,Services                      ,DF53,Task Based Fostering                    ,633.43,22/11/2016,R,LINK FOSTERING AGENCY LTD     ,,
834,Childrens & Education Services,Fostering Services,ART Independent Agency Foster,W1DE46,Supplies & Services           ,Services                      ,DF53,Task Based Fostering                    ,633.43,30/11/2016,R,LINK FOSTERING AGENCY LTD     ,,
835,Childrens & Education Services,Fostering Services,ART Independent Agency Foster,W1DE46,Supplies & Services           ,Services                      ,DF53,Task Based Fostering                    ,636,30/11/2016,R,IAS TACT                      ,,
836,Childrens & Education Services,Fostering Services,ART Independent Agency Foster,W1DE46,Supplies & Services           ,Services                      ,DF53,Task Based Fostering                    ,636,28/11/2016,R,GREATER LONDON FOSTERING LTD  ,,
837,Childrens & Education Services,Fostering Services,ART Independent Agency Foster,W1DE46,Supplies & Services           ,Services                      ,DF53,Task Based Fostering                    ,636,30/11/2016,R,IAS TACT                      ,,
838,Childrens & Education Services,Fostering Services,ART Independent Agency Foster,W1DE46,Supplies & Services           ,Services                      ,DF53,Task Based Fostering                    ,642,28/11/2016,R,GREATER LONDON FOSTERING LTD  ,,
839,Childrens & Education Services,Fostering Services,ART Independent Agency Foster,W1DE46,Supplies & Services           ,Services                      ,DF53,Task Based Fostering                    ,642,28/11/2016,R,GREATER LONDON FOSTERING LTD  ,,
